Workbook

Sheet 评估结果汇总表
A1: 资产评估结果汇总表
A2: 项目要素表
A3: 被评估单位名称：江苏大丰农村商业银行股份有限公司 | E3: 评估基准日： | F3: 2023-12-31 | G3: 单位：人民币 万元
A4: 项 目 | D4: 账面净值 | E4: 市场法评估价值 | F4: 市场法增减值 | G4: 市场法增值率%
D5: A | E5: B | F5: C=B-A | G5: D=C/A*100%
A6: 流动资产 | C6: 1 | F6: 0
A7: 非流动资产 | C7: 2 | F7: 0
A8: 其中： | B8: 固定资产 | C8: 5 | F8: 0
B9: 在建工程 | C9: 6 | D9: 0 | F9: 0
B10: 无形资产 | C10: 7 | F10: 0
B11: 商誉 | C11: 8 | F11: 0 | I11: 0
B12: 长期待摊费用 | F12: 0
F13: 0
A14: 资产总计 | C14: 9 | D14: 0 | F14: 0
A15: 流动负债 | C15: 10 | F15: 0
A16: 非流动负债 | C16: 11 | F16: 0
A17: 负债总计 | C17: 12 | D17: 0 | F17: 0
A18: 净资产(所有者权益) | C18: 13 | D18: 577,531.10 | E18: 366,058.00 | F18: -211,473.10 | G18: -36.62%
A19: 评估机构：北方亚事资产评估有限责任公司

Sheet 评估结果 (hidden)
A2: 序号 | B2: 采用指标 | C2: 市场法评估值
A3: 1 | B3: P/E | C3: ='评估结果-PB'!B20 -> 366,058.00
A4: 2 | B4: EV/EBIT | C4: ='评估结果-EV'!B33 -> 
B5: 平均值 | C5: =AVERAGE(C3:C4) -> 

Sheet 评估结果-PB
A2: 序号 | B2: 比较指标 | C2: 交易案例 | D2: 上市公司比较 | E2: 取值
A3: 1 | B3: P/B | D3: 0.6338 | E3: 0.6338
A4: 2 | E4: 0
A5: 平均值 | E5: 元/股
A6: 股数 | D6: 万股
A7: 1980万股权益 | C7: 0 | D7: 万元
A8: 股东权益合计 | D8: 万元
A9: 归属母公司股东权益 | D9: 万元
A10: 增值率
A11: PB
A17: 所有者权益合计 | B17: 577,531.10 | D17: 万元
A18: 股东全部权益价值 | B18: 366,058.00 | D18: 万元
A19: 持股比例 | B19: 100%
A20: 被评估单位持股价值 | B20: 366,058.00
A21: 每股价格 | B21: 4.62

Sheet 1-交易案例比较法 (hidden)
A1: 近期股权交易案例
A2: 序号 | B2: 证券代号 | C2: 收购方 | D2: 被收购方 | E2: 出售时间 | F2: 出让方式 | G2: 出让价格（评估值）（万元） | H2: 净资产（万元） | I2: PB | J2: PB（修正） | L2: 增值率 | O2: 评估方法 | P2: 最终选取方法 | Q2: 交易目的 | R2: 飞机数量
A3: 1 | C3: 海航控股 | D3: =交易案例比较法测算表!B2 -> 云南祥鹏 | E3: =交易案例比较法测算表!D2 -> 2018-10-01 | F3: 股权转让 | G3: =交易案例比较法测算表!K2 -> 933,380.03 | H3: =交易案例比较法测算表!G2 -> 858,239.36 | I3: =ROUND(G3/H3,4) -> 1.0876 | J3: =交易案例比较法测算表!N101 -> 0.9472 | L3: =G3/H3-1 -> 8.76%
A4: 2 | C4: 海航控股 | D4: =交易案例比较法测算表!B3 -> 山西航空 | E4: =交易案例比较法测算表!D3 -> 2017-10-14 | F4: 股权转让 | G4: =交易案例比较法测算表!K3 -> 248,695.50 | H4: =交易案例比较法测算表!G3 -> 229,998.75 | I4: 1.0813 | J4: =交易案例比较法测算表!N102 -> 0 | L4: =G4/H4-1 -> 8.13%
A5: 3 | C5: 长安航旅 | D5: =交易案例比较法测算表!B4 -> 长安航空 | E5: =交易案例比较法测算表!D4 -> 2018-05-31 | F5: 增资入股 | G5: =交易案例比较法测算表!K4 -> 835,554.12 | H5: =交易案例比较法测算表!G4 -> 694,587.65 | I5: 1.2029 | J5: =交易案例比较法测算表!N103 -> 1.3067 | L5: =G5/H5-1 -> 20.29% | O5: 收益法、市场法 | P5: 收益法 | Q5: 增资 | R5: 自15，租8，共23
A6: 4 | C6: 海航控股 | D6: =交易案例比较法测算表!B5 -> 新华航空 | E6: =交易案例比较法测算表!D5 -> 2018-12-13 | F6: 股权转让 | G6: =交易案例比较法测算表!K5 -> 1,285,135.68 | H6: =交易案例比较法测算表!G5 -> 1,227,236.95 | I6: 1.0472 | J6: =交易案例比较法测算表!N104 -> 0 | L6: =G6/H6-1 -> 4.72% | O6: 收益法、市场法 | P6: 收益法 | Q6: 股权转让
A7: 6 | C7: 西安航投 | D7: 幸福奥凯航空 | E7: 2018-09-12 | F7: 股权转让 | G7: =50388.68/0.24 -> 209,952.83 | H7: 52,654.72 | I7: 3.9874
C8: 海航控股 | D8: 天津航空 | E8: 2019-08-31 | F8: 股权转让 | G8: 1,395,291.50 | H8: 1,110,246.36 | I8: 1.2567 | O8: 收益法、市场法 | P8: 收益法 | Q8: 股权转让 | R8: 飞机95架 | S8: 国际、国内、天津
A9: i | C9: 吉祥航空 | D9: 九元航空 | E9: 2019-06-30 | F9: 股权转让 | G9: 18,000.00 | H9: =111601.15*11.9% -> 13,280.54 | I9: 1.3554
A10: i
D12: 平均值 | I12: =AVERAGE(I3:I11) -> 1.5741 | J12: =AVERAGE(J3:J11) -> 0.5635
I14: =45*I12*1.15 -> 81.46 | J14: =50 -> 50.00 | K14: =I14-J14 -> 31.46
A16: 2 | C16: 海航控股 | D16: 天津航空 | E16: 2016-12-31 | F16: 增资扩股 | G16: 1,442,176.97 | H16: 1,398,032.02 | I16: =ROUND(G16/H16,4) -> 1.0316 | L16: =G16/H16-1 -> 3.16%
A17: 5 | C17: 海航控股 | D17: 新华航空 | E17: 2017-06-30 | F17: 股权收购 | G17: 1,320,488.06 | H17: 1,238,070.29 | I17: =ROUND(G17/H17,4) -> 1.0666 | L17: =G17/H17-1 -> 6.66%
A29: 近期股权交易案例
A30: 序号 | B30: 证券代号 | C30: 收购方 | D30: 被收购方 | E30: 出售时间 | F30: 出让方式 | G30: 出让价格（评估值）（万元） | H30: 净资产（万元） | I30: 增值率 | K30: 评估方法
A31: 1 | C31: 海航控股 | D31: 云南祥鹏 | E31: 2017-08-31 | F31: 关联交易、股权收购 | G31: 932,152.84 | H31: 861,001.04 | I31: =G31/H31-1 -> 8.26% | K31: 收益法 | M31: 收益法、市场法
A32: 2 | C32: 海航控股 | D32: 山西航空 | E32: 2017-06-30 | F32: 关联交易、股权收购 | G32: 248,695.50 | H32: 229,998.75 | I32: =G32/H32-1 -> 8.13% | K32: 收益法 | M32: 收益法、市场法
A33: 3 | C33: 海航控股 | D33: 长安航空 | E33: 2017-06-30 | F33: 关联交易、股权收购 | G33: 813,949.97 | H33: 695,157.22 | I33: 17.09% | K33: 收益法 | M33: 收益法、市场法
A34: 4 | C34: 海航控股 | D34: 中国新华航空集团有限公司 | E34: 2018-09-30 | F34: 关联交易、股权收购 | G34: 1,285,135.68 | H34: 1,227,236.95 | I34: 4.72% | K34: 收益法 | M34: 收益法、市场法
D35: 西部航空有限责任公司 | E35: 2013-08-31 | F35: 增资扩股 | G35: 152,472.76 | H35: 140,264.46 | I35: =G35/H35-1 -> 8.70% | K35: 成本法
C36: 海航控股 | D36: 扬子江快运航空公司 | E36: 2015-12-31 | F36: 股权收购 | G36: 333,432.14 | H36: 217,194.97 | I36: =G36/H36-1 -> 53.52% | K36: 成本法
C37: 海航控股 | D37: 首航控股 | E37: 2012-12-31 | F37: 股权收购 | G37: 259,712.37 | H37: 156,994.57 | I37: =G37/H37-1 -> 65.43% | K37: 成本法
A38: 5 | C38: 海航控股 | D38: =交易案例比较法测算表!B6 -> 天津航空 | E38: =交易案例比较法测算表!D6 -> 00:00:00 | F38: 股权转让 | G38: =交易案例比较法测算表!K6 -> 1,395,291.50 | H38: =交易案例比较法测算表!G6 -> 1,110,246.36 | J38: =交易案例比较法测算表!N105 -> 1.1169
D39: 幸福航空控股有限公司
C42: 上海吉祥航空股份有限公司 | D42: 九元航空 | H42: 111,601.15 | M42: 经交易双方友好协商，本次交易的定价以每 1 元注册资本作价 2 元为参考基准，本次收购亿利资源持有九元航空 11.90%股权的价格为人民币 18,000 万元。
G43: 18,000.00 | H43: =H42*11.9% -> 13,280.54 | I43: =G43/H43/(1-15%) -> 1.5945 | J43: =H43*I43*(1-15%) -> 18,000.00

Sheet 交易案例比较法测算表 (hidden)
A1: 序号 | B1: 被收购方 | C1: 评估基准日 | D1: 交易完成日期 | E1: 总资产 | F1: 负债 | G1: 净资产 | H1: 营业收入 | I1: 利润总额 | J1: 净利润 | K1: 评估值 | L1: 市净率 | M1: 市销率 | O1: 非经营性资产 | Q1: 股权收购比例
A2: 1 | B2: 云南祥鹏 | C2: 2017-12-31 | D2: 2018-10-01 | E2: 1,832,074.41 | F2: =E2-G2 -> 973,835.05 | G2: 858,239.36 | H2: 640,531.18 | I2: =I14 -> 28,469.46 | J2: 24,167.19 | K2: 933,380.03 | L2: =K2/G2 -> 1.0876 | M2: =K2/H2 -> 1.4572 | O2: =L2 -> 1.0876 | Q2: 云南省国有资本运营有限公司向云南省交通投资建设集团有限公司转让祥鹏航空13.32%股权
A3: 2 | B3: 山西航空 | C3: 2017-06-30 | D3: 2017-10-14 | E3: 335,615.67 | F3: 105,616.92 | G3: =E3-F3 -> 229,998.75 | H3: 109,276.94 | I3: 8,811.38 | J3: 6,640.10 | K3: 248,695.50 | N3: =20.57*10000 -> 205,700.00 | Q3: 海南航空控股股份有限公司（以下简称“海航控股”或“公司”）拟以 64,969.20万元、57,881.64 万元分别收购北京鸿瑞盛达商贸有限公司（以下简称“鸿瑞盛达”）、海航航空集团有限公司（以下简称“海航航空”）持有的公司控股子公司山西航空有限责任公司（以下简称“山西航空”）26.12%、23.27%股权。交易完成后，公司将持有山西航空 72.82%股权。 | R3: 未考虑控股权溢价
A4: 3 | B4: 长安航空 | C4: 2017-12-31 | D4: 2018-05-31 | E4: =E23 -> 1,072,683.97 | F4: =F23 -> 378,096.32 | G4: 694,587.65 | H4: 119,135.52 | I4: 2,536.99 | J4: 2,614.89 | K4: 835,554.12 | L4: 1.2029 | M4: =K4/H4 -> 7.0135 | O4: =L4 -> 1.2029 | Q4: 长安航旅拟以每股 2.087 元对长安航空进行增资。股权比例由25.71%上升至28.29% | R4: 未考虑控股权溢价
A5: 4 | B5: 新华航空 | C5: 2018-09-30 | D5: 2018-12-13 | E5: =E27 -> 1,524,960.54 | F5: =F27 -> 297,723.59 | G5: 1,227,236.95 | H5: 432,700.67 | I5: -6,172.78 | J5: -6,963.79 | K5: 1,285,135.68 | Q5: 海航控股拟以 156,498.65万元人民币收购嘉兴兴晟海新投资合伙企业（有限合伙）（以下简称“嘉兴兴晟”）持有的公司控股子公司中国新华航空集团有限公司（以下简称“新华航空”） 12.18%股权。 | R5: 未考虑控股权溢价
A6: 5 | B6: 天津航空 | C6: ='1-交易案例比较法'!E8 -> 2019-08-31 | E6: =E33 -> 5,293,243.58 | F6: =F33 -> 3,842,087.60 | G6: 1,110,246.36 | H6: 782,153.78 | I6: 85,326.41 | J6: 64,305.53 | K6: 1,395,291.50 | L6: =K6/G6 -> 1.2567 | M6: =K6/H6 -> 1.7839 | O6: =L6*0.9 -> 1.13 | Q6: 海南航空控股股份有限公司于 2019 年 10月 16 日拟以每股 1.70元人民币的价格向海航航空集团有限公司转让持有的天津航空有限责任公司（以下简称“天津航空”）48%股权，交易金额共计 668,516.16 万元人民币。 | R6: 未考虑控股权溢价
A7: 6 | B7: ='1-交易案例比较法'!D7 -> 幸福奥凯航空 | C7: 2018-07-31 | D7: ='1-交易案例比较法'!E7 -> 2018-09-12 | E7: =E37 -> 52,690.75 | F7: 36.03 | G7: 52,654.72 | H7: 41,598.84 | I7: -16,272.59 | J7: -15,926.81 | K7: 209,952.83 | L7: =K7/G7 -> 3.9874 | M7: =K7/7*12/H7 -> 8.6521 | O7: =L7 -> 3.9874 | Q7: 2018年11月，陕西省、西安市与中国航空工业集团签署协议，西安航空航天投资股份有限公司牵头对幸福航空进行重组，成为幸福航空控股股东。股权转让后，形成股本构成为西安航空航天投资股份有限公司占比65%、幸福航空控股有限公司（航空工业集团全资子公司）占比24%、奥凯航空有限公司占比5%、北京幸福众持投资管理有限公司占比6%的幸福航空。 | R7: 未考虑控股权溢价
A8: 7 | B8: ='1-交易案例比较法'!D9 -> 九元航空 | C8: ='1-交易案例比较法'!E9 -> 2019-06-30 | D8: 2019-11-06 | E8: =E42 -> 439,631.50 | F8: 328,030.35 | G8: 111,601.15 | H8: 135,711.39 | I8: 0 | J8: 1,922.56 | K8: 151,260.50 | L8: =K8/G8 -> 1.3554 | M8: =K8/6*12/H8 -> 2.2291 | O8: =L8*0.9 -> 1.22 | Q8: 上海吉祥航空股份有限公司拟以现金收购控股子公司九元航空有限公司少数股东亿利资源集团有限公司持有的九元航空 11.90%的股权。本次交易价格为人民币 18,000万元。 | R8: 少数股权折价
B9: 金鹏航空 | E9: 1,273,414.93 | F9: 713,512.89 | G9: 559,902.04 | H9: 372,288.75 | I9: -23,197.38 | J9: -23,197.38 | O9: =AVERAGE(O2:O8) -> 1.7257
L10: =AVERAGE(L2:L7) -> 1.8836 | M10: =AVERAGE(M2:M7) -> 4.7267 | N10: =M10*33*1.14*0.9 -> 160.04 | O10: 50 | P10: =N10-O10 -> 110.04
N11: =O9*45*1.14*0.9 -> 79.68 | O11: 50 | P11: =N11-O11 -> 29.68
B12: 云南祥鹏 | C12: 2015-12-31 | E12: 1,073,164.79 | F12: 748,018.67 | G12: =E12-F12 -> 325,146.12 | H12: 414,827.78 | I12: 33,413.80 | J12: 28,365.39 | N12: =J12/I12 -> 0.8489124254 | O12: 祥鹏航空是海航集团下属成员企业,公司注册地为云南省昆明市，运营基地为云南省昆明市、云南省丽江市，四川省成都市、四川省绵阳市、河南省郑州市。2006年2月26日，祥鹏航空顺利开航。2008年6月，云南省国资委与海航集团签署战略合作协议，双方共建祥鹏航空。2016年，祥鹏航空正式发布低成本战略转型，成为云南首家低成本航空公司。
C13: 2016-12-31 | E13: 1,226,461.16 | F13: 754,452.53 | G13: =E13-F13 -> 472,008.63 | H13: 497,306.73 | I13: 54,082.15 | J13: 45,907.62 | N13: =J13/I13 -> 0.8488497591 | O13: 截至2018年10月，祥鹏航空机队规模达50架，在飞航线106条（包括91条国内航线、15条国际航线），通航城市81个（包括68个国内城市、13个国际城市）。目前，祥鹏航空在昆明市场占有率已达到12.28%，在丽江市场占有率13.54%，为云南省第二大基地航空。目前，祥鹏航空建立了以昆明为中心，连通全国一、二线及各大省会城市，辐射东南亚、东亚的立体航线网络。公司曾荣获中国最佳旅游供应商、消费者信赖企业、旅客话民航用户满意优质奖、中国最具发展潜力雇主、2016中国十佳特色航空公司、2016世界旅游大奖（WTA）亚洲国内领先航线奖等优秀称号。
C14: 2017-12-31 | E14: =E2 -> 1,832,074.41 | F14: =F2 -> 973,835.05 | G14: =G2 -> 858,239.36 | H14: =H2 -> 640,531.18 | I14: =J14/N14 -> 28,469.46 | J14: =J2 -> 24,167.19 | K14: =K2 -> 933,380.03 | L14: =K14/G14 -> 1.0876 | M14: =K14/H14 -> 1.4572 | N14: =AVERAGE(N12:N13) -> 0.8488810923 | O14: 国内（含港澳台）、国际航空客货运输业务；货物进出口；保险兼业代理；礼品销售；景点及演出门票代售；酒店代订；汽车租赁；广告经营；食品经营；预包装食品批发零售。（依法须经批准的项目，经相关部门批准后方可开展经营活动）
B16: =B3 -> 山西航空 | C16: 2015-12-31 | E16: 311,260.37 | F16: 100,832.57 | G16: =E16-F16 -> 210,427.80 | H16: 164,053.18 | I16: 14,761.72 | J16: 11,096.13 | O16: 航空运输：由山西省始发至相邻省际间的支线航空客、货运输业务；航空运输客货代理；由山西省始发至国内部分城市的航空客、货运输业务；代购机票；代理报关；民用航空器维修；装潢设计；地貌模型制作；批发零售建材（不含林区木材）、百货、焦炭。
C17: 2016-12-31 | E17: 321,068.14 | F17: 97,709.49 | G17: =E17-F17 -> 223,358.65 | H17: 182,130.03 | I17: 17,175.47 | J17: 12,930.85 | N17: 海航公布数据 | O17: 海南航空控股股份有限公司（以下简称“海航控股”或“公司”）拟以 64,969.20万元、57,881.64 万元分别收购北京鸿瑞盛达商贸有限公司（以下简称“鸿瑞盛达”）、海航航空集团有限公司（以下简称“海航航空”）持有的公司控股子公司山西航空有限责任公司（以下简称“山西航空”）26.12%、23.27%股权。交易完成后，公司将持有山西航空 72.82%股权。
C18: =C3 -> 2017-06-30 | E18: =E3 -> 335,615.67 | F18: 105,616.92 | G18: 229,998.75 | H18: 109,276.94 | I18: 8,811.38 | J18: 6,640.10 | K18: 248,695.50 | L18: =K18/G18 -> 1.0813 | M18: =K18/N18 -> 1.2090 | N18: =20.57*10000 -> 205,700.00
B20: =B4 -> 长安航空 | C20: 2014-12-31 | E20: 904,750.97 | F20: 507,830.49 | G20: =(E20-F20) -> 396,920.49 | H20: 239,486.76 | I20: 21,743.88 | J20: 19,180.22
C21: 2015-12-31 | E21: 885,616.02 | F21: 424,663.35 | G21: =(E21-F21) -> 460,952.67 | H21: 224,701.93 | I21: 26,474.41 | J21: 23,199.95
C22: 2016-12-31 | E22: 1,020,185.42 | F22: 329,236.42 | G22: =(E22-F22) -> 690,949.00 | H22: 115,510.67 | I22: 6,867.67 | J22: 6,275.79
C23: =C4 -> 2017-12-31 | E23: 1,072,683.97 | F23: 378,096.32 | G23: =((E23-F23)) -> 694,587.65 | H23: 119,135.52 | I23: 2,536.99 | J23: 2,614.89 | K23: 835,554.12 | L23: =K23/G23 -> 1.2029 | M23: =K23/H23 -> 7.0135 | O23: 长安航旅拟以每股 2.087 元对长安航空进行增资。本次交易定价公允、合理。
B25: =B5 -> 新华航空 | C25: 2016-12-31 | E25: 1,454,561.18 | F25: 262,543.99 | G25: =E25-F25 -> 1,192,017.19 | H25: 474,668.87 | I25: 48,006.80 | J25: 41,636.75
C26: 2017-12-31 | E26: 1,553,339.42 | F26: 316,257.23 | G26: =E26-F26 -> 1,237,082.19 | H26: 552,125.21 | I26: 42,954.32 | J26: 36,523.87
C27: =C5 -> 2018-09-30 | E27: 1,524,960.54 | F27: 297,723.59 | G27: =E27-F27 -> 1,227,236.95 | H27: 432,700.67 | I27: -6,172.78 | J27: -6,963.79 | K27: =K5 -> 1,285,135.68 | L27: =K27/G27 -> 1.0472 | M27: =K27/(H27/0.7647) -> 2.2712 | O27: 海南航空控股股份有限公司（以下简称“海航控股”或“公司”）拟以 156,498.65万元人民币收购嘉兴兴晟海新投资合伙企业（有限合伙）（以下简称“嘉兴兴晟”）持有的公司控股子公司中国新华航空集团有限公司（以下简称“新华航空”）12.18%股权。交易完成后，公司将持有新华航空 73.92%股权。
B29: =B6 -> 天津航空 | C29: 2015-12-31 | E29: 3,453,008.92 | F29: 2,293,197.47 | G29: =E29-F29 -> 1,159,811.45 | H29: 750,061.77 | I29: 77,710.53 | J29: 60,756.89
C30: 2016-12-31 | E30: 3,854,542.55 | F30: 2,456,510.53 | G30: =E30-F30 -> 1,398,032.02 | H30: 824,573.61 | I30: 55,946.64 | J30: 49,690.97
C31: =C23 -> 2017-12-31 | E31: 4,119,181.41 | F31: 2,607,578.15 | G31: =E31-F31 -> 1,511,603.26 | H31: 975,602.46 | I31: 58,444.94 | J31: 50,484.40
C32: 2018-12-31 | E32: =38416978499.96/10000 -> 3,841,697.85 | F32: =24152751649.52/10000 -> 2,415,275.16 | G32: =E32-F32-3413688472.48/10000 -> 1,085,053.84 | H32: =11020614146/10000 -> 1,102,061.41 | I32: =-1793759482.74/10000 -> -179,375.95 | J32: =-1309838474.78/10000 -> -130,983.85
C33: 2018-08-31 | E33: =52932435841.04/10000 -> 5,293,243.58 | F33: =38420875965.49/10000 -> 3,842,087.60 | G33: =E33-F33-3409096294.91/10000 -> 1,110,246.36 | H33: =7821537795.06/10000 -> 782,153.78 | I33: =853264091.55/10000 -> 85,326.41 | J33: =643055266.13/10000 -> 64,305.53 | K33: 1,395,291.50 | L33: =K33/G33 -> 1.2567 | M33: =K33/8*12/H33 -> 2.6759
B35: =B7 -> 幸福奥凯航空
C36: 2017-12-31 | E36: 29,988.78 | F36: 28.03 | G36: 29,960.76 | H36: 39,512.89 | I36: -22,273.95 | J36: -22,207.00
C37: 2018-07-31 | E37: 52,690.75 | F37: 36.03 | G37: 52,654.72 | H37: 41,598.84 | I37: -16,272.59 | J37: -15,926.81 | K37: 209,952.83 | L37: =K37/G37 -> 3.9874 | M37: =K37/7*12/H37 -> 8.6521
B40: =B8 -> 九元航空
C41: =C32 -> 2018-12-31 | E41: 379,582.72 | F41: 269,904.13 | G41: 109,678.59 | H41: 224,903.95 | J41: 4,039.29
C42: 2019-06-30 | E42: 439,631.50 | F42: 328,030.35 | G42: 111,601.15 | H42: 135,711.39 | J42: 1,922.56 | K42: =1.8*10000/11.9% -> 151,260.50 | L42: =K42/G42 -> 1.3554 | M42: =K42/6*12/H42 -> 2.2291
B45: 证券代码 | C45: 证券简称 | D45: roe | E45: roa | F45: 营业利润率 | G45: 资产负债率（%） | H45: 营业增长率（%） | I45: 营业利润增长率（%） | J45: 飞机数量 | K45: 航线情况
B46: =B12 -> 云南祥鹏 | C46: =C12 -> 2015-12-31 | D46: =J12/G12 -> 8.72% | E46: =J12/E12 -> 2.64% | F46: =I12/H12 -> 8.05% | G46: =F12/E12 -> 69.70%
C47: =C13 -> 2016-12-31 | D47: =J13/(G13+G12)*2 -> 11.52% | E47: =J13/(E13+E12)*2 -> 3.99% | F47: =I13/H13 -> 10.88% | G47: =F13/E13 -> 61.51%
C48: =C14 -> 2017-12-31 | D48: =J14/(G14+G13)*2 -> 3.63% | E48: =J14/(E14+E13)*2 -> 1.58% | F48: =I14/H14 -> 4.44% | G48: =F14/E14 -> 53.15% | H48: =(H14/H12)^(1/2)-1 -> 24.26% | I48: =(I14/I12)^(1/2)-1 -> -7.69% | J48: 46.00 | P48: =G26 -> 1,237,082.1900
C49: 平均值 | D49: =AVERAGE(D46:D48) -> 7.96% | E49: =AVERAGE(E46:E48) -> 2.74% | F49: =AVERAGE(F46:F48) -> 7.79% | G49: =AVERAGE(G46:G48) -> 61.46% | H49: =H48 -> 24.26% | I49: =I48 -> -7.69% | J49: =J48 -> 46.00 | K49: 国内国际
B51: =B16 -> 山西航空 | C51: =C16 -> 2015-12-31 | D51: =J16/G16 -> 5.27% | E51: =J16/E16 -> 3.56% | F51: =I16/H16 -> 9.00% | G51: =F16/E16 -> 32.39%
C52: =C17 -> 2016-12-31 | D52: =J17/(G17+G16)*2 -> 5.96% | E52: =J17/(E17+E16)*2 -> 4.09% | F52: =I17/H17 -> 9.43% | G52: =F17/E17 -> 30.43%
C53: =C18 -> 2017-06-30 | D53: =J18/(G18+G17)*2 -> 2.93% | E53: =J18/(E18+E17)*2 -> 2.02% | F53: =I18/H18 -> 8.06% | G53: =F18/E18 -> 31.47% | H53: =(N18/H16)^(1/2)-1 -> 11.98% | I53: =(I18*2/I16)^(1/2)-1 -> 9.26% | J53: 14.00
C54: 平均值 | D54: =AVERAGE(D51:D53) -> 4.72% | E54: =AVERAGE(E51:E53) -> 3.23% | F54: =AVERAGE(F51:F53) -> 8.83% | G54: =AVERAGE(G51:G53) -> 31.43% | H54: =H53 -> 11.98% | I54: =I53 -> 9.26% | J54: =J53 -> 14.00 | K54: 山西省
B56: =B20 -> 长安航空 | C56: =C21 -> 2015-12-31 | D56: =J21/(G21+G20)*2 -> 5.41% | E56: =J21/(E21+E20)*2 -> 2.59% | F56: =I21/H21 -> 11.78% | G56: =F21/E21 -> 47.95%
C57: =C22 -> 2016-12-31 | D57: =J22/(G22+G21)*2 -> 1.09% | E57: =J22/(E22+E21)*2 -> 0.66% | F57: =I22/H22 -> 5.95% | G57: =F22/E22 -> 32.27%
C58: =C23 -> 2017-12-31 | D58: =J23/(G23+G22)*2 -> 0.38% | E58: =J23/(E23+E22)*2 -> 0.25% | F58: =I23/H23 -> 2.13% | G58: =F23/E23 -> 35.25% | H58: =(H23/H20)^(1/3)-1 -> -20.76% | I58: =(I23/I20)^(1/3)-1 -> -51.14% | J58: 8.00
C59: 平均值 | D59: =AVERAGE(D56:D58) -> 2.29% | E59: =AVERAGE(E56:E58) -> 1.17% | F59: =AVERAGE(F56:F58) -> 6.62% | G59: =AVERAGE(G56:G58) -> 38.49% | H59: =H58 -> -20.76% | I59: =I58 -> -51.14% | J59: =J58 -> 8.00 | K59: 国内
B61: =B25 -> 新华航空 | C61: =C25 -> 2016-12-31 | D61: =J25/G25 -> 3.49% | E61: =J25/E25 -> 2.86% | F61: =I25/H25 -> 10.11% | G61: =F25/E25 -> 18.05%
C62: =C26 -> 2017-12-31 | D62: =J26/(G26+G25)*2 -> 3.01% | E62: =J26/(E26+E25)*2 -> 2.43% | F62: =I26/H26 -> 7.78% | G62: =F26/E26 -> 20.36% | I62: =I26/I25-1 -> -10.52%
C63: =C27 -> 2018-09-30 | D63: =J27/(G27+G26)*2 -> -0.57% | E63: =J27/(E27+E26)*2 -> -0.45% | F63: =I27/H27 -> -1.43% | G63: =F27/E27 -> 19.52% | H63: =(H27/0.7647/H25)^(1/2)-1 -> 9.18% | I63: =I27/9*12/I26-1 -> -119.16% | J63: 29.00
C64: 平均值 | D64: =AVERAGE(D61:D63) -> 1.98% | E64: =AVERAGE(E61:E63) -> 1.61% | F64: =AVERAGE(F61:F63) -> 5.49% | G64: =AVERAGE(G61:G63) -> 19.31% | H64: =H63 -> 9.18% | I64: =AVERAGE(I62:I63) -> -64.84% | J64: =J63 -> 29.00 | K64: 天津北京
B66: =B29 -> 天津航空 | C66: =C29 -> 2015-12-31 | D66: =J29/G29 -> 5.24% | E66: =J29/E29 -> 1.76% | F66: =I29/H29 -> 10.36% | G66: =F29/E29 -> 66.41%
C67: =C30 -> 2016-12-31 | D67: =J30/(G30+G29)*2 -> 3.89% | E67: =J30/(E30+E29)*2 -> 1.36% | F67: =I30/H30 -> 6.78% | G67: =F30/E30 -> 63.73%
C68: =C33 -> 2018-08-31 | D68: =J33/(G33+G30)*2 -> 5.13% | E68: =J33/(E33+E30)*2 -> 1.41% | F68: =I33/H33 -> 10.91% | G68: =F33/E33 -> 72.58% | H68: =(H33/H29)^(1/2)-1 -> 2.12% | I68: =(I33/I29)^(1/2)-1 -> 4.79% | J68: 98.00
C69: 平均值 | D69: =AVERAGE(D66:D68) -> 4.75% | E69: =AVERAGE(E66:E68) -> 1.51% | F69: =AVERAGE(F66:F68) -> 9.35% | G69: =AVERAGE(G66:G68) -> 67.58% | H69: =H68 -> 2.12% | I69: =AVERAGE(I67:I68) -> 4.79% | J69: =J68 -> 98.00 | K69: 国内国际
B73: 初始价值比率
B74: 证券代码 | C74: 证券简称 | D74: roe | E74: roa | F74: 营业利润率 | G74: 资产负债率（%） | H74: 营业增长率（%） | I74: 营业利润增长率（%） | J74: 飞机数量 | K74: 航线情况
B75: =B2 -> 云南祥鹏 | D75: =D49 -> 7.96% | E75: 2.74% | F75: 7.79% | G75: =G49 -> 61.46% | H75: 24.26% | I75: -7.69% | J75: 46.00 | K75: =K49 -> 国内国际
B76: =B3 -> 山西航空 | D76: =D54 -> 4.72% | E76: 3.23% | F76: 8.83% | G76: 31.43% | H76: 11.98% | I76: 9.26% | J76: 14.00 | K76: =K54 -> 山西省
B77: =B4 -> 长安航空 | D77: =D59 -> 2.29% | E77: =E59 -> 1.17% | F77: 6.62% | G77: 38.49% | H77: -20.76% | I77: -51.14% | J77: =J59 -> 8.00 | K77: 国内
B78: =B5 -> 新华航空 | D78: =D64 -> 1.98% | E78: 1.61% | F78: 5.49% | G78: 19.31% | H78: 9.18% | I78: -64.84% | J78: 40.00 | K78: =K64 -> 天津北京
B79: =B66 -> 天津航空 | D79: =D69 -> 4.75% | E79: 1.51% | F79: 9.35% | G79: 67.58% | H79: 2.12% | I79: 4.79% | J79: 98.00 | K79: =K69 -> 国内国际
B80: 金鹏航空 | D80: ='2-交易案例比较法'!C16 -> 908.94% | E80: ='2-交易案例比较法'!D16 -> 111.39% | F80: ='2-交易案例比较法'!E16 -> 3660.18% | G80: ='2-交易案例比较法'!H16 -> 111.76% | H80: ='2-交易案例比较法'!K16 -> 1436.56% | I80: ='2-交易案例比较法'!#REF! ->  | J80: 26.00 | K80: 国内国际
B82: 比较因素条件说明表
B83: 证券代码 | C83: 证券简称 | D83: roe | E83: roa | F83: 营业利润率 | G83: 资产负债率（%） | H83: 营业增长率（%） | I83: 营业利润增长率（%） | J83: 飞机数量 | K83: 航线情况
B84: =B75 -> 云南祥鹏 | D84: 优秀 | E84: 一般 | F84: 良好 | G84: 良好 | H84: 优秀 | I84: 较低 | J84: 良好 | K84: 优秀
B85: 山西航空 | D85: 良好 | E85: 良好 | F85: 良好 | G85: 较低 | H85: 一般 | I85: 一般 | J85: 较低 | K85: 较差
B86: 长安航空 | D86: 一般 | E86: 一般 | F86: 一般 | G86: 较低 | H86: 较差 | I86: 较差 | J86: 较低 | K86: 一般
B87: 新华航空 | D87: 一般 | E87: 一般 | F87: 一般 | G87: 较低 | H87: 一般 | I87: 较差 | J87: 良好 | K87: 较低
B88: 天津航空 | D88: 良好 | E88: 一般 | F88: 良好 | G88: 良好 | H88: 良好 | I88: 较低 | J88: 优秀 | K88: 优秀
B89: 金鹏航空 | D89: 较低 | E89: 较低 | F89: 较差 | G89: 良好 | H89: 优秀 | I89: 较差 | J89: 一般 | K89: 良好
B92: 证券代码 | C92: 证券简称 | D92: roe | E92: roa | F92: 营业利润率 | G92: 资产负债率（%） | H92: 营业增长率（%） | I92: 营业利润增长率（%） | J92: 飞机数量 | K92: 航线情况
B93: =B75 -> 云南祥鹏 | D93: 104 | E93: 101 | F93: 103 | G93: 100 | H93: 100 | I93: 102 | J93: 102 | K93: 102
B94: 山西航空 | D94: 102 | E94: 102 | F94: 103 | G94: 98 | H94: 96 | I94: 106 | J94: 98 | K94: 94
B95: 长安航空 | D95: 101 | E95: 101 | F95: 102 | G95: 98 | H95: 94 | I95: 100 | J95: 98 | K95: 98
B96: 新华航空 | D96: 101 | E96: 101 | F96: 102 | G96: 98 | H96: 96 | I96: 100 | J96: 102 | K96: 96
B97: 天津航空 | D97: 102 | E97: 101 | F97: 103 | G97: 100 | H97: 98 | I97: 102 | J97: 104 | K97: 102
B98: 金鹏航空 | D98: 100 | E98: 100 | F98: 100 | G98: 100 | H98: 100 | I98: 100 | J98: 100 | K98: 100
B100: 证券代码 | C100: 证券简称 | D100: roe | E100: roa | F100: 营业利润率 | G100: 资产负债率（%） | H100: 营业增长率（%） | I100: 营业利润增长率（%） | J100: 飞机数量 | K100: 航线情况 | L100: 修正系数 | M100: PB | N100: PB(修正后) | O100: PS | P100: PS(修正后)
B101: =B93 -> 云南祥鹏 | D101: =ROUND(D$98/D93,4) -> 0.9615 | E101: =ROUND(E$98/E93,4) -> 0.9901 | F101: 0.9709 | G101: 1.0000 | H101: 1.0000 | I101: 0.9804 | J101: =ROUND(J$98/J93,4) -> 0.9804 | K101: 0.9804 | L101: =PRODUCT(D101:K101) -> 0.8710 | M101: =L2 -> 1.0876 | N101: =M101*L101 -> 0.9472 | O101: =M2 -> 1.4572 | P101: =O101*L101 -> 1.2692
B102: 山西航空 | D102: 0.9804 | E102: =ROUND(E$98/E94,4) -> 0.9804 | F102: 0.9709 | G102: 1.0204 | H102: 1.0417 | I102: 0.9434 | J102: 1.0204 | K102: 1.0638 | L102: 1.0158 | M102: =L3 -> 0 | N102: =M102*L102 -> 0 | O102: =M3 -> 0 | P102: =O102*L102 -> 0
B103: 长安航空 | D103: 0.9901 | E103: =ROUND(E$98/E95,4) -> 0.9901 | F103: 0.9804 | G103: 1.0204 | H103: 1.0638 | I103: 1.0000 | J103: 1.0204 | K103: 1.0204 | L103: 1.0863 | M103: =L4 -> 1.2029 | N103: =M103*L103 -> 1.3067 | O103: =M4 -> 7.0135
B104: 新华航空 | D104: 0.9901 | E104: 0.9901 | F104: 0.9804 | G104: 1.0204 | H104: 1.0417 | I104: 1.0000 | J104: 0.9804 | K104: 1.0417 | L104: 1.0433 | M104: =L5 -> 0 | N104: =M104*L104 -> 0 | O104: =M5 -> 0 | P104: =O104*L104 -> 0
B105: 天津航空 | D105: 0.9804 | E105: 0.9901 | F105: 0.9709 | G105: 1.0000 | H105: 1.0204 | I105: 0.9804 | J105: 0.9615 | K105: 0.9804 | L105: 0.8888 | M105: =L6 -> 1.2567 | N105: =M105*L105 -> 1.1169 | O105: =M6 -> 1.7839 | P105: =O105*L105 -> 1.5855
B106: 金鹏航空 | D106: 1.0000 | E106: =ROUND(E$98/E98,4) -> 1.0000 | F106: 1.0000 | G106: 1.0000 | H106: 1.0000 | I106: 1.0000 | J106: =ROUND(J$98/J98,4) -> 1.0000 | K106: 1.0000 | L106: 1.0000 | M106: =AVERAGE(M101:M105) -> 0.7094 | N106: =AVERAGE(N101:N105) -> 0.6742 | O106: =AVERAGE(O101:O105) -> 2.0509 | P106: =AVERAGE(P101:P105) -> 0.7137
M108: =#REF!-103006.220879 ->  | O108: =标的公司IS!F5 -> 0
M110: =N106*M108 ->  | O110: =P106*O108 -> 0
N111: =AVERAGE(M110:O110) -> 
M113: =M110*1.16 ->  | N113: =N111*1.15 -> 

Sheet 估算表 (hidden)
A1: 市场法评估计算表
A2: 评估基准日：2018年12月31日
I3: 表2-2
A4: 被评估单位：金鹏航空股份有限公司 | I4: 单位：万元
A5: 序号 | B5: 企业名称 | D5: 五年平均值 | G5: 最近12个月
D6: NOIAT 比率乘数 | E6: EBIT 比率乘数 | F6: EBITDA 比率乘数 | G6: =D6 -> NOIAT 比率乘数 | H6: =E6 -> EBIT 比率乘数 | I6: =F6 -> EBITDA 比率乘数
A7: =ROW()-6 -> 1 | B7: 被评估公司比率乘数取值 | D7: =#REF! ->  | E7: =#REF! ->  | F7: =#REF! ->  | G7: ='2-交易案例比较法'!#REF!*0.9 ->  | I7: ='2-交易案例比较法'!#REF!*0.9 ->  | K7: =I7*I8 -> 
A8: 2 | B8: 被评估公司对应参数 | D8: 42,257.77 | E8: 2,980.42 | F8: 43,002.87 | G8: =#REF!/2 ->  | H8: =#REF! ->  | I8: =#REF!/2 -> 
A9: 3 | B9: 被评估公司全投资计算价值 | D9: =D7*D8 ->  | G9: =G7*G8 ->  | I9: =I7*I8 ->  | K9: 经营性资产价值 | L9: =D17 ->  | O9: D
A10: 4 | B10: 被评估公司负息负债 | D10: =H10 -> 351,047.70 | E10: =I10 -> 351,047.70 | F10: 0.00 | G10: =L12 -> 351,047.70 | H10: =G10 -> 351,047.70 | I10: =H10 -> 351,047.70 | K10: 可比付息债务 | L10: =L9*L11 ->  | O10: E
A11: 5 | B11: 被评估企业股权价值 | D11: =D9-D10 ->  | G11: =G9-G10 ->  | I11: =I9-I10 ->  | K11: D/(E+D) | L11: =指标参数全表!H26 -> 
A12: 6 | B12: 缺少流通折扣率 | D12: 16.35% | E12: 16.35% | F12: 16.35% | G12: 22.08% | H12: =G12 -> 22.08% | I12: =H12 -> 22.08% | K12: 账面付息债务 | L12: 351,047.70 | N12: 65.00%
A13: 7 | B13: 控制权溢价率 | G13: =#REF! ->  | H13: =G13 ->  | I13: =H13 ->  | K13: 非经营性付息债务 | L13: =L12-L10 ->  | N13: 30.00%
A14: 8 | B14: 被评估企业经营性资产构成的股权价值 | D14: =(D11-#REF!-#REF!)*(1-D12) ->  | E14: =(E11-#REF!-#REF!)*(1-E12) ->  | F14: =(F11-#REF!-#REF!)*(1-F12) ->  | G14: =G11*(1-G12)*(1+G13) ->  | H14: =H11*(1-H12)*(1+H13) ->  | I14: =I11*(1-I12)*(1+I13) -> 
A15: 9 | B15: 非经营性资产、溢余资产净值 | D15: =H15 -> 170,000.00 | E15: =I15 -> 170,000.00 | F15: 0.00 | G15: =K15 -> 170,000.00 | H15: =G15 -> 170,000.00 | I15: =H15 -> 170,000.00 | K15: 170,000.00 | L15: 630,707.63
A16: 10 | B16: 被评估公司股权市场价值(取整) | D16: =ROUND((D14-D15),-2) ->  | E16: =ROUND((E14-E15),-2) ->  | F16: =ROUND((F14-F15),-2) ->  | G16: =ROUND((G14+G15),2) ->  | I16: =ROUND((I14+I15),2) -> 
A17: 11 | B17: 评估结果(全部股权) | D17: =AVERAGE(G16:I16) ->  | N17: 37.00 | P17: =AVERAGE(P16:R16) -> 
N18: =N17*1.08 -> 39.96

Sheet 指标参数全表 (hidden)
A1: 证券代码 | B1: 证券名称 | C1: 总市值（30日平均值） [交易日期] 20200930 [单位] 万元 | D1: 带息债务 [报告期] 20200930 [单位] 万元 | E1: 溢余资产、非经营性资产 [报告期] 20200930 [单位] 万元 | F1: 少数股权价值 [报告期] 20200930 [单位] 万元 | G1: 归属于母公司所有者权益合计 [报告期] 20200930 [单位] 万元 | H1: 息税前利润EBIT [报告期] 20200930 [单位] 万元 | I1: 息税折旧/摊销前利润EBITDA [报告期] 20200930 [单位] 万元 | J1: 税后现金流NOIAT [报告期] 20200930 [单位] 万元 | K1: 净利润（调整后） [报告期] 20191231 [单位] 万元 | L1: 净资产 [报告期] 20200930 [单位] 万元
A2: 000988.SZ | B2: 华工科技 | C2: =可比案例总市值!F205/10000 -> 0 | G2: =#REF! -> 
A3: 002008.SZ | B3: 大族激光 | C3: =可比案例总市值!L205/10000 -> 0 | G3: =#REF! -> 
A4: 688025.SH | B4: 杰普特 | C4: =可比案例总市值!R205/10000 -> 0 | G4: =#REF! -> 
A5: 300747.SZ | B5: 锐科激光 | C5: =可比案例总市值!X205/10000 -> 0 | G5: =#REF! -> 
N8: =AVERAGE(N5:N7) -> 
A9: 数据来源：同花顺iFinD
A11: 证券代码 | B11: 证券名称 | C11: NOIAT价值比率 | D11: EBIT价值比率 | E11: EBITDA价值比率 | F11: EBITDAR价值比率 | G11: EBITDAR价值比率2 | H11: P/S | I11: P/E | J11: P/B
A12: =A2 -> 000988.SZ | B12: 华工科技 | C12: =(C2+D2)/N2 ->  | D12: =(C2+D2)/H2 ->  | E12: =(C2+D2)/L2 ->  | F12: =(D2+E2)/#REF! -> 
A13: 002008.SZ | B13: 大族激光 | C13: =(C3+D3)/N3 ->  | D13: =(C3+D3)/H3 ->  | E13: =(C3+D3)/L3 ->  | F13: =(D3+E3)/#REF! -> 
A14: 688025.SH | B14: 杰普特 | C14: =(C4+D4)/N4 ->  | D14: =(C4+D4)/H4 ->  | E14: =(C4+D4)/L4 ->  | F14: =(D4+E4)/#REF! -> 
A15: 300747.SZ | B15: 锐科激光 | C15: =(C5+D5)/I5 ->  | D15: =(C5+D5)/G5 ->  | E15: =(C5+D5)/H5 ->  | H15: =C5/F5 ->  | I15: =C5/J5 ->  | J15: =C5/K5 -> 
A16: 0 | B16: 0 | C16: =(C6+D6)/I6 ->  | E16: =(C6+D6)/H6 ->  | H16: =C6/F6 ->  | I16: =C6/J6 ->  | J16: =C6/K6 -> 
A17: 0 | B17: 0 | C17: =(C7+D7)/I7 ->  | E17: =(C7+D7)/H7 ->  | H17: =C7/F7 ->  | I17: =C7/J7 ->  | J17: =C7/K7 -> 
E18: =AVERAGE(E16:E17) -> 
A19: 证券代码 | B19: 证券名称 | C19: NOIAT价值比率 | D19: EBIT价值比率 | E19: EBITDA价值比率 | F19: =F11 -> EBITDAR价值比率 | G19: =G11 -> EBITDAR价值比率2 | H19: =H11 -> P/S | I19: =I11 -> P/E | J19: =J11 -> P/B
A20: =A12 -> 000988.SZ | B20: 华工科技 | C20: =(C2+D2-E2+F2)/J2 ->  | D20: =(C2+D2-E2+F2)/H2 ->  | E20: =(C2+D2-E2+F2)/I2 ->  | F20: =(C2+D2+AD2*7-E2)/(AD2+L2) ->  | G20: =(C2+D2-E2)/(AD2+L2) ->  | H20: =ROUND((C2-E2)/G2,4) ->  | I20: =(C2-E2)/K2 ->  | J20: =(C2-E2)/(L2-E2) -> 
A21: 002008.SZ | B21: 大族激光 | C21: =(C3+D3-E3+F3)/J3 ->  | D21: =(C3+D3-E3+F3)/H3 ->  | E21: =(C3+D3-E3+F3)/I3 ->  | F21: =(C3+D3+AD3*7-E3)/(AD3+L3) ->  | G21: =(C3+D3-E3)/(AD3+L3) ->  | J21: =(C3-E3)/(L3-E3) -> 
A22: 688025.SH | B22: 杰普特 | F22: =(C4+D4+AD4*7-E4)/(AD4+L4) ->  | G22: =(C4+D4-E4)/(AD4+L4) ->  | J22: =(C4-E4)/(L4-E4) -> 
A23: 300747.SZ | B23: 锐科激光 | C23: =(C5+D5-E5+F5)/J5 ->  | D23: =(C5+D5-E5+F5)/H5 ->  | E23: =(C5+D5-E5+F5)/I5 ->  | F23: =(C5+D5+AD5*7-E5)/(AD5+L5) ->  | G23: =(C5+D5-E5)/(AD5+L5) ->  | H23: =ROUND((C5-E5)/G5,4) ->  | J23: =(C5-E5)/(L5-E5) ->  | K23: =H23/2 -> 
A24: 0 | B24: 0 | F24: =(C6+D6+AD6*7-E6)/(AD6+L6) ->  | G24: =(C6+D6-E6)/(AD6+L6) ->  | J24: =(C6-E6)/(L6-E6) ->  | K24: =H24/2 -> 
A25: 0 | B25: 0 | F25: =(C7+D7+AD7*7-E7)/(AD7+K7) ->  | G25: =(C7+D7-E7)/(AD7+K7) ->  | H25: =ROUND((C7-E7)/G7,4) ->  | J25: =(C7-E7)/(K7-E7) ->  | K25: =H25/2 -> 
B26: 平均值 | C26: =AVERAGE(C24:C25) ->  | D26: =AVERAGE(D24:D25) ->  | E26: =AVERAGE(E24:E25) ->  | F26: =AVERAGE(F23:F25) ->  | G26: =AVERAGE(G23:G25) ->  | H26: =AVERAGE(H23:H25) ->  | I26: =AVERAGE(I23:I25) ->  | J26: =AVERAGE(J23:J25) -> 
H29: =H26 -> 
H30: =H29*(1-流动性折扣!#REF!) -> 
H31: =H30*0.8*标的公司IS!G4 -> 

Sheet 评估结果-EV (hidden)
A2: 证券代码 | B2: 证券名称 | C2: 总市值 [交易日期] 20211231 [单位] 万元 | D2: 净利润 [报告期] 20211231（预测） [单位] 万元 | E2: 带息债务 [报告期] 20210930 [单位] 万元 | F2: 溢余资产、非经营性资产 [报告期] 20200930 [单位] 万元 | G2: 企业整体价值/息税前利润（EV/EBIT） [报告期] 20211231（预测） [单位] % | H2: 修正系数 | I2: 企业整体价值/息税前利润（EV/EBIT）修正后 [报告期] 20211231（预测） [单位] %
A3: 300520.SZ | B3: 科大国创 | C3: =可比案例总市值!E336 -> 0 | D3: =#REF! ->  | E3: =#REF! ->  | F3: =#REF! ->  | G3: =(C3+E3-F3)/D3 ->  | H3: ='2-交易案例比较法'!#REF! ->  | I3: =ROUND(G3*H3,4) -> 
A4: 300608.SZ | B4: 思特奇 | C4: =可比案例总市值!AS336 -> 0 | D4: =#REF! ->  | E4: =#REF! ->  | F4: =#REF! ->  | G4: =(C4+E4-F4)/D4 ->  | H4: ='2-交易案例比较法'!#REF! ->  | I4: =ROUND(G4*H4,4) -> 
A5: 300166.SZ | B5: 东方国信 | C5: =可比案例总市值!Y336 -> 0 | D5: =#REF! ->  | E5: =#REF! ->  | F5: =#REF! ->  | G5: =(C5+E5-F5)/D5 ->  | H5: ='2-交易案例比较法'!#REF! ->  | I5: =ROUND(G5*H5,4) -> 
B6: 平均值 | G6: =AVERAGE(G3:G5) ->  | I6: =AVERAGE(I3:I5) -> 
A10: 序号 | B10: 比较指标 | C10: 交易案例 | D10: 上市公司比较 | E10: 取值
A11: 1 | B11: P/E | D11: =I6 ->  | E11: =D11 -> 
A12: 2 | E12: =D12 -> 0
A13: 平均值 | E13: 元/股
A14: 股数 | C14: =#REF! ->  | D14: 万股
A15: 1980万股权益 | C15: =C13*1980 -> 0 | D15: 万元
A16: 股东权益合计 | C16: =C14*C13 ->  | D16: 万元
A17: 归属母公司股东权益 | C17: =#REF! ->  | D17: 万元
A18: 增值率 | C18: =C16/C17-1 -> 
A19: PB | C19: =C16/C17 -> 
D20: =C16*2000/402168.86 -> 
C23: =C16-C17 -> 
A25: 归属母公司净利润 | B25: =标的公司IS!F50 -> 0.00
A26: 营业收入 | B26: =标的公司IS!G4 -> 0.00
A27: 流动性折扣 | B27: =流动性折扣!G23 -> 38.15%
A28: 缺少控制折扣率 | B28: 0.00%
A29: 付息债务 | B29: 32,219.70
A30: 非经营性资产 | B30: 33,072.05 | D30: 万元
A31: 股东全部权益价值 | B31: =ROUND(((B25*E11-B29)*(1-B27)+B30)*(1-B28),2) ->  | C31: 未考虑控股权溢价 | D31: 万元
A32: 持股比例 | B32: 100%
A33: 被评估单位持股价值 | B33: =ROUND(B31*B32,2) -> 
B35: B | C35: A
A36: 净资产 | B36: 收益法评估值 | C36: 市场法评估值 | D36: 市场法评估增值 | E36: 市场法增值率 | F36: 市场法与收益法增值 | G36: 增值率
A37: =#REF! ->  | C37: =B31 ->  | D37: =C37-A37 ->  | E37: =D37/A37 ->  | F37: =B37-C37 ->  | G37: =F37/C37 -> 
C38: =ROUND(C37,2)*10000 -> 
A42: 账面价值 | B42: 收益法评估值 | C42: 市场法评估值 | D42: 市场法评估增值 | E42: 市场法增值率 | F42: 市场法与收益法增值 | G42: 增值率
A43: 10,137.20 | C43: =B33 ->  | D43: =C43-A43 ->  | E43: =D43/A43 ->  | F43: =B43-C43 ->  | G43: =F43/C43 -> 
C44: =ROUND(C43,2)*10000 -> 

Sheet 2-交易案例比较法
A2: 证券代码 | B2: 证券名称 | C2: 成交日期 | D2: 交易对价 [单位] 万元 | E2: 归属母公司权益 [报表类型] 合并报表 [单位] 万元 | F2: 非经营性资产 | G2: 市净率（P/B） [报告期] [单位] 倍
A3: 1 | B3: 太仓农商行 | C3: 2022-02-01 | D3: 394,914.05 | E3: 537,305.56 | G3: 0.7350
A4: 2 | B4: 攀枝花农商行 | C4: 2024-04-18 | D4: 158,103.11 | E4: 225,077.04 | G4: 0.7024
A5: 3 | B5: 大丰农商行 | C5: 2023-12-25 | D5: 396,308.56 | E5: 577,531.10 | G5: 0.6862
A11: 证券代码 | B11: 证券简称 | C11: 盈利能力 | G11: 经营增长 | H11: 资产质量 | K11: 偿付能力 | N11: 企业规模 | Q11: 交易日期
C12: 资本利润率% | D12: 资产利润率% | E12: 成本收入比% | F12: 股利分配率 | G12: 利润增长率% | H12: 不良贷款率% | I12: 拨备覆盖率% | J12: 流动性比例% | K12: 资本充足率% | L12: 一级资本充足率% | M12: 核心一级资本充足率% | N12: 总资产（亿元） | O12: 贷款规模（亿元） | P12: 存款规模（亿元） | Q12: 成交日期
A13: 1 | B13: 太仓农商行 | C13: 8.75 | D13: 0.73 | E13: 37.22 | F13: 24.31 | G13: 8.87 | H13: 1.51 | I13: 309.75 | J13: 55.86 | K13: 14.01 | L13: 12.89 | M13: 12.10 | N13: 588.77 | O13: 350.28 | P13: 474.94 | Q13: 2022-02-01
A14: 2 | B14: 攀枝花农商行 | C14: 3.60 | D14: 0.33 | E14: 42.64 | F14: 43.74 | G14: 357.58 | H14: 3.11 | I14: 137.43 | J14: 49.58 | K14: 14.61 | L14: 13.52 | M14: 13.52 | N14: 341.90 | O14: 180.89 | P14: 260.66 | Q14: 2024-04-18
A15: 3 | B15: 大丰农商行 | C15: 9.09 | D15: 1.11 | E15: 36.60 | F15: 17.86 | G15: -11.87 | H15: 1.12 | I15: 271.58 | J15: 45.26 | K15: 14.37 | L15: 13.30 | M15: 13.30 | N15: 640.94 | O15: 407.10 | P15: 535.68 | Q15: 2023-12-25
A16: 标的公司 | B16: 大丰农商行 | C16: 9.09 | D16: 1.11 | E16: 36.60 | F16: 17.86 | G16: -11.87 | H16: 1.12 | I16: 271.58 | J16: 45.26 | K16: 14.37 | L16: 13.30 | M16: 13.30 | N16: 640.94 | O16: 407.10 | P16: 535.68 | Q16: 2023-12-01
A17: 权重 | C17: 20% | D17: 10.00% | E17: 5.00% | G17: 5.00% | H17: 10.00% | I17: 5.00% | K17: 15.00% | M17: 15.00% | N17: 5.00% | O17: 5.00%
A19: 指标打分 | C19: 盈利能力 | G19: 经营增长 | H19: 资产质量 | K19: 偿付能力 | N19: 企业规模 | Q19: 交易日期
A20: 证券代码 | B20: 证券简称 | C20: 资本利润率% | D20: 资产利润率% | E20: 成本收入比% | F20: 股利分配率 | G20: 利润增长率% | H20: 不良贷款率% | I20: 拨备覆盖率% | J20: 流动性比例% | K20: 资本充足率% | L20: 一级资本充足率% | M20: 核心一级资本充足率% | N20: 总资产（亿元） | O20: 贷款规模（亿元） | P20: 存款规模（亿元） | Q20: 成交日期
A21: 1 | B21: 太仓农商行 | C21: 一般 | D21: 一般 | E21: 一般 | F21: 一般 | G21: 良好 | H21: 良好 | I21: 优秀 | J21: 一般 | K21: 一般 | L21: 一般 | M21: 一般 | N21: 中 | O21: 中 | P21: 中 | Q21: 较远
A22: 2 | B22: 攀枝花农商行 | C22: 较低 | D22: 较低 | E22: 较低 | F22: 优秀 | G22: 优秀 | H22: 一般 | I22: 较低 | J22: 较低 | K22: 一般 | L22: 一般 | M22: 优秀 | N22: 较小 | O22: 较小 | P22: 较小 | Q22: 近
A23: 3 | B23: 大丰农商行 | C23: 一般 | D23: 良好 | E23: 一般 | F23: 低 | G23: 低 | H23: 优秀 | I23: 优秀 | J23: 较低 | K23: 一般 | L23: 一般 | M23: 优秀 | N23: 中 | O23: 中 | P23: 中 | Q23: 近
A24: 标的公司 | B24: 大丰农商行 | C24: 一般 | D24: 良好 | E24: 一般 | F24: 低 | G24: 低 | H24: 优秀 | I24: 优秀 | J24: 较低 | K24: 一般 | L24: 一般 | M24: 优秀 | N24: 中 | O24: 中 | P24: 中 | Q24: 近
A27: 指标打分 | C27: 盈利能力 | G27: 经营增长 | H27: 资产质量 | K27: 偿付能力 | N27: 企业规模 | Q27: 交易日期
A28: 证券代码 | B28: 证券简称 | C28: 资本利润率% | D28: 资产利润率% | E28: 成本收入比% | F28: 股利分配率 | G28: 利润增长率% | H28: 不良贷款率% | I28: 拨备覆盖率% | J28: 流动性比例% | K28: 资本充足率% | L28: 一级资本充足率% | M28: 核心一级资本充足率% | N28: 总资产（亿元） | O28: 贷款规模（亿元） | P28: 存款规模（亿元） | Q28: 成交日期
A29: 1 | B29: 太仓农商行 | C29: 100.00 | D29: 100.00 | E29: 100.00 | F29: 100.00 | G29: 103.00 | H29: 101.00 | I29: 102.00 | J29: 100.00 | K29: 100.00 | L29: 100.00 | M29: 100.00 | N29: 100.00 | O29: 100.00 | P29: 100.00 | Q29: 103.00
A30: 2 | B30: 攀枝花农商行 | C30: 99.00 | D30: 99.00 | E30: 99.00 | F30: 108.00 | G30: 106.00 | H30: 100.00 | I30: 99.00 | J30: 99.00 | K30: 100.00 | L30: 100.00 | M30: 102.00 | N30: 99.00 | O30: 99.00 | P30: 99.00 | Q30: 100.00
A31: 3 | B31: 大丰农商行 | C31: 100.00 | D31: 101.00 | E31: 100.00 | F31: 92.00 | G31: 94.00 | H31: 102.00 | I31: 102.00 | J31: 99.00 | K31: 100.00 | L31: 100.00 | M31: 102.00 | N31: 100.00 | O31: 100.00 | P31: 100.00 | Q31: 100.00
A32: 标的公司 | B32: 大丰农商行 | C32: 100.00 | D32: 101.00 | E32: 100.00 | F32: 92.00 | G32: 94.00 | H32: 102.00 | I32: 102.00 | J32: 99.00 | K32: 100.00 | L32: 100.00 | M32: 102.00 | N32: 100.00 | O32: 100.00 | P32: 100.00 | Q32: 100.00
A34: 修正指标 | C34: 盈利能力 | G34: 经营增长 | H34: 资产质量 | K34: 偿付能力 | N34: 企业规模 | Q34: 交易日期
A35: 证券代码 | B35: 证券简称 | C35: 资本利润率% | D35: 资产利润率% | E35: 成本收入比% | F35: 股利分配率 | G35: 利润增长率% | H35: 不良贷款率% | I35: 拨备覆盖率% | J35: 流动性比例% | K35: 资本充足率% | L35: 一级资本充足率% | M35: 核心一级资本充足率% | N35: 总资产（亿元） | O35: 贷款规模（亿元） | P35: 存款规模（亿元） | Q35: 成交日期
A36: 1 | B36: 太仓农商行 | C36: 1.0000 | D36: 1.0100 | E36: 1.0000 | F36: 0.9200 | G36: 0.9126 | H36: 1.0099 | I36: 1.0000 | J36: 0.9900 | K36: 1.0000 | L36: 1.0000 | M36: 1.0200 | N36: 1.0000 | O36: 1.0000 | P36: 1.0000 | Q36: 0.9709
A37: 2 | B37: 攀枝花农商行 | C37: 1.0101 | D37: 1.0202 | E37: 1.0101 | F37: 0.8519 | G37: 0.8868 | H37: 1.0200 | I37: 1.0303 | J37: 1.0000 | K37: 1.0000 | L37: 1.0000 | M37: 1.0000 | N37: 1.0101 | O37: 1.0101 | P37: 1.0101 | Q37: 1.0000
A38: 3 | B38: 大丰农商行 | C38: 1.0000 | D38: 1.0000 | E38: 1.0000 | F38: 1.0000 | G38: 1.0000 | H38: 1.0000 | I38: 1.0000 | J38: 1.0000 | K38: 1.0000 | L38: 1.0000 | M38: 1.0000 | N38: 1.0000 | O38: 1.0000 | P38: 1.0000 | Q38: 1.0000
A39: 标的公司 | B39: 大丰农商行 | C39: 1.0000 | D39: 1.0000 | E39: 1.0000 | F39: 1.0000 | G39: 1.0000 | H39: 1.0000 | I39: 1.0000 | J39: 1.0000 | K39: 1.0000 | L39: 1.0000 | M39: 1.0000 | N39: 1.0000 | O39: 1.0000 | P39: 1.0000 | Q39: 1.0000

Sheet 非经营性资产 (hidden)
A1: 非经营性资产、负债表评估表
A2: 评估基准日： | C2: 2020-09-30 | D2: 项目要素表 | E2: 索引号：CY6-4
A3: 被评估单位名称： | E3: 单位：人民币 万元
A4: 序号 | B4: 项目 | C4: 账面价值 | D4: 评估值 | E4: 备注
A5: 一 | B5: 现金类非经营性资产
A6: 1 | B6: 多余现金 | C6: 0
A7: 2 | B7: 可变现有价证券
A8: 3 | B8: 现金类非经营性资产小计 | D8: =SUM(D6:D7) -> 0
A10: 二 | B10: 非现金类非经营性资产
A11: 1 | B11: 其他应收款-对外借出款 | C11: 0
A12: 2 | B12: 长期投权投资 | C12: 0
A13: 3 | B13: 其他流动资产
A14: 4
A15: 5
A16: 6 | B16: 非现金类非经营性资产小计 | D16: =SUM(D11:D15) -> 0 | H16: =D8+D16 -> 0
A17: 三 | B17: 非经营性负债
A18: 1
A19: 2
A20: 3
A21: 4
A22: 5
A23: 6
A24: 7
A25: 8
A26: 9 | B26: 非经营性负债小计 | D26: =SUM(D18:D25) -> 0
A27: 四 | B27: 非经营性资产、负债净值 | D27: =D8+D16-D26 -> 0

Sheet 评价指标及计分表 (hidden)
A1: 评价内容 | C1: 银行类 | E1: 选取指标
A2: 指标 | B2: 权重(%) | C2: 指标 | D2: 权数 | E2: 权数
A3: 盈利能力状况 | B3: 30-60 | C3: 资本利润率 | D3: 15 | E3: 20 | F3: 资本利润率（净资产收益率）=净利润/净资产平均余额×100% 净资产平均余额＝（年初所有者权益余额＋年末所有者权益余额）/2
C4: 资产利润率 | D4: 10 | E4: 10 | F4: 资产利润率（总资产报酬率）=利润总额/资产平均总额×100% 资产平均总额＝（年初资产总额＋年末资产总额）/2
C5: 成本收入比 | D5: 5 | E5: 5 | F5: 成本收入比＝营业费用/营业收入×100%
A7: 经营增长状况 | B7: 25-40 | C7: 国有资本保值增值率 | D7: 10
C8: 利润增长率 | D8: 5 | E8: 5 | F8: 利润增长率＝（本年利润总额－上年利润总额）/上年利润总额×100%
C9: 经济利润率 | D9: 5 | F9: 经济利润率＝（净利润－净资产平均余额×资金成本）/净资产平均余额×100%
A10: 资产质量状况 | B10: 15-25 | C10: 不良贷款率 | D10: 10 | E10: 10 | F10: 不良贷款率=（次级类贷款＋可疑类贷款＋损失类贷款）/各类贷款余额×100%
C11: 拨备覆盖率 | D11: 5 | E11: 5 | F11: 拨备覆盖率=贷款减值准备/（次级类贷款＋可疑类贷款＋损失类贷款）×100%
C12: 杠杆率 | D12: 5
A13: 偿付能力状况 | B13: 15-25 | C13: 资本充足率 | D13: 15 | E13: 15 | F13: 资本充足率=（资本—扣除项）/（风险加权资产+12.5倍的市场风险资本）×100% 资本扣除项=商誉+对未并表银行机构资本投资+对未并表非银行金融机构资本投资+对非自用不动产投资+对工商企业资本投资+贷款损失准备尚未提足部分。
C14: 核心资本充足率 | D14: 15 | E14: 15
A15: 规模指标 | C15: 营业收入（万元） | D15: 5 | E15: 5
C16: 总资产（万元） | D16: 5 | E16: 5
C17: 贷款规模（万元） | D17: 5 | E17: 5
A20: 序号 | B20: 指标类型 | C20: 基本指标 | D20: 指标权重
A21: 1 | B21: =A3 -> 盈利能力状况 | C21: =C3 -> 资本利润率 | D21: =E3/100 -> 20.00%
C22: =C4 -> 资产利润率 | D22: =E4/100 -> 10.00%
C23: =C5 -> 成本收入比 | D23: =E5/100 -> 5.00%
A24: 2 | B24: =A7 -> 经营增长状况 | C24: =C8 -> 利润增长率 | D24: =E8/100 -> 5.00%
A25: 3 | B25: =A10 -> 资产质量状况 | C25: =C10 -> 不良贷款率 | D25: =E10/100 -> 10.00%
C26: =C11 -> 拨备覆盖率 | D26: =E11/100 -> 5.00%
A27: 4 | B27: =A13 -> 偿付能力状况 | C27: =C13 -> 资本充足率 | D27: =E13/100 -> 15.00%
C28: =C14 -> 核心资本充足率 | D28: =E14/100 -> 15.00%
A29: 5 | B29: 规模指标 | C29: 营业收入（万元） | D29: =E15/100 -> 5.00%
C30: 总资产（万元） | D30: =E16/100 -> 5.00%
C31: 贷款规模（万元） | D31: =E17/100 -> 5.00%
A32: 合计 | D32: =SUM(D21:D31) -> 100.00%

Sheet 桂林银行 (hidden)
B1: 资产负债表 | J1: 利润表
B2: =[2]封面!A12 -> 评估基准日：2023年12月31日 | L2: =B2 -> 评估基准日：2023年12月31日
B3: 桂林银行股份有限公司 | G3: 单位：万元 | J3: =B3 -> 桂林银行股份有限公司 | O3: 单位：万元
B4: 科目名称 | C4: 2017年 | D4: 2018年 | E4: 2019年 | F4: 2020年 | G4: 2021年 | H4: 平均值 | J4: 科目名称 | K4: =C4 -> 2017年 | L4: =D4 -> 2018年 | M4: =E4 -> 2019年 | N4: =F4 -> 2020年 | O4: =G4 -> 2021年
B5: 资产： | J5: 一、营业收入 | K5: =SUM(K6,K9,K12,K14,K15,K16,K17,K18) -> 0 | L5: =SUM(L6,L9,L12,L14,L15,L16,L17,L18) -> 652,901.07 | M5: =SUM(M6,M9,M12,M14,M15,M16,M17,M18) -> 728,069.62 | N5: =SUM(N6,N9,N12,N14,N15,N16,N17,N18) -> 789,203.94 | O5: =SUM(O6,O9,O12,O14,O15,O16,O17,O18) -> 951,155.70
B6: 现金及存放中央银行款项 | D6: 2,743,231.51 | E6: 2,444,023.44 | F6: 2,200,038.93 | G6: 2,726,651.22 | J6: 利息净收入 | K6: =K7-K8 -> 0 | L6: =L7-L8 -> 480,465.87 | M6: =M7-M8 -> 541,905.97 | N6: =N7-N8 -> 488,397.42 | O6: =O7-O8 -> 853,442.35
B7: 存放同业款项 | D7: 896,801.95 | E7: 465,799.04 | F7: 769,540.92 | G7: 1,069,731.18 | J7: 利息收入 | L7: 1,150,749.81 | M7: 1,367,791.07 | N7: 1,454,567.99 | O7: 1,935,863.87
B8: 拆出资金 | D8: 100,000.00 | E8: 120,889.60 | F8: 95,500.00 | G8: 92,940.91 | J8: 利息支出 | L8: 670,283.94 | M8: 825,885.10 | N8: 966,170.57 | O8: 1,082,421.51
B9: 衍生金融资产 | D9: 0 | E9: 0 | F9: 0 | G9: 0 | J9: 手续费及佣金净收入 | K9: =K10-K11 -> 0 | L9: =L10-L11 -> 51,279.51 | M9: =M10-M11 -> 2,749.91 | N9: =N10-N11 -> 8,783.94 | O9: =O10-O11 -> 8,963.90
B10: 交易性金融资产 | D10: 120,421.15 | E10: 1,011,812.67 | F10: 1,043,131.11 | G10: 1,518,015.23 | J10: 手续费及佣金收入 | L10: 78,116.53 | M10: 53,675.14 | N10: 59,520.53 | O10: 69,589.57
B11: 买入返售金融资产 | D11: 981,153.92 | E11: 1,593,709.10 | F11: 1,327,456.97 | G11: 2,208,338.58 | J11: 手续费及佣金支出 | L11: 26,837.02 | M11: 50,925.23 | N11: 50,736.59 | O11: 60,625.67
B12: 应收利息 | D12: 243,949.07 | E12: 327,405.46 | F12: 424,140.39 | G12: 0 | J12: 投资收益 | L12: 111,026.30 | M12: 176,969.81 | N12: 282,032.12 | O12: 43,880.43
B13: 其他应收款 | D13: 0 | E13: 0 | F13: 0 | G13: 0 | J13: 其中：对联营公司的投资收益 | L13: 0 | M13: 0 | N13: 0 | O13: 0
B14: 发放贷款及垫款净额 | D14: 13,575,707.48 | E14: 16,576,856.36 | F14: 20,286,442.71 | G14: 24,213,048.29 | J14: 公允价值变动收益 | L14: 4,666.97 | M14: 3,039.88 | N14: -2,663.38 | O14: 1,374.65
B15: 可供出售金融资产 | D15: 933,299.57 | E15: 959,563.14 | F15: 857,668.61 | G15: 0 | J15: 汇兑损益 | L15: 2,447.42 | M15: 1,817.80 | N15: 1,722.03 | O15: 2,515.81
B16: 其他债权投资 | D16: 0 | E16: 0 | F16: 0 | G16: 113,158.49 | J16: 其他业务收入 | L16: 203.40 | M16: 172.04 | N16: 119.15 | O16: 179.54
B17: 持有至到期投资 | D17: 2,266,218.42 | E17: 3,340,901.81 | F17: 6,508,580.55 | G17: 0 | J17: 资产处置收益 | L17: 23.06 | M17: 4.94 | N17: 147.69 | O17: 42.40
B18: 债权投资 | D18: 0 | E18: 0 | F18: 0 | G18: 11,475,622.37 | J18: 其他收益 | L18: 2,788.54 | M18: 1,409.27 | N18: 10,664.96 | O18: 40,756.60
B19: 其他权益工具投资 | D19: 0 | E19: 0 | F19: 0 | G19: 2,349.01 | J19: 二、营业支出 | K19: =SUM(K20:K24) -> 0 | L19: =SUM(L20:L24) -> 457,668.24 | M19: =SUM(M20:M24) -> 578,744.74 | N19: =SUM(N20:N24) -> 653,544.11 | O19: =SUM(O20:O24) -> 795,116.75
B20: 长期股权投资 | D20: 0 | E20: 0 | F20: 0 | G20: 0 | J20: 税金及附加 | L20: 6,385.06 | M20: 8,281.76 | N20: 14,852.97 | O20: 16,016.81
B21: 应收款项类投资 | D21: 4,407,965.91 | E21: 3,822,009.41 | F21: 3,602,687.01 | G21: 0 | J21: 业务及管理费 | L21: 206,376.83 | M21: 254,266.16 | N21: 281,855.11 | O21: 339,545.71
B22: 投资性房地产 | D22: 97.67 | E22: 90.55 | F22: 2.11 | G22: 0 | J22: 信用减值损失 | L22: 0 | M22: 0 | N22: 0 | O22: 433,126.99
B23: 抵债资产 | D23: 0 | E23: 0 | F23: 0 | G23: 0 | J23: 其他资产减值损失 | L23: 244,902.60 | M23: 316,189.69 | N23: 356,829.02 | O23: 6,418.67
B24: 固定资产 | D24: 51,513.08 | E24: 172,420.96 | F24: 179,182.34 | G24: 204,620.89 | J24: 其他业务成本 | L24: 3.75 | M24: 7.13 | N24: 7.01 | O24: 8.57
B25: 在建工程 | D25: 114,594.84 | E25: 30,250.03 | F25: 34,087.24 | G25: 22,777.56 | J25: 三、营业利润 | K25: =K5-K19 -> 0 | L25: =L5-L19 -> 195,232.83 | M25: =M5-M19 -> 149,324.89 | N25: =N5-N19 -> 135,659.82 | O25: =O5-O19 -> 156,038.94
D26: 0 | E26: 0 | F26: 0 | G26: 0 | J26: 加：营业外收入 | L26: 670.46 | M26: 368.90 | N26: 1,286.75 | O26: 750.82
B27: 使用权资产 | D27: 0 | E27: 0 | F27: 0 | G27: 63,600.74 | J27: 减：营业外支出 | L27: 1,038.38 | M27: 1,519.63 | N27: 6,131.43 | O27: 1,488.46
B28: 无形资产 | D28: 13,406.83 | E28: 24,805.24 | F28: 33,768.32 | G28: 37,014.63 | J28: 四、利润总额 | K28: =K25+K26-K27 -> 0 | L28: =L25+L26-L27 -> 194,864.91 | M28: =M25+M26-M27 -> 148,174.16 | N28: =N25+N26-N27 -> 130,815.15 | O28: =O25+O26-O27 -> 155,301.31
B29: 商誉 | D29: 42.73 | E29: 42.73 | F29: 42.73 | G29: 42.73 | J29: 减：所得税费用 | L29: 32,238.04 | M29: 19,125.07 | N29: 13,015.14 | O29: 10,475.36
B30: 递延所得税资产 | D30: 119,886.36 | E30: 162,401.98 | F30: 189,596.92 | G30: 245,209.13 | J30: 五、净利润 | K30: =K28-K29 -> 0 | L30: =L28-L29 -> 162,626.87 | M30: =M28-M29 -> 129,049.09 | N30: =N28-N29 -> 117,800.01 | O30: =O28-O29 -> 144,825.95
B31: 其他资产 | D31: 160,496.75 | E31: 174,364.18 | F31: 146,484.45 | G31: 262,669.27 | J31: 归属于母公司股东的净利润 | L31: 1,548,867,369.00 | M31: 1,171,095,206.00 | N31: 1,094,428,037.00 | O31: 1,341,479,527.00
B32: 资产总计 | C32: =SUM(C6:C31) -> 0 | D32: =SUM(D6:D31) -> 26,728,787.24 | E32: =SUM(E6:E31) -> 31,227,345.71 | F32: =SUM(F6:F31) -> 37,698,351.32 | G32: =SUM(G6:G31) -> 44,255,790.24 | J32: 少数股东损益 | L32: 77,401,356.00 | M32: 119,395,663.00 | N32: 83,572,091.00 | O32: 106,779,967.00
B33: 负债：
B34: 向中央银行借款 | D34: 814,076.98 | E34: 815,974.76 | F34: 1,523,975.00 | G34: 2,887,967.31 | K34: =K4 -> 2017年 | L34: =L4 -> 2018年 | M34: =M4 -> 2019年 | N34: =N4 -> 2020年 | O34: =O4 -> 2021年 | P34: 平均值
B35: 同业存放款项 | D35: 721,126.90 | E35: 449,279.01 | F35: 741,446.31 | G35: 978,742.82 | J35: 资本利润率% | M35: 6.66 | N35: 5.54 | O35: 6.46 | P35: =AVERAGE(M35:O35) -> 6.22
B36: 拆入资金 | D36: 221,754.00 | E36: 341,406.98 | F36: 303,399.53 | G36: 375,057.93 | J36: 资产利润率% | M36: 0.45 | N36: 0.34 | O36: 0.35 | P36: =AVERAGE(M36:O36) -> 0.38
B37: 衍生金融负债 | D37: 0 | E37: 0 | F37: 0 | G37: 0 | J37: 成本收入比% | M37: =M21/M5*100 -> 34.92 | N37: =N21/N5*100 -> 35.71 | O37: =O21/O5*100 -> 35.70 | P37: 35.45
B38: 卖出回购金融资产款 | D38: 36,000.00 | E38: 135,000.00 | F38: 50,000.00 | G38: 0 | J38: 利润增长率% | M38: =(M28/L28-1)*100 -> -23.96 | N38: =(N28/M28-1)*100 -> -11.72 | O38: =(O28/N28-1)*100 -> 18.72 | P38: -5.65
B39: 吸收存款 | D39: 18,586,812.03 | E39: 21,950,962.03 | F39: 26,553,655.31 | G39: 30,270,904.33 | J39: 不良贷款率% | M39: 1.75 | N39: 1.68 | O39: 1.69 | P39: 1.71
B40: 应付职工薪酬 | D40: 16,457.24 | E40: 26,198.19 | F40: 42,833.72 | G40: 30,922.88 | J40: 拨备覆盖率% | M40: 154.93 | N40: 140.67 | O40: 144.26 | P40: 146.62
B41: 应交税费 | D41: 33,760.32 | E41: 33,782.75 | F41: 23,861.18 | G41: 48,165.20 | J41: 流动性比例% | M41: 63.96 | N41: 85.76 | O41: 85.03 | P41: =AVERAGE(M41:O41) -> 78.25
B42: 应付股利 | D42: 0 | E42: 0 | F42: 0 | G42: 0 | J42: 资本充足率% | M42: 11.84 | N42: 11.67 | O42: 11.75 | P42: =AVERAGE(M42:O42) -> 11.75
B43: 应付利息 | D43: 149,824.40 | E43: 177,729.03 | F43: 226,978.05 | G43: 0 | J43: 一级资本充足率% | M43: 8.67 | N43: 9.05 | O43: 8.91 | P43: =AVERAGE(M43:O43) -> 8.88
B44: 其他应付款 | D44: 0 | E44: 0 | F44: 0 | G44: 0 | J44: 核心资本充足率% | M44: 8.65 | N44: 7.74 | O44: 7.65 | P44: =AVERAGE(M44:O44) -> 8.01
B45: 预计负债 | D45: 0 | E45: 0 | F45: 0 | G45: 11,627.92
B46: 租赁负债 | D46: 0 | E46: 0 | F46: 0 | G46: 60,887.35
B47: 应付债券 | D47: 4,162,620.29 | E47: 4,982,102.43 | F47: 5,580,829.19 | G47: 6,892,088.03
B48: 递延所得税负债 | D48: 0 | E48: 0 | F48: 0 | G48: 0
B49: 其他负债 | D49: 184,909.48 | E49: 241,731.47 | F49: 150,109.60 | G49: 78,298.93
B50: 负债合计 | C50: =SUM(C34:C49) -> 0 | D50: =SUM(D34:D49) -> 24,927,341.64 | E50: =SUM(E34:E49) -> 29,154,166.66 | F50: =SUM(F34:F49) -> 35,197,087.89 | G50: =SUM(G34:G49) -> 41,634,662.69
B51: 所有者权益：
B52: 股本 | D52: 451,800.00 | E52: 500,000.00 | F52: 500,000.00 | G52: 500,000.00
B53: 其他权益工具 | D53: 0 | E53: 0 | F53: 319,903.77 | G53: 319,903.77
B54: 资本公积 | D54: 718,978.24 | E54: 865,988.24 | F54: 865,988.24 | G54: 865,988.24
B55: 减：库存股 | D55: 0 | E55: 0 | F55: 0 | G55: 0
B56: 其他综合收益 | D56: 9,296.18 | E56: 8,548.76 | F56: 7,067.25 | G56: 20,120.01
B57: 盈余公积 | D57: 96,272.91 | E57: 107,102.84 | F57: 117,199.24 | G57: 129,089.42
B58: 一般风险准备 | D58: 375,033.44 | E58: 429,469.00 | F58: 522,579.17 | G58: 596,139.68
B59: 未分配利润 | D59: 75,053.91 | E59: 72,681.94 | F59: 68,918.17 | G59: 78,021.48
B60: 归属于母公司所有者权益（或股东权益）合计 | C60: =SUM(C52+C54++C56+C57+C58+C59) -> 0 | D60: =SUM(D52+D54++D56+D57+D58+D59+D53) -> 1,726,434.68 | E60: =SUM(E52+E54++E56+E57+E58+E59+E53) -> 1,983,790.78 | F60: =SUM(F52+F54++F56+F57+F58+F59+F53) -> 2,401,655.85 | G60: =SUM(G52+G54++G56+G57+G58+G59+G53) -> 2,509,262.60
B61: 少数股东权益 | D61: 75,010.92 | E61: 89,388.27 | F61: 99,607.58 | G61: 111,864.95
B62: 所有者权益合计 | D62: =D60+D61 -> 1,801,445.59 | E62: =E60+E61 -> 2,073,179.05 | F62: 2,501,263.43 | G62: 2,621,127.55
B63: 负债和所有者权益总计 | C63: =C50+C60 -> 0 | D63: =D50+D62 -> 26,728,787.24 | E63: =E50+E62 -> 31,227,345.71 | F63: 37,698,351.32 | G63: 44,255,790.24
C64: 历史数据 | D64: 历史数据 | E64: 历史数据 | F64: 历史数据 | G64: 历史数据
B65: CHECK | C65: =C32-C63 -> 0 | D65: =D32-D63 -> 0 | E65: =E32-E63 -> 0 | F65: =F32-F63 -> 0 | G65: =G32-G63 -> 0

Sheet 标的公司IS (hidden)
A1: 单位：人民币 | B1: 2015-12-31 | C1: =#REF! ->  | D1: =#REF! ->  | E1: =#REF! ->  | F1: =#REF! ->  | J1: =C1 ->  | K1: =D1 ->  | L1: =E1 ->  | M1: =F1 ->  | N1: 2020年（年化） | O1: 三年平均数
A2: 报告期 | B2: 年报 | C2: 年报 | D2: 年报 | E2: 年报 | F2: 年报 | H2: 营业利润率 | K2: =D26/D4 ->  | L2: =E26/E4 ->  | M2: =F26/F4 ->  | O2: =AVERAGE(K2:M2,N2) -> 
A3: 报表类型 | B3: 合并报表 | C3: 合并报表 | D3: 合并报表 | E3: 合并报表 | F3: 合并报表 | H3: 已获利息倍数 | K3: =(D32+D13)/D15 ->  | L3: =(E32+E13)/E15 ->  | M3: =(F32+F13)/F15 ->  | O3: =AVERAGE(K3:M3,N3) -> 
A4: 营业总收入
A5: 营业收入
A6: 其他类金融业务收入 | H6: 销售（营业）增长率（%） | K6: =D4/C4-1 ->  | L6: =E4/D4-1 ->  | M6: =F4/E4-1 ->  | O6: =AVERAGE(K6:M6,N6) -> 
A7: 营业总成本 | H7: 资本积累率（%）
A8: 营业成本 | H8: 营业利润增长率（%） | M8: =(F26-E26)/ABS(E26) ->  | O8: =M8 -> 
A9: 税金及附加
A10: 销售费用
A11: 管理费用
A12: 研发费用
A13: 财务费用
A14: 资产减值损失
A15: 利息支出
A16: 其他经营收益
A17: 其他收益
A18: 投资净收益
A19: 公允价值变动净收益
A20: 汇兑净收益
A21: 信用减值损失（损失以“-”号填列）
A22: 资产减值损失（损失以“-”号填列）
A23: 资产处置收益
A24: 加：营业利润差额(特殊报表科目)
A25: 营业利润差额(合计平衡项目)
A26: 营业利润 | C26: =C4-SUM(C8:C14)+SUM(C17:C25) -> 0 | D26: =D4-SUM(D8:D14)+SUM(D17:D25) -> 0 | E26: =E4-SUM(E8:E14)+SUM(E17:E25) -> 0 | F26: =F4-SUM(F8:F14)+SUM(F17:F25) -> 0
A27: 加：营业外收入
A28: 减：营业外支出
A29: 其中：非流动资产处置净损失
A30: 加：利润总额差额(特殊报表科目)
A31: 利润总额差额(合计平衡项目)
A32: 利润总额 | C32: =C26+C27-C28 -> 0 | D32: =D26+D27-D28 -> 0 | E32: =E26+E27-E28 -> 0 | F32: =F26+F27-F28 -> 0
A33: 减：所得税
A34: 加：净利润差额(特殊报表科目)
A35: 净利润差额(合计平衡项目)
A36: 净利润 | C36: =C32-C33 -> 0 | D36: =D32-D33 -> 0 | E36: =E32-E33 -> 0 | F36: =F32-F33 -> 0
A37: 加：营业利润差额(特殊报表科目)-股份支付
A38: 减：股份支付涉及的税
A39: 持续经营净利润
A40: 终止经营净利润
A41: 减：少数股东损益
A42: 归属于母公司所有者的净利润
A43: 加：其他综合收益
A44: 综合收益总额
A45: 减：归属于少数股东的综合收益总额
A46: 归属于母公司普通股东综合收益总额
A47: 每股收益：
A50: EBIT | F50: =F32+F15 -> 0
A51: EBITDA
A52: NOIAT

Sheet 母公司资产负债表 (hidden)
A1: 母公司资产负债表
B2: 2013 | C2: 2012
A3: 货币资金 | B3: 71,732,804.11 | C3: 3,287,328,448.94
A4: 交易性金融资产 | B4: 27,257,179.21 | C4: 60,130,577.12
A5: 买入返售金融资产 | B5: 589,300,000.00 | C5: -
A6: 应收利息 | B6: 14,548,730.41 | C6: 2,304,353.20
A7: 长期股权投资 | B7: 4,110,800,000.00 | C7: 3,970,800,000.00
A8: 定期存款 | B8: 36,581,400.00 | C8: -
A9: 可供出售金融资产 | B9: 697,940,937.23 | C9: 178,760,000.00
A10: 应收款项投资 | B10: 660,000,000.00 | C10: -
A11: 固定资产 | B11: 530,184,110.61 | C11: 418,180,768.49
A12: 投资性房地产 | B12: 454,183,407.00 | C12: 469,333,743.48
A13: 无形资产 | B13: 60,956,599.14 | C13: 62,253,548.10
A14: 其他资产 | B14: 1,739,195,530.90 | C14: 80,145,365.56
A15: 资产总计 | B15: 8,992,680,698.61 | C15: 8,529,236,804.89
A16: 负债及所有者权益
A17: 负债
A18: 卖出回购金融资产款 | B18: 69,200,000.00 | C18: -
A19: 应付职工薪酬 | B19: 95,768,765.05 | C19: 91,813,709.78
A20: 应交税费 | B20: 1,645,261.77 | C20: 885,202.46
A21: 递延所得税负债 | B21: 11,418,931.99 | C21: 12,825,733.17
A22: 其他负债 | B22: 78,253,857.53 | C22: 3,280,102,081.16
A23: 负债合计 | B23: 256,286,816.34 | C23: 3,385,626,726.57
A24: 股东权益
A25: 股本 | B25: 4,021,688,622.00 | C25: 3,042,600,000.00
A26: 资本公积 | B26: 2,378,851,504.16 | C26: 32,145,811.92
A27: 盈余公积 | B27: 573,871,750.82 | C27: 547,172,801.85
A28: 一般风险准备 | B28: 298,075,585.76 | C28: 298,075,585.76
A29: 未分配利润 | B29: 1,463,906,419.53 | C29: 1,223,615,878.79
A30: 股东权益合计 | B30: 8,736,393,882.27 | C30: 5,143,610,078.32

Sheet 母公司利润表 (hidden)
A1: 利润表
B2: 2013 | C2: 2012
A3: 一、营业收入 | B3: 361,340,244.43 | C3: 147,070,540.84
A4: 投资收益 | B4: 283,165,470.13 | C4: 62,321,673.32
A5: 公允价值变动收益/(损失) | B5: 1,557,576.20 | C5: -1,000.00
A6: 汇兑损失 | B6: -25,079,514.37 | C6: -260,762.72
A7: 其他业务收入 | B7: 101,696,712.47 | C7: 85,010,630.24
A8: 二、营业支出 | B8: -95,456,683.13 | C8: -100,604,291.61
A9: 营业税金及附加 | B9: -10,523,588.87 | C9: -11,918,055.89
A10: 业务及管理费 | B10: -62,817,019.60 | C10: -68,351,514.26
A11: 其他业务成本 | B11: -22,116,074.66 | C11: -20,334,721.46
A12: 三、营业利润 | B12: 265,883,561.30 | C12: 46,466,249.23
A13: 加：营业外收入 | B13: 782,732.20 | C13: 818,232.20
A14: 减：营业外支出 | B14: -29,466.71 | C14: -336,566.16
A15: 四、利润总额 | B15: 266,636,826.79 | C15: 46,947,915.27
A16: 减：所得税费用 | B16: 352,662.92 | C16: -13,065,606.39
A17: 五、净利润 | B17: 266,989,489.71 | C17: 33,882,308.88
A18: 六、其他综合损失 | B18: -3,107,000.56 | C18: -28,672,191.24
A19: 七、综合收益总额 | B19: 263,882,489.15 | C19: 5,210,117.64

Sheet 东航BS (hidden)
A1: 单位：万元人民币 | B1: 2016-12-31 | C1: =#REF! ->  | D1: =#REF! ->  | E1: =#REF! ->  | F1: =#REF! ->  | G1: 非经营性资产 | H1: 备注 | K1: =C1 ->  | L1: =D1 ->  | M1: =E1 ->  | N1: =F1 ->  | O1: 2020年（年化） | P1: 三年平均数
A2: 报告期 | B2: 年报 | C2: 年报 | D2: 年报 | E2: 年报 | F2: 三季报 | J2: 净资产收益率 | K2: =山石网科IS!C36/(B106+C106)*2 -> 28.31% | L2: =山石网科IS!D36/(C106+D106)*2 -> 21.74% | M2: =山石网科IS!E36/(D106+E106)*2 -> 10.14% | P2: =AVERAGE(K2:M2,O2) -> 20.06%
A3: 报表类型 | B3: 合并报表 | C3: 合并报表 | D3: 合并报表 | E3: 合并报表 | F3: 合并报表 | J3: 总资产报酬率 | K3: =(山石网科IS!C31+山石网科IS!C15)/(B49+C49)*2 -> 16.92% | L3: =(山石网科IS!D31+山石网科IS!D15)/(C49+D49)*2 -> 14.08% | M3: =(山石网科IS!E31+山石网科IS!E15)/(D49+E49)*2 -> 8.19% | P3: =AVERAGE(K3:M3,O3) -> 13.06%
A4: 流动资产： | J4: 营业利润率 | K4: =山石网科IS!J2 -> 13.29% | L4: =山石网科IS!K2 -> 14.05% | M4: =山石网科IS!L2 -> 14.04% | P4: =AVERAGE(K4:M4,O4) -> 13.80%
A5: 货币资金 | B5: 12,051.38 | C5: 6,359.66 | D5: 22,130.22 | E5: 107,517.33 | F5: 27,550.20
A6: 交易性金融资产 | B6: 0 | C6: 0 | D6: 0 | E6: 0 | F6: 67,520.00 | G6: =F6 -> 67,520.00 | H6: 结构性存款、理财等投资 | J6: 总资产周转率（次） | K6: =山石网科IS!C4/(B49+C49)*2 -> 1.28 | L6: =山石网科IS!D4/(C49+D49)*2 -> 0.98 | M6: =山石网科IS!E4/(D49+E49)*2 -> 0.57 | P6: =AVERAGE(K6:M6,O6) -> 0.94
A7: 衍生金融资产 | J7: 流动资产周转率（次） | K7: =山石网科IS!C4/(B24+C24)*2 -> 1.37 | L7: =山石网科IS!D4/(C24+D24)*2 -> 1.05 | M7: =山石网科IS!E4/(D24+E24)*2 -> 0.59 | P7: =AVERAGE(K7:M7,O7) -> 1.00
A8: 应收票据 | J8: 应收款项周转率（次） | K8: =山石网科IS!C4/(C8+B8+C9+B9+C12+B12)*2 -> 2.62 | L8: =山石网科IS!D4/(D8+C8+D9+C9+D12+C12)*2 -> 1.81 | M8: =山石网科IS!E4/(E8+D8+E9+D9+E12+D12)*2 -> 1.65 | P8: =AVERAGE(K8:M8,O8) -> 2.03
A9: 应收账款 | B9: 11,523.35 | C9: 21,094.32 | D9: 32,642.22 | E9: 41,042.23 | F9: 46,596.36
A10: 预付款项 | B10: 241.19 | C10: 364.82 | D10: 254.04 | E10: 660.31 | F10: 996.07 | J10: 资产负债率（%） | K10: =C88/C49 -> 45.91% | L10: =D88/D49 -> 44.25% | M10: =E88/E49 -> 15.14% | P10: =AVERAGE(K10:M10,O10) -> 35.10%
A11: 应收利息 | J11: 已获利息倍数 | K11: =山石网科IS!J3 -> 0 | L11: =山石网科IS!K3 -> 39.06 | M11: =山石网科IS!L3 -> 37.75 | P11: =AVERAGE(K11:M11,O11) -> 25.61
A12: 其他应收款 | B12: 2,129.61 | C12: 558.54 | D12: 7,751.45 | E12: 312.69 | F12: 573.97 | H12: 主要为押金保证金 | J12: 速动比率（%） | K12: =(C24-C15)/C72 -> 194.41% | L12: =(D24-D15)/D72 -> 207.75% | M12: =(E24-E15)/E72 -> 682.26% | P12: =AVERAGE(K12:M12,O12) -> 361.47%
A13: 应收股利
A14: 买入返售金融资产 | J14: 销售（营业）增长率（%） | K14: =山石网科IS!J6 -> 41.82% | L14: =山石网科IS!K6 -> 21.43% | M14: =山石网科IS!L6 -> 19.97% | P14: =AVERAGE(K14:M14,O14) -> 27.74%
A15: 存货 | B15: 2,714.68 | C15: 3,470.25 | D15: 5,040.79 | E15: 4,886.67 | F15: 6,963.71 | J15: 资本积累率（%） | K15: =C106/B106-1 -> 5.26% | L15: =D106/C106-1 -> 91.35% | M15: =E106/D106-1 -> 231.21% | P15: =AVERAGE(K15:M15,O15) -> 109.27%
A16: 其中：消耗性生物资产 | J16: 销售（营业）利润增长率（%） | K16: =山石网科IS!J8 -> 333.72% | L16: =山石网科IS!K8 -> 28.40% | M16: =山石网科IS!L8 -> 19.90% | P16: =AVERAGE(K16:M16,O16) -> 127.34%
A17: 划分为持有待售的资产
A18: 一年内到期的非流动资产
A19: 待摊费用
A20: 其他流动资产 | B20: 1,760.80 | C20: 5,562.21 | D20: 2,229.75 | E20: 2,647.68 | F20: 1,292.76 | G20: =F20 -> 1,292.76 | H20: 进项税额
A21: 其他金融类流动资产
A22: 流动资产差额(特殊报表科目)
A23: 流动资产差额(合计平衡项目)
A24: 流动资产合计 | B24: =SUM(B5:B23) -> 30,421.01 | C24: 37,409.79 | D24: 70,048.47 | E24: 157,066.91 | F24: 151,493.07 | G24: 68,812.76
A25: 非流动资产：
A26: 发放贷款及垫款
A27: 可供出售金融资产
A28: 持有至到期投资
A29: 长期应收款
A30: 长期股权投资 | B30: 0 | C30: 0 | D30: 0 | E30: 0 | F30: 997.57 | G30: =F30 -> 997.57
A31: 投资性房地产
A32: 固定资产 | B32: 1,362.54 | C32: 2,347.37 | D32: 3,370.72 | E32: 3,929.85 | F32: 5,214.50
A33: 在建工程
A34: 工程物资
A35: 固定资产清理
A36: 生产性生物资产
A37: 油气资产
A38: 无形资产 | B38: 127.14 | C38: 103.96 | D38: 521.00 | E38: 537.97 | F38: 1,024.41
A39: 开发支出
A40: 商誉
A41: 长期待摊费用 | B41: 261.06 | C41: 173.20 | D41: 144.21 | E41: 59.13 | F41: 357.88
A42: 递延所得税资产 | B42: 128.33 | C42: 194.83 | D42: 592.77 | E42: 898.99 | F42: 1,118.18 | G42: =F42 -> 1,118.18
A43: 其他非流动资产
A44: 非流动资产差额(特殊报表科目)
A45: 非流动资产差额(合计平衡项目)
A46: 非流动资产合计 | B46: =SUM(B26:B45) -> 1,879.07 | C46: 2,819.36 | D46: 4,628.70 | E46: 5,425.94 | F46: 8,712.54 | G46: 2,115.74
A47: 资产差额(特殊报表科目)
A48: 资产差额(合计平衡项目)
A49: 资产总计 | B49: =B46+B24 -> 32,300.09 | C49: 40,229.16 | D49: 74,677.17 | E49: 162,492.85 | F49: 160,205.61 | G49: =G46+G24 -> 70,928.50
A50: 流动负债：
A51: 短期借款 | B51: 0 | C51: 0 | D51: 2,000.00 | E51: 1,000.00 | F51: 0
A52: 交易性金融负债
A53: 衍生金融负债
A55: 应付票据及应付账款 | B55: 2,663.79 | C55: 3,112.55 | D55: 5,003.80 | E55: 4,891.91 | F55: 13,010.52
A56: 预收款项 | B56: 1,727.74 | C56: 766.59 | D56: 560.40 | E56: 569.28 | F56: 0
A57: 合同负债 | C57: 0 | D57: 0 | E57: 0 | F57: 1,948.46
A58: 应付职工薪酬 | B58: 2,167.35 | C58: 3,220.68 | D58: 3,961.57 | E58: 4,691.01 | F58: 3,979.46
A59: 应交税费 | B59: 512.73 | C59: 704.37 | D59: 1,828.94 | E59: 857.71 | F59: 444.72
A60: 应付利息
A61: 应付股利
A62: 其他应付款 | B62: 1,640.30 | C62: 5,425.50 | D62: 10,586.13 | E62: 3,798.13 | F62: 2,302.63
A63: 划分为持有待售的负债
A64: 一年内到期的非流动负债
A65: 预提费用
A66: 递延收益-流动负债
A67: 应付短期债券
A68: 其他流动负债 | B68: 2,113.32 | C68: 4,227.81 | D68: 7,350.84 | E68: 6,497.20 | F68: 5,225.37
A69: 其他金融类流动负债
A70: 流动负债差额(特殊报表科目)
A71: 流动负债差额(合计平衡项目)
A72: 流动负债合计 | B72: =SUM(B51:B71) -> 10,825.22 | C72: 17,457.50 | D72: 31,291.68 | E72: 22,305.24 | F72: 26,911.16 | G72: 0
A73: 非流动负债：
A74: 长期借款
A75: 应付债券
A76: 长期应付款
A77: 长期应付职工薪酬
A78: 专项应付款
A79: 预计负债 | B79: 803.22 | C79: 1,013.39 | D79: 1,751.99 | E79: 2,294.48 | F79: 1,599.23
A80: 递延所得税负债
A81: 递延收益-非流动负债
A82: 其他非流动负债
A83: 非流动负债差额(特殊报表科目)
A84: 非流动负债差额(合计平衡项目)
A85: 非流动负债合计 | B85: =SUM(B74:B84) -> 803.22 | C85: 1,013.39 | D85: 1,751.99 | E85: 2,294.48 | F85: 1,599.23 | G85: 0
A86: 负债差额(特殊报表科目)
A87: 负债差额(合计平衡项目)
A88: 负债合计 | B88: =B85+B72 -> 11,628.43 | C88: 18,470.89 | D88: 33,043.67 | E88: 24,599.72 | F88: 28,510.39 | G88: 0
A89: 所有者权益(或股东权益)：
A90: 实收资本(或股本) | B90: 11,256.78 | C90: 11,256.78 | D90: 13,516.75 | E90: 18,022.35 | F90: 18,022.35
A91: 其它权益工具
A92: 其它权益工具：优先股
A93: 资本公积金 | B93: 40,273.90 | C93: 39,284.25 | D93: 39,586.76 | E93: 122,245.09 | F93: 122,817.51
A94: 减：库存股 | B94: -11,256.78 | C94: -11,256.78 | D94: 0 | E94: 0 | F94: 0
A95: 其它综合收益 | B95: -284.38 | C95: -486.24 | D95: 871.16 | E95: 862.25 | F95: 868.58
A96: 专项储备
A97: 盈余公积金 | B97: 607.89 | C97: 0 | D97: 1,007.30 | E97: 1,729.73 | F97: 1,728.64
A98: 一般风险准备
A99: 未分配利润 | B99: -19,925.75 | C99: -17,039.74 | D99: -13,348.46 | E99: -4,966.28 | F99: -11,741.85
A100: 外币报表折算差额
A101: 未确认的投资损失
A102: 股东权益差额(特殊报表科目)
A103: 股权权益差额(合计平衡项目)
A104: 归属于母公司所有者权益合计 | B104: =SUM(B90:B103) -> 20,671.65 | C104: 21,758.27 | D104: 41,633.50 | E104: 137,893.13 | F104: 131,695.22 | G104: 0
A105: 少数股东权益 | C105: 0 | D105: 0 | E105: 0 | F105: 0 | G105: 0
A106: 所有者权益合计 | B106: =B104+B105 -> 20,671.65 | C106: 21,758.27 | D106: 41,633.50 | E106: 137,893.13 | F106: 131,695.22 | G106: 0
A107: 负债及股东权益差额(特殊报表项目)
A108: 负债及股东权益差额(合计平衡项目)
A109: 负债和所有者权益总计 | B109: =B106+B88 -> 32,300.09 | C109: =C106+C88 -> 40,229.16 | D109: =D106+D88 -> 74,677.17 | E109: =E106+E88 -> 162,492.85 | F109: =F106+F88 -> 160,205.61
A111: 非经营性资产 | G111: =G49-G88 -> 70,928.50
A112: 付息债务
A121: 数据来源：Wind

Sheet 东航IS (hidden)
A1: 单位：人民币万元 | B1: 2016-12-31 | C1: 2017-12-31 | D1: 2018-12-31 | E1: 2019-12-31 | F1: 2020-09-30 | G1: =标的公司IS!G1 -> 0 | J1: =C1 -> 2017-12-31 | K1: =D1 -> 2018-12-31 | L1: =E1 -> 2019-12-31 | M1: =F1 -> 2020-09-30 | N1: 2020年（年化） | O1: 三年平均数
A2: 报告期 | B2: 年报 | C2: 年报 | D2: 年报 | E2: 年报 | F2: 三季报 | I2: 营业利润率 | J2: =C25/C4 -> 13.29% | K2: =D25/D4 -> 14.05% | L2: =E25/E4 -> 14.04% | O2: =AVERAGE(J2:L2,N2) -> 13.80%
A3: 报表类型 | B3: 合并报表 | C3: 合并报表 | D3: 合并报表 | E3: 合并报表 | F3: 合并报表 | I3: 已获利息倍数 | K3: =(D31+D13)/D15 -> 39.06 | L3: =(E31+E13)/E15 -> 37.75 | O3: =AVERAGE(J3:L3,N3) -> 38.41
A4: 营业总收入 | B4: 32,652.26 | C4: 46,305.86 | D4: 56,227.68 | E4: 67,457.07 | F4: 41,587.70 | G4: 80,298.33 | H4: =G4/E4-1 -> 0.1903620172
A5: 营业收入 | B5: 32,652.26 | C5: 46,305.86 | D5: 56,227.68 | E5: 67,457.07 | F5: 41,587.70
A6: 其他类金融业务收入 | I6: 销售（营业）增长率（%） | J6: =C4/B4-1 -> 41.82% | K6: =D4/C4-1 -> 21.43% | L6: =E4/D4-1 -> 19.97% | O6: =AVERAGE(J6:L6,N6) -> 27.74%
A7: 营业总成本 | B7: 35,289.09 | C7: 43,865.14 | D7: 52,547.14 | E7: 63,991.98 | F7: 49,552.38 | I7: 资本积累率（%）
A8: 营业成本 | B8: 8,116.62 | C8: 10,404.83 | D8: 13,324.99 | E8: 16,191.94 | F8: 13,941.60 | I8: 营业利润增长率（%） | J8: =(C25-B25)/ABS(B25) -> 333.72% | K8: =D25/C25-1 -> 28.40% | L8: =E25/D25-1 -> 19.90% | O8: =AVERAGE(J8:L8,N8) -> 127.34%
A9: 税金及附加 | B9: 459.88 | C9: 509.23 | D9: 635.40 | E9: 826.86 | F9: 353.14
A10: 销售费用 | B10: 12,122.74 | C10: 15,368.71 | D10: 17,996.95 | E10: 21,793.55 | F10: 15,899.35
A11: 管理费用 | B11: 2,330.47 | C11: 3,065.87 | D11: 3,922.98 | E11: 4,964.08 | F11: 3,071.24
A12: 研发费用 | B12: 12,104.12 | C12: 14,150.20 | D12: 15,646.14 | E12: 18,674.72 | F12: 15,367.67
A13: 财务费用 | B13: 114.45 | C13: -165.35 | D13: 246.22 | E13: 130.16 | F13: -97.62
A14: 资产减值损失 | B14: 40.82 | C14: 531.65 | D14: 774.47 | E14: 1,410.66 | F14: 1,017.00
A15: 利息支出 | B15: 14.56 | C15: 0.00 | D15: 208.02 | E15: 253.84 | F15: 15.68
A16: 其他经营收益
A17: 公允价值变动净收益
A18: 投资净收益 | B18: 7.50 | C18: 94.44 | D18: 66.99 | E18: 494.80 | F18: 959.72
A19: 其中：对联营企业和合营企业的投资收益
A20: 汇兑净收益
A21: 资产处置收益 | B21: -3.60 | C21: -42.22 | D21: -10.25 | E21: 31.35 | F21: 8.57
A22: 其他收益 | B22: 0 | C22: 3,660.80 | D22: 4,163.92 | E22: 5,482.24 | F22: 2,128.73
A23: 加：营业利润差额(特殊报表科目)
A24: 营业利润差额(合计平衡项目)
A25: 营业利润 | B25: =B5-SUM(B8:B14)+SUM(B17:B22) -> -2,632.93 | C25: =C5-SUM(C8:C14)+SUM(C17:C22) -> 6,153.74 | D25: =D5-SUM(D8:D14)+SUM(D17:D22) -> 7,901.20 | E25: =E5-SUM(E8:E14)+SUM(E17:E22) -> 9,473.48 | F25: =F5-SUM(F8:F14)+SUM(F17:F22) -> -4,867.67
A26: 加：营业外收入 | B26: 2,793.45 | C26: 4.88 | D26: 25.62 | E26: 25.50 | F26: 10.77
A27: 减：营业外支出 | B27: 4.40 | C27: 21.55 | D27: 47.53 | E27: 45.73 | F27: 76.34
A28: 其中：非流动资产处置净损失
A29: 加：利润总额差额(特殊报表科目)
A30: 利润总额差额(合计平衡项目)
A31: 利润总额 | B31: =B25+B26-B27 -> 156.12 | C31: =C25+C26-C27 -> 6,137.06 | D31: =D25+D26-D27 -> 7,879.29 | E31: =E25+E26-E27 -> 9,453.25 | F31: =F25+F26-F27 -> -4,933.24
A32: 减：所得税 | B32: 37.62 | C32: 131.84 | D32: 988.12 | E32: 348.64 | F32: -235.04
A33: 加：未确认的投资损失
A34: 加：净利润差额(特殊报表科目)
A35: 净利润差额(合计平衡项目)
A36: 净利润 | B36: =B31-B32 -> 118.50 | C36: =C31-C32 -> 6,005.22 | D36: =D31-D32 -> 6,891.17 | E36: =E31-E32 -> 9,104.61 | F36: =F31-F32 -> -4,698.19
A37: 持续经营净利润
A38: 终止经营净利润
A39: 减：少数股东损益
A40: 归属于母公司所有者的净利润
A41: 加：其他综合收益
A42: 综合收益总额
A43: 减：归属于少数股东的综合收益总额
A44: 归属于母公司普通股东综合收益总额
A45: 每股收益：
A46: 基本每股收益
A47: 稀释每股收益
A48: 数据来源：Wind

Sheet 中航BS (hidden)
A1: 单位：万元人民币 | B1: 2016-12-31 | C1: =#REF! ->  | D1: =#REF! ->  | E1: =#REF! ->  | F1: =#REF! ->  | G1: 非经营性资产 | H1: 备注 | K1: =C1 ->  | L1: =D1 ->  | M1: =E1 ->  | N1: =F1 ->  | O1: 2020年（年化） | P1: 三年平均数
A2: 报告期 | B2: 年报 | C2: 年报 | D2: 年报 | E2: 年报 | F2: 三季报 | J2: 净资产收益率 | K2: =山石网科IS!C36/(B106+C106)*2 -> 28.31% | L2: =山石网科IS!D36/(C106+D106)*2 -> 21.74% | M2: =山石网科IS!E36/(D106+E106)*2 -> 10.14% | P2: =AVERAGE(K2:M2,O2) -> 20.06%
A3: 报表类型 | B3: 合并报表 | C3: 合并报表 | D3: 合并报表 | E3: 合并报表 | F3: 合并报表 | J3: 总资产报酬率 | K3: =(山石网科IS!C31+山石网科IS!C15)/(B49+C49)*2 -> 16.92% | L3: =(山石网科IS!D31+山石网科IS!D15)/(C49+D49)*2 -> 14.08% | M3: =(山石网科IS!E31+山石网科IS!E15)/(D49+E49)*2 -> 8.19% | P3: =AVERAGE(K3:M3,O3) -> 13.06%
A4: 流动资产： | J4: 营业利润率 | K4: =山石网科IS!J2 -> 13.29% | L4: =山石网科IS!K2 -> 14.05% | M4: =山石网科IS!L2 -> 14.04% | P4: =AVERAGE(K4:M4,O4) -> 13.80%
A5: 货币资金 | B5: 12,051.38 | C5: 6,359.66 | D5: 22,130.22 | E5: 107,517.33 | F5: 27,550.20
A6: 交易性金融资产 | B6: 0 | C6: 0 | D6: 0 | E6: 0 | F6: 67,520.00 | G6: =F6 -> 67,520.00 | H6: 结构性存款、理财等投资 | J6: 总资产周转率（次） | K6: =山石网科IS!C4/(B49+C49)*2 -> 1.28 | L6: =山石网科IS!D4/(C49+D49)*2 -> 0.98 | M6: =山石网科IS!E4/(D49+E49)*2 -> 0.57 | P6: =AVERAGE(K6:M6,O6) -> 0.94
A7: 衍生金融资产 | J7: 流动资产周转率（次） | K7: =山石网科IS!C4/(B24+C24)*2 -> 1.37 | L7: =山石网科IS!D4/(C24+D24)*2 -> 1.05 | M7: =山石网科IS!E4/(D24+E24)*2 -> 0.59 | P7: =AVERAGE(K7:M7,O7) -> 1.00
A8: 应收票据 | J8: 应收款项周转率（次） | K8: =山石网科IS!C4/(C8+B8+C9+B9+C12+B12)*2 -> 2.62 | L8: =山石网科IS!D4/(D8+C8+D9+C9+D12+C12)*2 -> 1.81 | M8: =山石网科IS!E4/(E8+D8+E9+D9+E12+D12)*2 -> 1.65 | P8: =AVERAGE(K8:M8,O8) -> 2.03
A9: 应收账款 | B9: 11,523.35 | C9: 21,094.32 | D9: 32,642.22 | E9: 41,042.23 | F9: 46,596.36
A10: 预付款项 | B10: 241.19 | C10: 364.82 | D10: 254.04 | E10: 660.31 | F10: 996.07 | J10: 资产负债率（%） | K10: =C88/C49 -> 45.91% | L10: =D88/D49 -> 44.25% | M10: =E88/E49 -> 15.14% | P10: =AVERAGE(K10:M10,O10) -> 35.10%
A11: 应收利息 | J11: 已获利息倍数 | K11: =山石网科IS!J3 -> 0 | L11: =山石网科IS!K3 -> 39.06 | M11: =山石网科IS!L3 -> 37.75 | P11: =AVERAGE(K11:M11,O11) -> 25.61
A12: 其他应收款 | B12: 2,129.61 | C12: 558.54 | D12: 7,751.45 | E12: 312.69 | F12: 573.97 | H12: 主要为押金保证金 | J12: 速动比率（%） | K12: =(C24-C15)/C72 -> 194.41% | L12: =(D24-D15)/D72 -> 207.75% | M12: =(E24-E15)/E72 -> 682.26% | P12: =AVERAGE(K12:M12,O12) -> 361.47%
A13: 应收股利
A14: 买入返售金融资产 | J14: 销售（营业）增长率（%） | K14: =山石网科IS!J6 -> 41.82% | L14: =山石网科IS!K6 -> 21.43% | M14: =山石网科IS!L6 -> 19.97% | P14: =AVERAGE(K14:M14,O14) -> 27.74%
A15: 存货 | B15: 2,714.68 | C15: 3,470.25 | D15: 5,040.79 | E15: 4,886.67 | F15: 6,963.71 | J15: 资本积累率（%） | K15: =C106/B106-1 -> 5.26% | L15: =D106/C106-1 -> 91.35% | M15: =E106/D106-1 -> 231.21% | P15: =AVERAGE(K15:M15,O15) -> 109.27%
A16: 其中：消耗性生物资产 | J16: 销售（营业）利润增长率（%） | K16: =山石网科IS!J8 -> 333.72% | L16: =山石网科IS!K8 -> 28.40% | M16: =山石网科IS!L8 -> 19.90% | P16: =AVERAGE(K16:M16,O16) -> 127.34%
A17: 划分为持有待售的资产
A18: 一年内到期的非流动资产
A19: 待摊费用
A20: 其他流动资产 | B20: 1,760.80 | C20: 5,562.21 | D20: 2,229.75 | E20: 2,647.68 | F20: 1,292.76 | G20: =F20 -> 1,292.76 | H20: 进项税额
A21: 其他金融类流动资产
A22: 流动资产差额(特殊报表科目)
A23: 流动资产差额(合计平衡项目)
A24: 流动资产合计 | B24: =SUM(B5:B23) -> 30,421.01 | C24: 37,409.79 | D24: 70,048.47 | E24: 157,066.91 | F24: 151,493.07 | G24: 68,812.76
A25: 非流动资产：
A26: 发放贷款及垫款
A27: 可供出售金融资产
A28: 持有至到期投资
A29: 长期应收款
A30: 长期股权投资 | B30: 0 | C30: 0 | D30: 0 | E30: 0 | F30: 997.57 | G30: =F30 -> 997.57
A31: 投资性房地产
A32: 固定资产 | B32: 1,362.54 | C32: 2,347.37 | D32: 3,370.72 | E32: 3,929.85 | F32: 5,214.50
A33: 在建工程
A34: 工程物资
A35: 固定资产清理
A36: 生产性生物资产
A37: 油气资产
A38: 无形资产 | B38: 127.14 | C38: 103.96 | D38: 521.00 | E38: 537.97 | F38: 1,024.41
A39: 开发支出
A40: 商誉
A41: 长期待摊费用 | B41: 261.06 | C41: 173.20 | D41: 144.21 | E41: 59.13 | F41: 357.88
A42: 递延所得税资产 | B42: 128.33 | C42: 194.83 | D42: 592.77 | E42: 898.99 | F42: 1,118.18 | G42: =F42 -> 1,118.18
A43: 其他非流动资产
A44: 非流动资产差额(特殊报表科目)
A45: 非流动资产差额(合计平衡项目)
A46: 非流动资产合计 | B46: =SUM(B26:B45) -> 1,879.07 | C46: 2,819.36 | D46: 4,628.70 | E46: 5,425.94 | F46: 8,712.54 | G46: 2,115.74
A47: 资产差额(特殊报表科目)
A48: 资产差额(合计平衡项目)
A49: 资产总计 | B49: =B46+B24 -> 32,300.09 | C49: 40,229.16 | D49: 74,677.17 | E49: 162,492.85 | F49: 160,205.61 | G49: =G46+G24 -> 70,928.50
A50: 流动负债：
A51: 短期借款 | B51: 0 | C51: 0 | D51: 2,000.00 | E51: 1,000.00 | F51: 0
A52: 交易性金融负债
A53: 衍生金融负债
A55: 应付票据及应付账款 | B55: 2,663.79 | C55: 3,112.55 | D55: 5,003.80 | E55: 4,891.91 | F55: 13,010.52
A56: 预收款项 | B56: 1,727.74 | C56: 766.59 | D56: 560.40 | E56: 569.28 | F56: 0
A57: 合同负债 | C57: 0 | D57: 0 | E57: 0 | F57: 1,948.46
A58: 应付职工薪酬 | B58: 2,167.35 | C58: 3,220.68 | D58: 3,961.57 | E58: 4,691.01 | F58: 3,979.46
A59: 应交税费 | B59: 512.73 | C59: 704.37 | D59: 1,828.94 | E59: 857.71 | F59: 444.72
A60: 应付利息
A61: 应付股利
A62: 其他应付款 | B62: 1,640.30 | C62: 5,425.50 | D62: 10,586.13 | E62: 3,798.13 | F62: 2,302.63
A63: 划分为持有待售的负债
A64: 一年内到期的非流动负债
A65: 预提费用
A66: 递延收益-流动负债
A67: 应付短期债券
A68: 其他流动负债 | B68: 2,113.32 | C68: 4,227.81 | D68: 7,350.84 | E68: 6,497.20 | F68: 5,225.37
A69: 其他金融类流动负债
A70: 流动负债差额(特殊报表科目)
A71: 流动负债差额(合计平衡项目)
A72: 流动负债合计 | B72: =SUM(B51:B71) -> 10,825.22 | C72: 17,457.50 | D72: 31,291.68 | E72: 22,305.24 | F72: 26,911.16 | G72: 0
A73: 非流动负债：
A74: 长期借款
A75: 应付债券
A76: 长期应付款
A77: 长期应付职工薪酬
A78: 专项应付款
A79: 预计负债 | B79: 803.22 | C79: 1,013.39 | D79: 1,751.99 | E79: 2,294.48 | F79: 1,599.23
A80: 递延所得税负债
A81: 递延收益-非流动负债
A82: 其他非流动负债
A83: 非流动负债差额(特殊报表科目)
A84: 非流动负债差额(合计平衡项目)
A85: 非流动负债合计 | B85: =SUM(B74:B84) -> 803.22 | C85: 1,013.39 | D85: 1,751.99 | E85: 2,294.48 | F85: 1,599.23 | G85: 0
A86: 负债差额(特殊报表科目)
A87: 负债差额(合计平衡项目)
A88: 负债合计 | B88: =B85+B72 -> 11,628.43 | C88: 18,470.89 | D88: 33,043.67 | E88: 24,599.72 | F88: 28,510.39 | G88: 0
A89: 所有者权益(或股东权益)：
A90: 实收资本(或股本) | B90: 11,256.78 | C90: 11,256.78 | D90: 13,516.75 | E90: 18,022.35 | F90: 18,022.35
A91: 其它权益工具
A92: 其它权益工具：优先股
A93: 资本公积金 | B93: 40,273.90 | C93: 39,284.25 | D93: 39,586.76 | E93: 122,245.09 | F93: 122,817.51
A94: 减：库存股 | B94: -11,256.78 | C94: -11,256.78 | D94: 0 | E94: 0 | F94: 0
A95: 其它综合收益 | B95: -284.38 | C95: -486.24 | D95: 871.16 | E95: 862.25 | F95: 868.58
A96: 专项储备
A97: 盈余公积金 | B97: 607.89 | C97: 0 | D97: 1,007.30 | E97: 1,729.73 | F97: 1,728.64
A98: 一般风险准备
A99: 未分配利润 | B99: -19,925.75 | C99: -17,039.74 | D99: -13,348.46 | E99: -4,966.28 | F99: -11,741.85
A100: 外币报表折算差额
A101: 未确认的投资损失
A102: 股东权益差额(特殊报表科目)
A103: 股权权益差额(合计平衡项目)
A104: 归属于母公司所有者权益合计 | B104: =SUM(B90:B103) -> 20,671.65 | C104: 21,758.27 | D104: 41,633.50 | E104: 137,893.13 | F104: 131,695.22 | G104: 0
A105: 少数股东权益 | C105: 0 | D105: 0 | E105: 0 | F105: 0 | G105: 0
A106: 所有者权益合计 | B106: =B104+B105 -> 20,671.65 | C106: 21,758.27 | D106: 41,633.50 | E106: 137,893.13 | F106: 131,695.22 | G106: 0
A107: 负债及股东权益差额(特殊报表项目)
A108: 负债及股东权益差额(合计平衡项目)
A109: 负债和所有者权益总计 | B109: =B106+B88 -> 32,300.09 | C109: =C106+C88 -> 40,229.16 | D109: =D106+D88 -> 74,677.17 | E109: =E106+E88 -> 162,492.85 | F109: =F106+F88 -> 160,205.61
A111: 非经营性资产 | G111: =G49-G88 -> 70,928.50
A112: 付息债务
A121: 数据来源：Wind

Sheet 中航IS (hidden)
A1: 单位：人民币万元 | B1: 2016-12-31 | C1: 2017-12-31 | D1: 2018-12-31 | E1: 2019-12-31 | F1: 2020-09-30 | G1: =标的公司IS!G1 -> 0 | J1: =C1 -> 2017-12-31 | K1: =D1 -> 2018-12-31 | L1: =E1 -> 2019-12-31 | M1: =F1 -> 2020-09-30 | N1: 2020年（年化） | O1: 三年平均数
A2: 报告期 | B2: 年报 | C2: 年报 | D2: 年报 | E2: 年报 | F2: 三季报 | I2: 营业利润率 | J2: =C25/C4 -> 13.29% | K2: =D25/D4 -> 14.05% | L2: =E25/E4 -> 14.04% | O2: =AVERAGE(J2:L2,N2) -> 13.80%
A3: 报表类型 | B3: 合并报表 | C3: 合并报表 | D3: 合并报表 | E3: 合并报表 | F3: 合并报表 | I3: 已获利息倍数 | K3: =(D31+D13)/D15 -> 39.06 | L3: =(E31+E13)/E15 -> 37.75 | O3: =AVERAGE(J3:L3,N3) -> 38.41
A4: 营业总收入 | B4: 32,652.26 | C4: 46,305.86 | D4: 56,227.68 | E4: 67,457.07 | F4: 41,587.70 | G4: 80,298.33 | H4: =G4/E4-1 -> 0.1903620172
A5: 营业收入 | B5: 32,652.26 | C5: 46,305.86 | D5: 56,227.68 | E5: 67,457.07 | F5: 41,587.70
A6: 其他类金融业务收入 | I6: 销售（营业）增长率（%） | J6: =C4/B4-1 -> 41.82% | K6: =D4/C4-1 -> 21.43% | L6: =E4/D4-1 -> 19.97% | O6: =AVERAGE(J6:L6,N6) -> 27.74%
A7: 营业总成本 | B7: 35,289.09 | C7: 43,865.14 | D7: 52,547.14 | E7: 63,991.98 | F7: 49,552.38 | I7: 资本积累率（%）
A8: 营业成本 | B8: 8,116.62 | C8: 10,404.83 | D8: 13,324.99 | E8: 16,191.94 | F8: 13,941.60 | I8: 营业利润增长率（%） | J8: =(C25-B25)/ABS(B25) -> 333.72% | K8: =D25/C25-1 -> 28.40% | L8: =E25/D25-1 -> 19.90% | O8: =AVERAGE(J8:L8,N8) -> 127.34%
A9: 税金及附加 | B9: 459.88 | C9: 509.23 | D9: 635.40 | E9: 826.86 | F9: 353.14
A10: 销售费用 | B10: 12,122.74 | C10: 15,368.71 | D10: 17,996.95 | E10: 21,793.55 | F10: 15,899.35
A11: 管理费用 | B11: 2,330.47 | C11: 3,065.87 | D11: 3,922.98 | E11: 4,964.08 | F11: 3,071.24
A12: 研发费用 | B12: 12,104.12 | C12: 14,150.20 | D12: 15,646.14 | E12: 18,674.72 | F12: 15,367.67
A13: 财务费用 | B13: 114.45 | C13: -165.35 | D13: 246.22 | E13: 130.16 | F13: -97.62
A14: 资产减值损失 | B14: 40.82 | C14: 531.65 | D14: 774.47 | E14: 1,410.66 | F14: 1,017.00
A15: 利息支出 | B15: 14.56 | C15: 0.00 | D15: 208.02 | E15: 253.84 | F15: 15.68
A16: 其他经营收益
A17: 公允价值变动净收益
A18: 投资净收益 | B18: 7.50 | C18: 94.44 | D18: 66.99 | E18: 494.80 | F18: 959.72
A19: 其中：对联营企业和合营企业的投资收益
A20: 汇兑净收益
A21: 资产处置收益 | B21: -3.60 | C21: -42.22 | D21: -10.25 | E21: 31.35 | F21: 8.57
A22: 其他收益 | B22: 0 | C22: 3,660.80 | D22: 4,163.92 | E22: 5,482.24 | F22: 2,128.73
A23: 加：营业利润差额(特殊报表科目)
A24: 营业利润差额(合计平衡项目)
A25: 营业利润 | B25: =B5-SUM(B8:B14)+SUM(B17:B22) -> -2,632.93 | C25: =C5-SUM(C8:C14)+SUM(C17:C22) -> 6,153.74 | D25: =D5-SUM(D8:D14)+SUM(D17:D22) -> 7,901.20 | E25: =E5-SUM(E8:E14)+SUM(E17:E22) -> 9,473.48 | F25: =F5-SUM(F8:F14)+SUM(F17:F22) -> -4,867.67
A26: 加：营业外收入 | B26: 2,793.45 | C26: 4.88 | D26: 25.62 | E26: 25.50 | F26: 10.77
A27: 减：营业外支出 | B27: 4.40 | C27: 21.55 | D27: 47.53 | E27: 45.73 | F27: 76.34
A28: 其中：非流动资产处置净损失
A29: 加：利润总额差额(特殊报表科目)
A30: 利润总额差额(合计平衡项目)
A31: 利润总额 | B31: =B25+B26-B27 -> 156.12 | C31: =C25+C26-C27 -> 6,137.06 | D31: =D25+D26-D27 -> 7,879.29 | E31: =E25+E26-E27 -> 9,453.25 | F31: =F25+F26-F27 -> -4,933.24
A32: 减：所得税 | B32: 37.62 | C32: 131.84 | D32: 988.12 | E32: 348.64 | F32: -235.04
A33: 加：未确认的投资损失
A34: 加：净利润差额(特殊报表科目)
A35: 净利润差额(合计平衡项目)
A36: 净利润 | B36: =B31-B32 -> 118.50 | C36: =C31-C32 -> 6,005.22 | D36: =D31-D32 -> 6,891.17 | E36: =E31-E32 -> 9,104.61 | F36: =F31-F32 -> -4,698.19
A37: 持续经营净利润
A38: 终止经营净利润
A39: 减：少数股东损益
A40: 归属于母公司所有者的净利润
A41: 加：其他综合收益
A42: 综合收益总额
A43: 减：归属于少数股东的综合收益总额
A44: 归属于母公司普通股东综合收益总额
A45: 每股收益：
A46: 基本每股收益
A47: 稀释每股收益
A48: 数据来源：Wind

Sheet 山石网科BS (hidden)
A1: 单位：万元人民币 | B1: 2016-12-31 | C1: =#REF! ->  | D1: =#REF! ->  | E1: =#REF! ->  | F1: =#REF! ->  | G1: 非经营性资产 | H1: 备注 | K1: =C1 ->  | L1: =D1 ->  | M1: =E1 ->  | N1: =F1 ->  | O1: 2020年（年化） | P1: 三年平均数
A2: 报告期 | B2: 年报 | C2: 年报 | D2: 年报 | E2: 年报 | F2: 三季报 | J2: 净资产收益率 | K2: =山石网科IS!C36/(B106+C106)*2 -> 28.31% | L2: =山石网科IS!D36/(C106+D106)*2 -> 21.74% | M2: =山石网科IS!E36/(D106+E106)*2 -> 10.14% | P2: =AVERAGE(K2:M2,O2) -> 20.06%
A3: 报表类型 | B3: 合并报表 | C3: 合并报表 | D3: 合并报表 | E3: 合并报表 | F3: 合并报表 | J3: 总资产报酬率 | K3: =(山石网科IS!C31+山石网科IS!C15)/(B49+C49)*2 -> 16.92% | L3: =(山石网科IS!D31+山石网科IS!D15)/(C49+D49)*2 -> 14.08% | M3: =(山石网科IS!E31+山石网科IS!E15)/(D49+E49)*2 -> 8.19% | P3: =AVERAGE(K3:M3,O3) -> 13.06%
A4: 流动资产： | J4: 营业利润率 | K4: =山石网科IS!J2 -> 13.29% | L4: =山石网科IS!K2 -> 14.05% | M4: =山石网科IS!L2 -> 14.04% | P4: =AVERAGE(K4:M4,O4) -> 13.80%
A5: 货币资金 | B5: 12,051.38 | C5: 6,359.66 | D5: 22,130.22 | E5: 107,517.33 | F5: 27,550.20
A6: 交易性金融资产 | B6: 0 | C6: 0 | D6: 0 | E6: 0 | F6: 67,520.00 | G6: =F6 -> 67,520.00 | H6: 结构性存款、理财等投资 | J6: 总资产周转率（次） | K6: =山石网科IS!C4/(B49+C49)*2 -> 1.28 | L6: =山石网科IS!D4/(C49+D49)*2 -> 0.98 | M6: =山石网科IS!E4/(D49+E49)*2 -> 0.57 | P6: =AVERAGE(K6:M6,O6) -> 0.94
A7: 衍生金融资产 | J7: 流动资产周转率（次） | K7: =山石网科IS!C4/(B24+C24)*2 -> 1.37 | L7: =山石网科IS!D4/(C24+D24)*2 -> 1.05 | M7: =山石网科IS!E4/(D24+E24)*2 -> 0.59 | P7: =AVERAGE(K7:M7,O7) -> 1.00
A8: 应收票据 | J8: 应收款项周转率（次） | K8: =山石网科IS!C4/(C8+B8+C9+B9+C12+B12)*2 -> 2.62 | L8: =山石网科IS!D4/(D8+C8+D9+C9+D12+C12)*2 -> 1.81 | M8: =山石网科IS!E4/(E8+D8+E9+D9+E12+D12)*2 -> 1.65 | P8: =AVERAGE(K8:M8,O8) -> 2.03
A9: 应收账款 | B9: 11,523.35 | C9: 21,094.32 | D9: 32,642.22 | E9: 41,042.23 | F9: 46,596.36
A10: 预付款项 | B10: 241.19 | C10: 364.82 | D10: 254.04 | E10: 660.31 | F10: 996.07 | J10: 资产负债率（%） | K10: =C88/C49 -> 45.91% | L10: =D88/D49 -> 44.25% | M10: =E88/E49 -> 15.14% | P10: =AVERAGE(K10:M10,O10) -> 35.10%
A11: 应收利息 | J11: 已获利息倍数 | K11: =山石网科IS!J3 -> 0 | L11: =山石网科IS!K3 -> 39.06 | M11: =山石网科IS!L3 -> 37.75 | P11: =AVERAGE(K11:M11,O11) -> 25.61
A12: 其他应收款 | B12: 2,129.61 | C12: 558.54 | D12: 7,751.45 | E12: 312.69 | F12: 573.97 | H12: 主要为押金保证金 | J12: 速动比率（%） | K12: =(C24-C15)/C72 -> 194.41% | L12: =(D24-D15)/D72 -> 207.75% | M12: =(E24-E15)/E72 -> 682.26% | P12: =AVERAGE(K12:M12,O12) -> 361.47%
A13: 应收股利
A14: 买入返售金融资产 | J14: 销售（营业）增长率（%） | K14: =山石网科IS!J6 -> 41.82% | L14: =山石网科IS!K6 -> 21.43% | M14: =山石网科IS!L6 -> 19.97% | P14: =AVERAGE(K14:M14,O14) -> 27.74%
A15: 存货 | B15: 2,714.68 | C15: 3,470.25 | D15: 5,040.79 | E15: 4,886.67 | F15: 6,963.71 | J15: 资本积累率（%） | K15: =C106/B106-1 -> 5.26% | L15: =D106/C106-1 -> 91.35% | M15: =E106/D106-1 -> 231.21% | P15: =AVERAGE(K15:M15,O15) -> 109.27%
A16: 其中：消耗性生物资产 | J16: 销售（营业）利润增长率（%） | K16: =山石网科IS!J8 -> 333.72% | L16: =山石网科IS!K8 -> 28.40% | M16: =山石网科IS!L8 -> 19.90% | P16: =AVERAGE(K16:M16,O16) -> 127.34%
A17: 划分为持有待售的资产
A18: 一年内到期的非流动资产
A19: 待摊费用
A20: 其他流动资产 | B20: 1,760.80 | C20: 5,562.21 | D20: 2,229.75 | E20: 2,647.68 | F20: 1,292.76 | G20: =F20 -> 1,292.76 | H20: 进项税额
A21: 其他金融类流动资产
A22: 流动资产差额(特殊报表科目)
A23: 流动资产差额(合计平衡项目)
A24: 流动资产合计 | B24: =SUM(B5:B23) -> 30,421.01 | C24: 37,409.79 | D24: 70,048.47 | E24: 157,066.91 | F24: 151,493.07 | G24: 68,812.76
A25: 非流动资产：
A26: 发放贷款及垫款
A27: 可供出售金融资产
A28: 持有至到期投资
A29: 长期应收款
A30: 长期股权投资 | B30: 0 | C30: 0 | D30: 0 | E30: 0 | F30: 997.57 | G30: =F30 -> 997.57
A31: 投资性房地产
A32: 固定资产 | B32: 1,362.54 | C32: 2,347.37 | D32: 3,370.72 | E32: 3,929.85 | F32: 5,214.50
A33: 在建工程
A34: 工程物资
A35: 固定资产清理
A36: 生产性生物资产
A37: 油气资产
A38: 无形资产 | B38: 127.14 | C38: 103.96 | D38: 521.00 | E38: 537.97 | F38: 1,024.41
A39: 开发支出
A40: 商誉
A41: 长期待摊费用 | B41: 261.06 | C41: 173.20 | D41: 144.21 | E41: 59.13 | F41: 357.88
A42: 递延所得税资产 | B42: 128.33 | C42: 194.83 | D42: 592.77 | E42: 898.99 | F42: 1,118.18 | G42: =F42 -> 1,118.18
A43: 其他非流动资产
A44: 非流动资产差额(特殊报表科目)
A45: 非流动资产差额(合计平衡项目)
A46: 非流动资产合计 | B46: =SUM(B26:B45) -> 1,879.07 | C46: 2,819.36 | D46: 4,628.70 | E46: 5,425.94 | F46: 8,712.54 | G46: 2,115.74
A47: 资产差额(特殊报表科目)
A48: 资产差额(合计平衡项目)
A49: 资产总计 | B49: =B46+B24 -> 32,300.09 | C49: 40,229.16 | D49: 74,677.17 | E49: 162,492.85 | F49: =F46+F24 -> 160,205.61 | G49: =G46+G24 -> 70,928.50
A50: 流动负债：
A51: 短期借款 | B51: 0 | C51: 0 | D51: 2,000.00 | E51: 1,000.00 | F51: 0
A52: 交易性金融负债
A53: 衍生金融负债
A55: 应付票据及应付账款 | B55: 2,663.79 | C55: 3,112.55 | D55: 5,003.80 | E55: 4,891.91 | F55: 13,010.52
A56: 预收款项 | B56: 1,727.74 | C56: 766.59 | D56: 560.40 | E56: 569.28 | F56: 0
A57: 合同负债 | C57: 0 | D57: 0 | E57: 0 | F57: 1,948.46
A58: 应付职工薪酬 | B58: 2,167.35 | C58: 3,220.68 | D58: 3,961.57 | E58: 4,691.01 | F58: 3,979.46
A59: 应交税费 | B59: 512.73 | C59: 704.37 | D59: 1,828.94 | E59: 857.71 | F59: 444.72
A60: 应付利息
A61: 应付股利
A62: 其他应付款 | B62: 1,640.30 | C62: 5,425.50 | D62: 10,586.13 | E62: 3,798.13 | F62: 2,302.63
A63: 划分为持有待售的负债
A64: 一年内到期的非流动负债
A65: 预提费用
A66: 递延收益-流动负债
A67: 应付短期债券
A68: 其他流动负债 | B68: 2,113.32 | C68: 4,227.81 | D68: 7,350.84 | E68: 6,497.20 | F68: 5,225.37
A69: 其他金融类流动负债
A70: 流动负债差额(特殊报表科目)
A71: 流动负债差额(合计平衡项目)
A72: 流动负债合计 | B72: =SUM(B51:B71) -> 10,825.22 | C72: 17,457.50 | D72: 31,291.68 | E72: 22,305.24 | F72: 26,911.16 | G72: 0
A73: 非流动负债：
A74: 长期借款
A75: 应付债券
A76: 长期应付款
A77: 长期应付职工薪酬
A78: 专项应付款
A79: 预计负债 | B79: 803.22 | C79: 1,013.39 | D79: 1,751.99 | E79: 2,294.48 | F79: 1,599.23
A80: 递延所得税负债
A81: 递延收益-非流动负债
A82: 其他非流动负债
A83: 非流动负债差额(特殊报表科目)
A84: 非流动负债差额(合计平衡项目)
A85: 非流动负债合计 | B85: =SUM(B74:B84) -> 803.22 | C85: 1,013.39 | D85: 1,751.99 | E85: 2,294.48 | F85: 1,599.23 | G85: 0
A86: 负债差额(特殊报表科目)
A87: 负债差额(合计平衡项目)
A88: 负债合计 | B88: =B85+B72 -> 11,628.43 | C88: 18,470.89 | D88: 33,043.67 | E88: 24,599.72 | F88: 28,510.39 | G88: 0
A89: 所有者权益(或股东权益)：
A90: 实收资本(或股本) | B90: 11,256.78 | C90: 11,256.78 | D90: 13,516.75 | E90: 18,022.35 | F90: 18,022.35
A91: 其它权益工具
A92: 其它权益工具：优先股
A93: 资本公积金 | B93: 40,273.90 | C93: 39,284.25 | D93: 39,586.76 | E93: 122,245.09 | F93: 122,817.51
A94: 减：库存股 | B94: -11,256.78 | C94: -11,256.78 | D94: 0 | E94: 0 | F94: 0
A95: 其它综合收益 | B95: -284.38 | C95: -486.24 | D95: 871.16 | E95: 862.25 | F95: 868.58
A96: 专项储备
A97: 盈余公积金 | B97: 607.89 | C97: 0 | D97: 1,007.30 | E97: 1,729.73 | F97: 1,728.64
A98: 一般风险准备
A99: 未分配利润 | B99: -19,925.75 | C99: -17,039.74 | D99: -13,348.46 | E99: -4,966.28 | F99: -11,741.85
A100: 外币报表折算差额
A101: 未确认的投资损失
A102: 股东权益差额(特殊报表科目)
A103: 股权权益差额(合计平衡项目)
A104: 归属于母公司所有者权益合计 | B104: =SUM(B90:B103) -> 20,671.65 | C104: 21,758.27 | D104: 41,633.50 | E104: 137,893.13 | F104: 131,695.22 | G104: 0
A105: 少数股东权益 | C105: 0 | D105: 0 | E105: 0 | F105: 0 | G105: 0
A106: 所有者权益合计 | B106: =B104+B105 -> 20,671.65 | C106: 21,758.27 | D106: 41,633.50 | E106: 137,893.13 | F106: 131,695.22 | G106: 0
A107: 负债及股东权益差额(特殊报表项目)
A108: 负债及股东权益差额(合计平衡项目)
A109: 负债和所有者权益总计 | B109: =B106+B88 -> 32,300.09 | C109: =C106+C88 -> 40,229.16 | D109: =D106+D88 -> 74,677.17 | E109: =E106+E88 -> 162,492.85 | F109: =F106+F88 -> 160,205.61
A111: 非经营性资产 | G111: =G49-G88 -> 70,928.50
A112: 付息债务
A121: 数据来源：Wind

Sheet 山石网科IS (hidden)
A1: 单位：人民币万元 | B1: 2016-12-31 | C1: 2017-12-31 | D1: 2018-12-31 | E1: 2019-12-31 | F1: 2020-09-30 | G1: =标的公司IS!G1 -> 0 | J1: =C1 -> 2017-12-31 | K1: =D1 -> 2018-12-31 | L1: =E1 -> 2019-12-31 | M1: =F1 -> 2020-09-30 | N1: 2020年（年化） | O1: 三年平均数
A2: 报告期 | B2: 年报 | C2: 年报 | D2: 年报 | E2: 年报 | F2: 三季报 | I2: 营业利润率 | J2: =C25/C4 -> 13.29% | K2: =D25/D4 -> 14.05% | L2: =E25/E4 -> 14.04% | O2: =AVERAGE(J2:L2,N2) -> 13.80%
A3: 报表类型 | B3: 合并报表 | C3: 合并报表 | D3: 合并报表 | E3: 合并报表 | F3: 合并报表 | I3: 已获利息倍数 | K3: =(D31+D13)/D15 -> 39.06 | L3: =(E31+E13)/E15 -> 37.75 | O3: =AVERAGE(J3:L3,N3) -> 38.41
A4: 营业总收入 | B4: 32,652.26 | C4: 46,305.86 | D4: 56,227.68 | E4: 67,457.07 | F4: 41,587.70 | G4: 80,298.33 | H4: =G4/E4-1 -> 0.1903620172
A5: 营业收入 | B5: 32,652.26 | C5: 46,305.86 | D5: 56,227.68 | E5: 67,457.07 | F5: 41,587.70
A6: 其他类金融业务收入 | I6: 销售（营业）增长率（%） | J6: =C4/B4-1 -> 41.82% | K6: =D4/C4-1 -> 21.43% | L6: =E4/D4-1 -> 19.97% | O6: =AVERAGE(J6:L6,N6) -> 27.74%
A7: 营业总成本 | B7: 35,289.09 | C7: 43,865.14 | D7: 52,547.14 | E7: 63,991.98 | F7: 49,552.38 | I7: 资本积累率（%）
A8: 营业成本 | B8: 8,116.62 | C8: 10,404.83 | D8: 13,324.99 | E8: 16,191.94 | F8: 13,941.60 | I8: 营业利润增长率（%） | J8: =(C25-B25)/ABS(B25) -> 333.72% | K8: =D25/C25-1 -> 28.40% | L8: =E25/D25-1 -> 19.90% | O8: =AVERAGE(J8:L8,N8) -> 127.34%
A9: 税金及附加 | B9: 459.88 | C9: 509.23 | D9: 635.40 | E9: 826.86 | F9: 353.14
A10: 销售费用 | B10: 12,122.74 | C10: 15,368.71 | D10: 17,996.95 | E10: 21,793.55 | F10: 15,899.35
A11: 管理费用 | B11: 2,330.47 | C11: 3,065.87 | D11: 3,922.98 | E11: 4,964.08 | F11: 3,071.24
A12: 研发费用 | B12: 12,104.12 | C12: 14,150.20 | D12: 15,646.14 | E12: 18,674.72 | F12: 15,367.67
A13: 财务费用 | B13: 114.45 | C13: -165.35 | D13: 246.22 | E13: 130.16 | F13: -97.62
A14: 资产减值损失 | B14: 40.82 | C14: 531.65 | D14: 774.47 | E14: 1,410.66 | F14: 1,017.00
A15: 利息支出 | B15: 14.56 | C15: 0.00 | D15: 208.02 | E15: 253.84 | F15: 15.68
A16: 其他经营收益
A17: 公允价值变动净收益
A18: 投资净收益 | B18: 7.50 | C18: 94.44 | D18: 66.99 | E18: 494.80 | F18: 959.72
A19: 其中：对联营企业和合营企业的投资收益
A20: 汇兑净收益
A21: 资产处置收益 | B21: -3.60 | C21: -42.22 | D21: -10.25 | E21: 31.35 | F21: 8.57
A22: 其他收益 | B22: 0 | C22: 3,660.80 | D22: 4,163.92 | E22: 5,482.24 | F22: 2,128.73
A23: 加：营业利润差额(特殊报表科目)
A24: 营业利润差额(合计平衡项目)
A25: 营业利润 | B25: =B5-SUM(B8:B14)+SUM(B17:B22) -> -2,632.93 | C25: =C5-SUM(C8:C14)+SUM(C17:C22) -> 6,153.74 | D25: =D5-SUM(D8:D14)+SUM(D17:D22) -> 7,901.20 | E25: =E5-SUM(E8:E14)+SUM(E17:E22) -> 9,473.48 | F25: =F5-SUM(F8:F14)+SUM(F17:F22) -> -4,867.67
A26: 加：营业外收入 | B26: 2,793.45 | C26: 4.88 | D26: 25.62 | E26: 25.50 | F26: 10.77
A27: 减：营业外支出 | B27: 4.40 | C27: 21.55 | D27: 47.53 | E27: 45.73 | F27: 76.34
A28: 其中：非流动资产处置净损失
A29: 加：利润总额差额(特殊报表科目)
A30: 利润总额差额(合计平衡项目)
A31: 利润总额 | B31: =B25+B26-B27 -> 156.12 | C31: =C25+C26-C27 -> 6,137.06 | D31: =D25+D26-D27 -> 7,879.29 | E31: =E25+E26-E27 -> 9,453.25 | F31: =F25+F26-F27 -> -4,933.24
A32: 减：所得税 | B32: 37.62 | C32: 131.84 | D32: 988.12 | E32: 348.64 | F32: -235.04
A33: 加：未确认的投资损失
A34: 加：净利润差额(特殊报表科目)
A35: 净利润差额(合计平衡项目)
A36: 净利润 | B36: =B31-B32 -> 118.50 | C36: =C31-C32 -> 6,005.22 | D36: =D31-D32 -> 6,891.17 | E36: =E31-E32 -> 9,104.61 | F36: =F31-F32 -> -4,698.19
A37: 持续经营净利润
A38: 终止经营净利润
A39: 减：少数股东损益
A40: 归属于母公司所有者的净利润
A41: 加：其他综合收益
A42: 综合收益总额
A43: 减：归属于少数股东的综合收益总额
A44: 归属于母公司普通股东综合收益总额
A45: 每股收益：
A46: 基本每股收益
A47: 稀释每股收益
A48: 数据来源：Wind

Sheet 绿盟科技BS (hidden)
A1: 单位：万元人民币 | B1: =山石网科BS!B1 -> 2016-12-31 | C1: =山石网科BS!C1 ->  | D1: =山石网科BS!D1 ->  | E1: =山石网科BS!E1 ->  | F1: =山石网科BS!F1 ->  | G1: 非经营性资产 | H1: 备注 | K1: =C1 ->  | L1: =D1 ->  | M1: =E1 ->  | N1: =F1 ->  | O1: 2020年（年化） | P1: 三年平均数
A2: 报告期 | B2: 年报 | C2: 年报 | D2: 年报 | E2: 年报 | F2: 三季报 | J2: 净资产收益率 | K2: =绿盟科技IS!C36/(B106+C106)*2 -> 6.38% | L2: =绿盟科技IS!D36/(C106+D106)*2 -> 5.61% | M2: =绿盟科技IS!E36/(D106+E106)*2 -> 6.97% | P2: =AVERAGE(K2:M2,O2) -> 6.32%
A3: 报表类型 | B3: 合并报表 | C3: 合并报表 | D3: 合并报表 | E3: 合并报表 | F3: 合并报表 | J3: 总资产报酬率 | K3: =(绿盟科技IS!C31+绿盟科技IS!C15)/(B49+C49)*2 -> 5.64% | L3: =(绿盟科技IS!D31+绿盟科技IS!D15)/(C49+D49)*2 -> 5.04% | M3: =(绿盟科技IS!E31+绿盟科技IS!E15)/(D49+E49)*2 -> 6.41% | P3: =AVERAGE(K3:M3,O3) -> 5.70%
A4: 流动资产： | J4: 营业利润率 | K4: =绿盟科技IS!J2 -> 14.46% | L4: =绿盟科技IS!K2 -> 13.82% | M4: =绿盟科技IS!L2 -> 14.30% | P4: 14.19%
A5: 货币资金 | B5: 94,804.94 | C5: 173,987.60 | D5: 122,965.11 | E5: 121,224.67 | F5: 34,770.24
A6: 交易性金融资产 | B6: 0.00 | C6: 0.00 | D6: 0.00 | E6: 46,039.62 | F6: 125,922.04 | G6: =F6 -> 125,922.04 | H6: 理财产品 | J6: 总资产周转率（次） | K6: =绿盟科技IS!C4/(B49+C49)*2 -> 0.39 | L6: =绿盟科技IS!D4/(C49+D49)*2 -> 0.35 | M6: =绿盟科技IS!E4/(D49+E49)*2 -> 0.42 | P6: =AVERAGE(K6:M6,O6) -> 0.39
A7: 衍生金融资产 | J7: 流动资产周转率（次） | K7: =绿盟科技IS!C4/(B24+C24)*2 -> 0.53 | L7: =绿盟科技IS!D4/(C24+D24)*2 -> 0.47 | M7: =绿盟科技IS!E4/(D24+E24)*2 -> 0.57 | P7: 0.53
A8: 应收票据 | J8: 应收款项周转率（次） | K8: =绿盟科技IS!C4/(C8+B8+C9+B9+C12+B12)*2 -> 1.31 | L8: =绿盟科技IS!D4/(D8+C8+D9+C9+D12+C12)*2 -> 1.23 | M8: =绿盟科技IS!E4/(E8+D8+E9+D9+E12+D12)*2 -> 1.42 | P8: 1.32
A9: 应收票据及应收账款 | B9: 81,960.87 | C9: 99,566.36 | D9: 108,877.10 | E9: 114,890.33 | F9: 84,074.61
A10: 预付款项 | B10: 1,765.12 | C10: 1,376.76 | D10: 1,956.05 | E10: 2,054.94 | F10: 3,196.64 | J10: 资产负债率（%） | K10: =C88/C49 -> 23.81% | L10: =D88/D49 -> 18.88% | M10: =E88/E49 -> 17.15% | P10: =AVERAGE(K10:M10,O10) -> 19.95%
A11: 应收利息 | J11: 已获利息倍数 | L11: =绿盟科技IS!K3 -> 35.99 | M11: =绿盟科技IS!L3 -> 13.04 | P11: =AVERAGE(K11:M11,O11) -> 24.51
A12: 其他应收款 | B12: 5,065.96 | C12: 5,001.26 | D12: 4,930.98 | E12: 6,753.58 | F12: 6,332.22 | G12: =F12-30855425.67/10000 -> 3,246.68 | H12: 软件产品增值税即征即退税款 | J12: 速动比率（%） | K12: =(C24-C15)/C72 -> 323.27% | L12: =(D24-D15)/D72 -> 401.33% | M12: =(E24-E15)/E72 -> 440.96% | P12: 388.52%
A13: 应收股利
A14: 买入返售金融资产 | J14: 销售（营业）增长率（%） | K14: =绿盟科技IS!J6 -> 15.07% | L14: =绿盟科技IS!K6 -> 7.17% | M14: =绿盟科技IS!L6 -> 24.24% | P14: =AVERAGE(K14:M14,O14) -> 15.49%
A15: 存货 | B15: 2,600.24 | C15: 4,372.74 | D15: 3,964.29 | E15: 5,270.53 | F15: 13,344.17 | J15: 资本积累率（%） | K15: =C106/B106-1 -> 49.34% | L15: =D106/C106-1 -> 8.46% | M15: =E106/D106-1 -> 8.82% | P15: 22.21%
A16: 其中：消耗性生物资产 | J16: 销售（营业）利润增长率（%） | K16: =绿盟科技IS!J8 -> 1.66% | L16: =绿盟科技IS!K8 -> 2.42% | M16: =绿盟科技IS!L8 -> 28.58% | P16: 10.89%
A17: 划分为持有待售的资产
A18: 一年内到期的非流动资产
A19: 待摊费用
A20: 其他流动资产 | B20: 834.23 | C20: 750.01 | D20: 42,847.81 | E20: 1,145.99 | F20: 1,226.07 | G20: =1912899.46/10000 -> 191.29 | H20: 待抵扣进项税
A21: 其他金融类流动资产
A22: 流动资产差额(特殊报表科目)
A23: 流动资产差额(合计平衡项目)
A24: 流动资产合计 | B24: =SUM(B5:B23) -> 187,031.36 | C24: =SUM(C5:C23) -> 285,054.73 | D24: 285,541.35 | E24: 297,379.67 | F24: =SUM(F5:F23) -> 268,865.99 | G24: =SUM(G5:G23) -> 129,360.01
A25: 非流动资产：
A26: 发放贷款及垫款
A27: 可供出售金融资产 | B27: 14,864.19 | C27: 16,635.94 | D27: 18,421.06 | E27: 19,616.35 | F27: 19,831.39 | G27: =F27 -> 19,831.39
A28: 持有至到期投资 | B28: 0.00 | C28: 0.00 | D28: 0.00
A29: 长期应收款
A30: 长期股权投资 | B30: 0.00 | C30: 0.00 | D30: 0.00 | E30: 3,024.00 | F30: 2,842.27 | G30: =F30 -> 2,842.27
A31: 投资性房地产
A32: 固定资产 | B32: 11,697.27 | C32: 11,566.29 | D32: 11,947.43 | E32: 10,490.32 | F32: 21,495.53 | G32: =F32-E32 -> 11,005.21 | H32: 成都高新区办公用房
A33: 在建工程 | B33: 11.06 | C33: 0.00 | D33: 0.00 | E33: 6,988.13 | F33: 0.00
A34: 工程物资
A35: 固定资产清理
A36: 生产性生物资产
A37: 油气资产
A38: 无形资产 | B38: 10,953.17 | C38: 15,678.54 | D38: 19,885.83 | E38: 24,457.05 | F38: 19,353.65
A39: 开发支出 | B39: 1,775.48 | C39: 1,789.95 | D39: 2,263.03 | E39: 259.73 | F39: 6,358.74
A40: 商誉 | B40: 42,296.97 | C40: 42,296.97 | D40: 42,195.15 | E40: 41,340.34 | F40: 41,340.34
A41: 长期待摊费用 | B41: 842.78 | C41: 806.27 | D41: 489.00 | E41: 471.03 | F41: 2,124.52
A42: 递延所得税资产 | B42: 1,633.70 | C42: 2,316.59 | D42: 2,450.21 | E42: 4,201.17 | F42: 4,637.22 | G42: =F42 -> 4,637.22
A43: 其他非流动资产 | B43: 16.75
A44: 非流动资产差额(特殊报表科目)
A45: 非流动资产差额(合计平衡项目)
A46: 非流动资产合计 | B46: =SUM(B26:B45) -> 84,091.36 | C46: =SUM(C26:C45) -> 91,090.55 | D46: 97,651.70 | E46: 110,848.10 | F46: =SUM(F26:F45) -> 117,983.66 | G46: 38,316.09
A47: 资产差额(特殊报表科目)
A48: 资产差额(合计平衡项目)
A49: 资产总计 | B49: =B46+B24 -> 271,122.72 | C49: 376,145.28 | D49: 383,193.05 | E49: 408,227.78 | F49: 386,849.66 | G49: 167,676.11
A50: 流动负债：
A51: 短期借款 | B51: 17,190.58 | C51: 22,706.35 | D51: 23,849.62 | E51: 13,470.69 | F51: 3,453.01
A52: 交易性金融负债
A53: 衍生金融负债
A54: 应付票据
A55: 应付票据及应付账款 | B55: 10,354.13 | C55: 15,635.04 | D55: 11,318.34 | E55: 18,097.75 | F55: 14,557.06
A56: 预收款项 | B56: 4,602.31 | C56: 4,402.29 | D56: 3,721.04 | E56: 9,493.10 | F56: 375.64
A57: 合同负债 | B57: 0.00 | C57: 0.00 | D57: 0.00 | E57: 0.00 | F57: 11,222.08
A58: 应付职工薪酬 | B58: 6,389.03 | C58: 4,575.24 | D58: 6,861.20 | E58: 9,909.17 | F58: 8,536.21
A59: 应交税费 | B59: 9,888.47 | C59: 11,637.86 | D59: 10,434.67 | E59: 9,057.21 | F59: 8,469.84
A60: 应付利息
A61: 应付股利
A62: 其他应付款 | B62: 25,269.91 | C62: 27,867.86 | D62: 13,975.44 | E62: 6,215.80 | F62: 6,989.03 | G62: =11077240.94/10000 -> 1,107.72 | H62: 限制性股票回购义务
A63: 划分为持有待售的负债
A64: 一年内到期的非流动负债
A65: 预提费用
A66: 递延收益-流动负债
A67: 应付短期债券
A68: 其他流动负债
A69: 其他金融类流动负债
A70: 流动负债差额(特殊报表科目)
A71: 流动负债差额(合计平衡项目)
A72: 流动负债合计 | B72: =SUM(B51:B71) -> 73,694.43 | C72: =SUM(C51:C71) -> 86,824.64 | D72: 70,160.31 | E72: 66,243.72 | F72: 53,602.87 | G72: 1,107.72
A73: 非流动负债：
A74: 长期借款
A75: 应付债券
A76: 长期应付款
A77: 长期应付职工薪酬
A78: 专项应付款
A79: 预计负债
A80: 递延所得税负债 | B80: 419.64 | C80: 419.64 | D80: 362.21 | E80: 1,128.42 | F80: 1,128.42 | G80: =F80 -> 1,128.42
A81: 递延收益-非流动负债 | B81: 5,108.26 | C81: 2,313.78 | D81: 1,843.23 | E81: 2,624.89 | F81: 3,738.71 | G81: =F81 -> 3,738.71
A82: 其他非流动负债
A83: 非流动负债差额(特殊报表科目)
A84: 非流动负债差额(合计平衡项目)
A85: 非流动负债合计 | B85: =SUM(B74:B84) -> 5,527.90 | C85: =SUM(C74:C84) -> 2,733.42 | D85: 2,205.44 | E85: 3,753.31 | F85: =SUM(F74:F84) -> 4,867.13 | G85: 4,867.13
A86: 负债差额(特殊报表科目)
A87: 负债差额(合计平衡项目)
A88: 负债合计 | B88: =B85+B72 -> 79,222.33 | C88: =C85+C72 -> 89,558.06 | D88: 72,365.75 | E88: 69,997.03 | F88: =F85+F72 -> 58,470.00 | G88: 5,974.86
A89: 所有者权益(或股东权益)：
A90: 实收资本(或股本) | B90: 37,226.58 | C90: 80,417.21 | D90: 79,967.41 | E90: 79,811.77 | F90: 79,811.77
A91: 其它权益工具
A92: 其它权益工具：优先股
A93: 资本公积金 | B93: 96,050.09 | C93: 140,004.91 | D93: 138,136.59 | E93: 138,081.57 | F93: 138,451.29
A94: 减：库存股 | B94: -23,111.18 | C94: -26,517.91 | D94: -11,362.32 | E94: -1,879.26 | F94: -1,879.26
A95: 其它综合收益 | B95: -283.67 | C95: 178.47 | D95: -347.15 | E95: -2,278.21 | F95: -2,484.69
A96: 专项储备
A97: 盈余公积金 | B97: 9,162.25 | C97: 10,209.18 | D97: 12,277.38 | E97: 15,125.86 | F97: 15,125.86
A98: 一般风险准备
A99: 未分配利润 | B99: 72,882.45 | C99: 82,293.62 | D99: 92,213.61 | E99: 109,449.48 | F99: 99,454.54
A100: 外币报表折算差额
A101: 未确认的投资损失
A102: 股东权益差额(特殊报表科目)
A103: 股权权益差额(合计平衡项目)
A104: 归属于母公司所有者权益合计 | B104: =SUM(B90:B103) -> 191,926.52 | C104: =SUM(C90:C103) -> 286,585.49 | D104: =SUM(D90:D103) -> 310,885.54 | E104: =SUM(E90:E103) -> 338,311.20 | F104: =SUM(F90:F103) -> 328,479.50
A105: 少数股东权益 | B105: -26.13 | C105: 1.74 | D105: -58.23 | E105: -80.45 | F105: -99.85
A106: 所有者权益合计 | B106: =B104+B105 -> 191,900.39 | C106: =C104+C105 -> 286,587.22 | D106: 310,827.30 | E106: 338,230.75 | F106: =F104+F105 -> 328,379.65
A107: 负债及股东权益差额(特殊报表项目)
A108: 负债及股东权益差额(合计平衡项目)
A109: 负债和所有者权益总计 | B109: =B106+B88 -> 271,122.72 | C109: =C106+C88 -> 376,145.28 | D109: 383,193.05 | E109: 408,227.78 | F109: =F106+F88 -> 386,849.66
A111: 非经营性资产 | G111: =G49-G88 -> 161,701.25
A112: 付息债务 | G112: =F51 -> 3,453.01
A113: 数据来源：Wind | B113: =B109-B49 -> 0 | C113: =C109-C49 -> 0 | D113: 0 | E113: 0 | F113: =F109-F49 -> 0

Sheet 绿盟科技IS (hidden)
A1: 单位：人民币万元 | B1: =山石网科IS!B1 -> 2016-12-31 | C1: =山石网科IS!C1 -> 2017-12-31 | D1: =山石网科IS!D1 -> 2018-12-31 | E1: =山石网科IS!E1 -> 2019-12-31 | F1: =山石网科IS!F1 -> 2020-09-30 | G1: =山石网科IS!G1 -> 0 | J1: =C1 -> 2017-12-31 | K1: =D1 -> 2018-12-31 | L1: =E1 -> 2019-12-31 | M1: =F1 -> 2020-09-30 | N1: 2020年（年化） | O1: 三年平均数
A2: 报告期 | B2: 年报 | C2: 年报 | D2: 年报 | E2: 年报 | F2: 三季报 | I2: 营业利润率 | J2: =C25/C4 -> 14.46% | K2: =D25/D4 -> 13.82% | L2: =E25/E4 -> 14.30% | O2: =AVERAGE(J2:L2,N2) -> 14.19%
A3: 报表类型 | B3: 合并报表 | C3: 合并报表 | D3: 合并报表 | E3: 合并报表 | F3: 合并报表 | I3: 已获利息倍数 | K3: =(D31+D13)/D15 -> 35.99 | L3: =(E31+E13)/E15 -> 13.04 | O3: =AVERAGE(J3:L3,N3) -> 24.51
A4: 营业总收入 | B4: 109,069.39 | C4: 125,511.07 | D4: 134,504.08 | E4: 167,109.10 | F4: 94,285.95 | G4: 210,572.41 | H4: =G4/E4-1 -> 0.2600894189
A5: 营业收入 | B5: 109,069.39 | C5: 125,511.07 | D5: 134,504.08 | E5: 167,109.10 | F5: 94,285.95
A6: 其他类金融业务收入 | I6: 销售（营业）增长率（%） | J6: =C4/B4-1 -> 15.07% | K6: =D4/C4-1 -> 7.17% | L6: =E4/D4-1 -> 24.24% | O6: =AVERAGE(J6:L6,N6) -> 15.49%
A7: 营业总成本 | B7: 93,025.10 | C7: 122,293.76 | D7: 128,087.22 | E7: 156,120.70 | F7: 100,693.79 | I7: 资本积累率（%）
A8: 营业成本 | B8: 24,201.44 | C8: 36,197.83 | D8: 31,034.34 | E8: 47,276.19 | F8: 28,019.68 | I8: 营业利润增长率（%） | J8: =C25/B25-1 -> 1.66% | K8: =D25/C25-1 -> 2.42% | L8: =E25/D25-1 -> 28.58% | O8: =AVERAGE(J8:L8,N8) -> 10.89%
A9: 税金及附加 | B9: 1,359.12 | C9: 1,437.44 | D9: 1,580.71 | E9: 1,714.22 | F9: 1,088.50
A10: 销售费用 | B10: 32,807.27 | C10: 41,993.04 | D10: 50,825.56 | E10: 59,602.27 | F10: 37,680.33
A11: 管理费用 | B11: 33,209.80 | C11: 40,155.26 | D11: 14,331.82 | E11: 11,976.27 | F11: 10,091.90
A12: 研发费用 | B12: 0 | C12: 0 | D12: 27,092.22 | E12: 31,129.19 | F12: 24,012.67
A13: 财务费用 | B13: -434.57 | C13: 188.81 | D13: 472.94 | E13: -1,002.65 | F13: -237.10
A14: 资产减值损失 | B14: 1,882.04 | C14: 2,321.37 | D14: 2,749.63 | E14: 5,425.22 | F14: 37.81
A15: 利息支出 | B15: 0 | C15: 0 | D15: 530.10 | E15: 1,734.46 | F15: 475.20
A16: 其他经营收益
A17: 公允价值变动净收益 | B17: 0 | C17: 0 | D17: 0 | E17: -600.99 | F17: 0
A18: 投资净收益 | B18: 1,804.26 | C18: 3,861.16 | D18: 4,131.72 | E18: 4,409.82 | F18: 2,477.80
A19: 其中：对联营企业和合营企业的投资收益
A20: 汇兑净收益
A21: 资产处置收益 | B21: 0 | C21: 0 | D21: 12.30 | E21: -17.87 | F21: -17.96
A22: 其他收益 | B22: 0 | C22: 11,066.57 | D22: 8,022.53 | E22: 9,115.40 | F22: 4,342.58
A23: 加：营业利润差额(特殊报表科目)
A24: 营业利润差额(合计平衡项目)
A25: 营业利润 | B25: =B5-SUM(B8:B14)+SUM(B17:B24) -> 17,848.54 | C25: =C5-SUM(C8:C14)+SUM(C17:C24) -> 18,145.04 | D25: =D5-SUM(D8:D14)+SUM(D17:D24) -> 18,583.41 | E25: =E5-SUM(E8:E14)+SUM(E17:E24) -> 23,894.76 | F25: =F5-SUM(F8:F14)+SUM(F17:F24) -> 394.59
A26: 加：营业外收入 | B26: 8,173.52 | C26: 173.49 | D26: 104.99 | E26: 116.14 | F26: 84.10
A27: 减：营业外支出 | B27: 152.18 | C27: 56.88 | D27: 81.52 | E27: 399.51 | F27: 117.53
A28: 其中：非流动资产处置净损失
A29: 加：利润总额差额(特殊报表科目)
A30: 利润总额差额(合计平衡项目)
A31: 利润总额 | B31: =B25+B26-B27 -> 25,869.88 | C31: =C25+C26-C27 -> 18,261.66 | D31: =D25+D26-D27 -> 18,606.89 | E31: =E25+E26-E27 -> 23,611.40 | F31: =F25+F26-F27 -> 361.16
A32: 减：所得税 | B32: 3,872.82 | C32: 2,997.03 | D32: 1,859.84 | E32: 982.54 | F32: 1,166.17
A33: 加：未确认的投资损失
A34: 加：净利润差额(特殊报表科目)
A35: 净利润差额(合计平衡项目)
A36: 净利润 | B36: =B31-B32 -> 21,997.06 | C36: 15,264.63 | D36: 16,747.05 | E36: 22,628.86 | F36: =F31-F32 -> -805.02
A37: 持续经营净利润
A38: 终止经营净利润
A39: 减：少数股东损益
A40: 归属于母公司所有者的净利润
A41: 加：其他综合收益
A42: 综合收益总额
A43: 减：归属于少数股东的综合收益总额
A44: 归属于母公司普通股东综合收益总额
A45: 每股收益：
A46: 基本每股收益
A47: 稀释每股收益
A48: 数据来源：Wind
A50: EBIT
A51: EBITDA
A52: NOIAT

Sheet 启明星辰BS (hidden)
A1: 单位：万元人民币 | B1: =绿盟科技BS!B1 -> 2016-12-31 | C1: =绿盟科技BS!C1 ->  | D1: =绿盟科技BS!D1 ->  | E1: =绿盟科技BS!E1 ->  | F1: =绿盟科技BS!F1 ->  | G1: 非经营性资产 | H1: 备注 | K1: =C1 ->  | L1: =D1 ->  | M1: =E1 ->  | N1: =F1 ->  | O1: 2020年（年化） | P1: 三年平均数
A2: 报告期 | B2: =绿盟科技BS!B2 -> 年报 | C2: =绿盟科技BS!C2 -> 年报 | D2: =绿盟科技BS!D2 -> 年报 | E2: =绿盟科技BS!E2 -> 年报 | F2: =绿盟科技BS!F2 -> 三季报 | J2: 净资产收益率 | K2: =#REF!/(B106+C106)*2 ->  | L2: =#REF!/(C106+D106)*2 ->  | M2: =#REF!/(D106+E106)*2 ->  | P2: =AVERAGE(K2:M2,O2) -> 
A3: 报表类型 | B3: =绿盟科技BS!B3 -> 合并报表 | C3: =绿盟科技BS!C3 -> 合并报表 | D3: =绿盟科技BS!D3 -> 合并报表 | E3: =绿盟科技BS!E3 -> 合并报表 | F3: =绿盟科技BS!F3 -> 合并报表 | J3: 总资产报酬率 | K3: =(#REF!+#REF!)/(B49+C49)*2 ->  | L3: =(#REF!+#REF!)/(C49+D49)*2 ->  | M3: =(#REF!+#REF!)/(D49+E49)*2 ->  | P3: =AVERAGE(K3:M3,O3) -> 
A4: 流动资产： | J4: 营业利润率 | K4: =#REF! ->  | L4: =#REF! ->  | M4: =#REF! -> 
A5: 货币资金 | B5: 52,221.81 | C5: 59,637.92 | D5: 67,162.92 | E5: 163,032.40 | F5: 89,496.40
A6: 交易性金融资产 | B6: 0 | C6: 0 | D6: 0 | E6: 95,273.41 | F6: 149,992.83 | G6: =F6 -> 149,992.83 | H6: 理财产品 | J6: 总资产周转率（次） | K6: =#REF!/(B49+C49)*2 ->  | L6: =#REF!/(C49+D49)*2 ->  | M6: =#REF!/(D49+E49)*2 ->  | P6: =AVERAGE(K6:M6,O6) -> 
A7: 衍生金融资产 | J7: 流动资产周转率（次） | K7: =#REF!/(B24+C24)*2 ->  | L7: =#REF!/(C24+D24)*2 ->  | M7: =#REF!/(D24+E24)*2 -> 
A8: 应收票据 | J8: 应收款项周转率（次） | K8: =#REF!/(C8+B8+C9+B9+C12+B12)*2 ->  | L8: =#REF!/(D8+C8+D9+C9+D12+C12)*2 ->  | M8: =#REF!/(E8+D8+E9+D9+E12+D12)*2 -> 
A9: 应收账款 | B9: 95,284.51 | C9: 124,354.39 | D9: 163,539.96 | E9: 215,585.00 | F9: 170,398.44
A10: 预付款项 | B10: 4,097.36 | C10: 3,561.52 | D10: 1,771.20 | E10: 3,216.90 | F10: 4,054.55 | J10: 资产负债率（%） | K10: =C88/C49 -> 25.69% | L10: =D88/D49 -> 26.05% | M10: =E88/E49 -> 36.66% | P10: =AVERAGE(K10:M10,O10) -> 29.47%
A11: 应收利息 | J11: 已获利息倍数 | L11: =#REF! ->  | R11: 已获利息倍数=息税前利润总额/利息支出=EBIT/interest expense 或=(净利润+利息费用+所得税费用)/利息费用
A12: 其他应收款 | B12: 4,933.91 | C12: 6,318.48 | D12: 8,722.38 | E12: 9,955.24 | F12: 12,330.34 | J12: 速动比率（%） | K12: =(C24-C15)/C72 -> 214.59% | L12: =(D24-D15)/D72 -> 229.86% | M12: =(E24-E15)/E72 -> 301.55% | P12: 248.67%
A13: 合同资产 | B13: 0 | C13: 0 | D13: 0 | E13: 0 | F13: 15,891.34
A14: 买入返售金融资产 | J14: 销售（营业）增长率（%） | K14: =#REF! ->  | L14: =#REF! ->  | M14: =#REF! -> 
A15: 存货 | B15: 16,709.89 | C15: 17,856.04 | D15: 17,038.09 | E15: 24,454.31 | F15: 30,371.61 | J15: 资本积累率（%） | K15: =C106/B106-1 -> 40.61% | L15: =D106/C106-1 -> 14.06% | M15: =E106/D106-1 -> 20.54% | P15: 25.07%
A16: 其中：消耗性生物资产 | J16: 销售（营业）利润增长率（%） | K16: =#REF! ->  | L16: =#REF! ->  | M16: =#REF! -> 
A17: 划分为持有待售的资产
A18: 一年内到期的非流动资产
A19: 待摊费用
A20: 其他流动资产 | B20: 41,546.47 | C20: 30,580.10 | D20: 38,882.59 | E20: 1,515.98 | F20: 2,389.20 | G20: =F20 -> 2,389.20 | H20: 增值税进项税
A21: 其他金融类流动资产
A22: 流动资产差额(特殊报表科目)
A23: 流动资产差额(合计平衡项目)
A24: 流动资产合计 | B24: =SUM(B5:B23) -> 214,793.95 | C24: 242,308.46 | D24: 297,117.14 | E24: 513,033.23 | F24: 474,924.72 | G24: 152,382.03
A25: 非流动资产：
A26: 发放贷款及垫款
A27: 可供出售金融资产 | B27: 10,089.01 | C27: 19,857.86 | D27: 32,778.43 | E27: 9,998.11 | F27: 9,920.00 | G27: =F27 -> 9,920.00
A28: 持有至到期投资
A29: 长期应收款
A30: 长期股权投资 | B30: 8,953.31 | C30: 11,725.14 | D30: 8,200.33 | E30: 8,657.65 | F30: 13,952.60 | G30: =F30 -> 13,952.60
A31: 投资性房地产 | B31: 8,923.79 | C31: 8,291.90 | D31: 10,520.74 | E31: 10,362.19 | F31: 9,495.37 | G31: =F31 -> 9,495.37
A32: 固定资产 | B32: 22,854.12 | C32: 25,206.74 | D32: 24,891.25 | E32: 27,757.43 | F32: 28,195.64
A33: 在建工程 | B33: 0 | C33: 0 | D33: 0 | E33: 162.95 | F33: 13,524.50 | G33: =F33 -> 13,524.50
A34: 工程物资
A35: 固定资产清理
A36: 生产性生物资产
A37: 油气资产
A38: 无形资产 | B38: 20,813.38 | C38: 19,120.46 | D38: 18,950.22 | E38: 19,254.79 | F38: 15,034.54
A39: 开发支出 | B39: 1,029.71 | C39: 3,864.46 | D39: 2,575.46 | E39: 2,078.84 | F39: 6,787.67
A40: 商誉 | B40: 29,462.17 | C40: 70,568.69 | D40: 70,568.69 | E40: 70,443.16 | F40: 70,443.16
A41: 长期待摊费用 | B41: 590.05 | C41: 579.88 | D41: 696.09 | E41: 384.42 | F41: 203.43
A42: 递延所得税资产 | B42: 5,787.56 | C42: 7,397.61 | D42: 7,977.60 | E42: 10,187.51 | F42: 13,116.53 | G42: =F42 -> 13,116.53
A43: 其他非流动资产 | B43: 2,198.20 | C43: 18,579.97 | D43: 15,746.28 | E43: 17,295.22 | F43: 15,464.00 | G43: =F43 -> 15,464.00 | H43: 预付土地款和购房款
A44: 非流动资产差额(特殊报表科目)
A45: 非流动资产差额(合计平衡项目)
A46: 非流动资产合计 | B46: =SUM(B26:B45) -> 110,701.30 | C46: =SUM(C26:C45) -> 185,192.71 | D46: 192,905.09 | E46: 176,582.27 | F46: =SUM(F26:F45) -> 196,137.43 | G46: 75,473.00
A47: 资产差额(特殊报表科目)
A48: 资产差额(合计平衡项目)
A49: 资产总计 | B49: =B46+B24 -> 325,495.25 | C49: =C46+C24 -> 427,501.17 | D49: 490,022.23 | E49: 689,615.50 | F49: =F46+F24 -> 671,062.15 | G49: 227,855.03
A50: 流动负债：
A51: 短期借款 | B51: 0 | C51: 590.00 | D51: 0 | E51: 100.00 | F51: 0
A52: 交易性金融负债
A53: 衍生金融负债
A54: 应付票据
A55: 应付账款 | B55: 34,743.41 | C55: 42,561.30 | D55: 57,798.97 | E55: 72,481.96 | F55: 60,334.52
A56: 预收款项 | B56: 25,577.46 | C56: 19,438.89 | D56: 15,021.29 | E56: 21,373.57 | F56: 725.39
A57: 合同负债 | B57: 0 | C57: 0 | D57: 0 | E57: 0 | F57: 27,837.66
A58: 应付职工薪酬 | B58: 12,188.38 | C58: 14,339.65 | D58: 19,900.76 | E58: 28,488.41 | F58: 20,374.53
A59: 应交税费 | B59: 15,622.73 | C59: 20,630.72 | D59: 22,007.34 | E59: 27,341.59 | F59: 16,876.45
A60: 应付利息
A61: 应付股利
A62: 其他应付款 | B62: 4,928.53 | C62: 7,035.32 | D62: 7,117.03 | E62: 12,237.21 | F62: 10,041.81
A63: 划分为持有待售的负债
A64: 一年内到期的非流动负债
A65: 预提费用
A66: 递延收益-流动负债
A67: 应付短期债券
A68: 其他流动负债
A69: 其他金融类流动负债
A70: 流动负债差额(特殊报表科目)
A71: 流动负债差额(合计平衡项目)
A72: 流动负债合计 | B72: =SUM(B51:B71) -> 93,060.51 | C72: =SUM(C51:C71) -> 104,595.89 | D72: 121,845.39 | E72: 162,022.74 | F72: =SUM(F51:F71) -> 136,190.37 | G72: 0.00
A73: 非流动负债：
A74: 长期借款
A75: 应付债券 | B75: 0 | C75: 0 | D75: 0 | E75: 84,994.65 | F75: 0
A76: 长期应付款
A77: 长期应付职工薪酬
A78: 专项应付款
A79: 预计负债
A80: 递延所得税负债 | B80: 1,529.97 | C80: 1,307.22 | D80: 2,000.40 | E80: 2,565.94 | F80: 2,509.72 | G80: =F80 -> 2,509.72
A81: 递延收益-非流动负债 | B81: 4,966.18 | C81: 3,915.82 | D81: 3,829.02 | E81: 3,255.36 | F81: 5,581.52 | G81: =F81 -> 5,581.52
A82: 其他非流动负债
A83: 非流动负债差额(特殊报表科目)
A84: 非流动负债差额(合计平衡项目)
A85: 非流动负债合计 | B85: =SUM(B74:B84) -> 6,496.15 | C85: 5,223.04 | D85: 5,829.42 | E85: 90,815.95 | F85: 8,091.24 | G85: 8,091.24
A86: 负债差额(特殊报表科目)
A87: 负债差额(合计平衡项目)
A88: 负债合计 | B88: =B85+B72 -> 99,556.65 | C88: =C85+C72 -> 109,818.93 | D88: 127,674.81 | E88: 252,838.69 | F88: =F85+F72 -> 144,281.61 | G88: 8,091.24
A89: 所有者权益(或股东权益)：
A90: 实收资本(或股本) | B90: 86,894.23 | C90: 89,669.26 | D90: 89,669.26 | E90: 89,670.12 | F90: 93,358.37
A91: 其它权益工具 | B91: 0 | C91: 0 | D91: 0 | E91: 21,415.93 | F91: 0
A92: 其它权益工具：优先股
A93: 资本公积金 | B93: 43,849.60 | C93: 96,103.05 | D93: 92,991.81 | E93: 88,880.15 | F93: 192,559.01
A94: 减：库存股 | B94: 0 | C94: 0 | D94: -4,234.04 | E94: -10,000.30 | F94: -10,000.30
A95: 其它综合收益 | B95: 1.77 | C95: -289.61 | D95: 191.76 | E95: 462.24 | F95: 86.05
A96: 专项储备
A97: 盈余公积金 | B97: 4,070.20 | C97: 4,972.10 | D97: 5,998.04 | E97: 6,063.43 | F97: 6,063.43
A98: 一般风险准备
A99: 未分配利润 | B99: 87,737.69 | C99: 123,058.06 | D99: 174,444.09 | E99: 239,838.24 | F99: 244,402.88
A100: 外币报表折算差额
A101: 未确认的投资损失
A102: 股东权益差额(特殊报表科目)
A103: 股权权益差额(合计平衡项目)
A104: 归属于母公司所有者权益合计 | B104: =SUM(B90:B103) -> 222,553.49 | C104: =SUM(C90:C103) -> 313,512.86 | D104: =SUM(D90:D103) -> 359,060.92 | E104: =SUM(E90:E103) -> 436,329.81 | F104: =SUM(F90:F103) -> 526,469.44
A105: 少数股东权益 | B105: 3,385.10 | C105: 4,169.38 | D105: 3,286.50 | E105: 447.00 | F105: 311.10
A106: 所有者权益合计 | B106: =B104+B105 -> 225,938.59 | C106: =C104+C105 -> 317,682.24 | D106: 362,347.41 | E106: 436,776.81 | F106: =F104+F105 -> 526,780.54
A107: 负债及股东权益差额(特殊报表项目)
A108: 负债及股东权益差额(合计平衡项目)
A109: 负债和所有者权益总计 | B109: =B106+B88 -> 325,495.25 | C109: =C106+C88 -> 427,501.17 | D109: 490,022.23 | E109: 689,615.50 | F109: =F106+F88 -> 671,062.15
A111: 非经营性资产 | G111: =G49-G88 -> 219,763.79
A112: 付息债务
A113: 数据来源：Wind

Sheet 流动性折扣 (hidden)
A1: 非上市公司并购市盈率与上市公司市盈率比较 计算非流动性折扣比例表（2021）
A3: 序号 | B3: 行业名称 | C3: 非上市公司并购 | E3: 上市公司 | G3: 非流动性折扣比例
C4: 样本点数量 | D4: 市盈率平均值 | E4: 样本点数量 | F4: 市盈率平均值
A5: 1 | B5: 采矿业 | C5: 12 | D5: 20.50 | E5: 77 | F5: 28.62 | G5: =1-D5/F5 -> 28.4%
A6: 2 | B6: 电力、热力生产和供应业 | C6: 23 | D6: 15.64 | E6: 78 | F6: 20.52 | G6: 23.8%
A7: 3 | B7: 水的生产和供应业 | C7: 17 | D7: 15.43 | E7: 13 | F7: 22.58 | G7: 31.7%
A8: 4 | B8: 房地产业 | C8: 32 | D8: 11.23 | E8: 117 | F8: 15.40 | G8: 27.1%
A9: 5 | B9: 建筑业 | C9: 22 | D9: 5.45 | E9: 95 | F9: 9.28 | G9: 41.3%
A10: 6 | B10: 运输业 | C10: 8 | D10: 16.50 | E10: 82 | F10: 21.20 | G10: 22.2%
A11: 7 | B11: 教育 | C11: 3 | D11: 32.40 | E11: 9 | F11: 45.00 | G11: 28.0%
A12: 8 | B12: 货币金融服务 | C12: 15 | D12: 6.56 | E12: 40 | F12: 7.89 | G12: 16.9%
A13: 9 | B13: 其他金融业 | C13: 20 | D13: 19.80 | E13: 15 | F13: 28.67 | G13: 30.9%
A14: 10 | B14: 资本市场服务 | C14: 8 | D14: 17.89 | E14: 55 | F14: 26.75 | G14: 33.1%
A15: 11 | B15: 科学研究和技术服务业 | C15: 28 | D15: 25.92 | E15: 55 | F15: 48.35 | G15: 46.4%
A16: 12 | B16: 农、林、牧、渔业 | C16: 15 | D16: 11.93 | E16: 42 | F16: 16.27 | G16: 26.7%
A17: 13 | B17: 零售业 | C17: 35 | D17: 17.47 | E17: 95 | F17: 28.95 | G17: 39.7%
A18: 14 | B18: 批发业 | C18: 45 | D18: 15.12 | E18: 82 | F18: 25.30 | G18: 40.2%
A19: 15 | B19: 生态保护和环境治理业 | C19: 19 | D19: 17.83 | E19: 53 | F19: 23.45 | G19: 24.0%
A20: 16 | B20: 卫生和社会工作 | C20: 19 | D20: 55.78 | E20: 12 | F20: 73.20 | G20: 23.8%
A21: 17 | B21: 文化、体育和娱乐业 | C21: 12 | D21: 13.20 | E21: 55 | F21: 28.45 | G21: 53.6%
A22: 18 | B22: 互联网和相关服务 | C22: 25 | D22: 13.73 | E22: 70 | F22: 19.45 | G22: 29.4%
A23: 19 | B23: 软件和信息技术服务业 | C23: 112 | D23: 36.45 | E23: 245 | F23: 58.93 | G23: 38.1%
A24: 20 | B24: 电气机械和器材制造业 | C24: 53 | D24: 25.60 | E24: 259 | F24: 40.43 | G24: 36.7%
A25: 21 | B25: 纺织业 | C25: 5 | D25: 25.40 | E25: 39 | F25: 32.80 | G25: 22.6%
A26: 22 | B26: 非金属矿物制品业 | C26: 15 | D26: 13.98 | E26: 101 | F26: 18.72 | G26: 25.3%
A27: 23 | B27: 黑色金属冶炼和压延加工业 | C27: 8 | D27: 15.48 | E27: 34 | F27: 20.77 | G27: 25.5%
A28: 24 | B28: 化学原料和化学制品制造业 | C28: 22 | D28: 18.77 | E28: 253 | F28: 26.45 | G28: 29.0%
A29: 25 | B29: 计算机、通信和其他电子设备制造业 | C29: 87 | D29: 23.11 | E29: 289 | F29: 40.50 | G29: 42.9%
A30: 26 | B30: 金属制品业 | C30: 32 | D30: 14.44 | E30: 65 | F30: 19.95 | G30: 27.6%
A31: 27 | B31: 汽车制造业 | C31: 15 | D31: 17.66 | E31: 134 | F31: 28.87 | G31: 38.8%
A32: 28 | B32: 食品制造业 | C32: 46 | D32: 23.65 | E32: 59 | F32: 38.90 | G32: 39.2%
A33: 29 | B33: 通用设备制造业 | C33: 38 | D33: 18.75 | E33: 123 | F33: 25.43 | G33: 26.3%
A34: 30 | B34: 橡胶和塑料制品业 | C34: 20 | D34: 16.61 | E34: 78 | F34: 22.35 | G34: 25.7%
A35: 31 | B35: 医药制造业 | C35: 59 | D35: 32.10 | E35: 224 | F35: 54.98 | G35: 41.6%
A36: 32 | B36: 仪器仪表制造业 | C36: 12 | D36: 19.88 | E36: 57 | F36: 33.34 | G36: 40.4%
A37: 33 | B37: 有色金属冶炼和压延加工业 | C37: 23 | D37: 25.76 | E37: 70 | F37: 39.86 | G37: 35.4%
A38: 34 | B38: 专用设备制造业 | C38: 45 | D38: 27.37 | E38: 253 | F38: 39.44 | G38: 30.6%
A39: 35 | B39: 商务服务业 | C39: 32 | D39: 18.55 | E39: 50 | F39: 24.35 | G39: 23.8%
A40: 36 | B40: 租赁业 | C40: 9 | D40: 15.45 | E40: 3 | F40: 20.90 | G40: 26.1%
A41: 37 | B41: 合计/平均值 | C41: =SUM(C5:C40) -> 991 | D41: =AVERAGE(D5:D40) -> 20.04 | E41: =SUM(E5:E40) -> 3,381 | F41: =AVERAGE(F5:F40) -> 29.90 | G41: =AVERAGE(G5:G40) -> 31.7%
A42: 原始数据来源：产权交易所、Wind资讯、CVSource

Sheet 利润表、资产负债表、现金流量表-备用表 (hidden)
A1: 证券代码 | B1: 300520.SZ | N1: 300608.SZ | AA1: 300047.SZ | AO1: 300166.SZ | BB1: 300379.SZ
A2: 证券简称 | B2: 科大国创 | N2: 思特奇 | AA2: 天源迪科 | AO2: 东方国信 | BB2: 东方通
A3: 报告参数 | B3: 2015-12-31 | C3: 2016-12-31 | D3: 2017-12-31 | E3: 2018-12-31 | F3: 2019-12-31 | G3: 2020-12-31 | H3: 非经营性资产 | I3: 备注 | J3: 2021-09-30 | K3: 非经营性资产 | L3: 备注 | N3: 2015-12-31 | O3: 2016-12-31 | P3: 2017-12-31 | Q3: 2018-12-31 | R3: 2019-12-31 | S3: 2020-12-31 | T3: 非经营性资产 | U3: 备注 | W3: 2021-09-30 | X3: 非经营性资产 | Y3: 备注 | AA3: 2015-12-31 | AB3: 2016-12-31 | AC3: 2017-12-31 | AD3: 2018-12-31 | AE3: 2019-12-31 | AG3: 2020-12-31 | AH3: 非经营性资产 | AI3: 备注 | AK3: 2021-09-30 | AL3: 非经营性资产 | AM3: 备注 | AO3: 2015-12-31 | AP3: 2016-12-31 | AQ3: 2017-12-31 | AR3: 2018-12-31 | AS3: 2019-12-31 | AT3: 2020-12-31 | AU3: 非经营性资产 | AV3: 备注 | AX3: 2021-09-30 | AY3: 非经营性资产 | AZ3: 备注 | BB3: 2015-12-31 | BC3: 2016-12-31 | BD3: 2017-12-31 | BE3: 2018-12-31 | BF3: 2019-12-31 | BH3: 2020-12-31 | BI3: 非经营性资产 | BJ3: 备注 | BL3: 2021-09-30 | BM3: 非经营性资产 | BN3: 备注
A4: 报表类型 | B4: 合并报表 | C4: 合并报表 | D4: 合并报表 | E4: 合并报表 | F4: 合并报表 | G4: 合并报表 | J4: 合并报表 | N4: 合并报表 | O4: 合并报表 | P4: 合并报表 | Q4: 合并报表 | R4: 合并报表 | S4: 合并报表 | W4: 合并报表 | AA4: 合并报表 | AB4: 合并报表 | AC4: 合并报表 | AD4: 合并报表 | AE4: 合并报表 | AG4: 合并报表 | AK4: 合并报表 | AO4: 合并报表 | AP4: 合并报表 | AQ4: 合并报表 | AR4: 合并报表 | AS4: 合并报表 | AT4: 合并报表 | AX4: 合并报表 | BB4: 合并报表 | BC4: 合并报表 | BD4: 合并报表 | BE4: 合并报表 | BF4: 合并报表 | BH4: 合并报表 | BL4: 合并报表
A6: 财务报表新准则-一般企业-利润表(单位:万元)
A7: 一、营业总收入 | B7: 40,575.91 | C7: 59,423.15 | D7: 60,785.75 | E7: 98,214.70 | F7: 156,971.78 | G7: 151,204.07 | J7: 105,934.77 | N7: 61,431.79 | O7: 68,543.43 | P7: 74,000.43 | Q7: 78,769.62 | R7: 85,977.99 | S7: 73,723.60 | W7: 50,479.17 | AA7: 167,661.50 | AB7: 244,821.96 | AC7: 296,305.90 | AD7: 376,682.64 | AE7: 447,079.28 | AG7: 525,415.98 | AK7: 362,684.46 | AO7: 93,110.91 | AP7: 127,774.77 | AQ7: 150,598.95 | AR7: 199,617.79 | AS7: 215,046.63 | AT7: 208,848.95 | AX7: 148,986.31 | BB7: 23,727.72 | BC7: 32,539.76 | BD7: 29,278.64 | BE7: 37,205.23 | BF7: 49,996.99 | BH7: 64,033.78 | BL7: 39,248.32
A8: 营业收入 | B8: 40,575.91 | C8: 59,423.15 | D8: 60,785.75 | E8: 98,214.70 | F8: 156,971.78 | G8: 151,204.07 | J8: 105,934.77 | N8: 61,431.79 | O8: 68,543.43 | P8: 74,000.43 | Q8: 78,769.62 | R8: 85,977.99 | S8: 73,723.60 | W8: 50,479.17 | AA8: 167,661.50 | AB8: 244,821.96 | AC8: 296,305.90 | AD8: 376,682.64 | AE8: 447,079.28 | AG8: 525,415.98 | AK8: 362,684.46 | AO8: 93,110.91 | AP8: 127,774.77 | AQ8: 150,598.95 | AR8: 199,617.79 | AS8: 215,046.63 | AT8: 208,848.95 | AX8: 148,986.31 | BB8: 23,727.72 | BC8: 32,539.76 | BD8: 29,278.64 | BE8: 37,205.23 | BF8: 49,996.99 | BH8: 64,033.78 | BL8: 39,248.32
A9: 利息收入 | B9: 0.00 | C9: 0.00 | D9: 0.00 | E9: 0.00 | F9: 0.00 | G9: 0.00 | J9: 0.00 | N9: 0.00 | O9: 0.00 | P9: 0.00 | Q9: 0.00 | R9: 0.00 | S9: 0.00 | W9: 0.00 | AA9: 0.00 | AB9: 0.00 | AC9: 0.00 | AD9: 0.00 | AE9: 0.00 | AG9: 0.00 | AK9: 0.00 | AO9: 0.00 | AP9: 0.00 | AQ9: 0.00 | AR9: 0.00 | AS9: 0.00 | AT9: 0.00 | AX9: 0.00 | BB9: 0.00 | BC9: 0.00 | BD9: 0.00 | BE9: 0.00 | BF9: 0.00 | BH9: 0.00 | BL9: 0.00
A10: 已赚保费 | B10: 0.00 | C10: 0.00 | D10: 0.00 | E10: 0.00 | F10: 0.00 | G10: 0.00 | J10: 0.00 | N10: 0.00 | O10: 0.00 | P10: 0.00 | Q10: 0.00 | R10: 0.00 | S10: 0.00 | W10: 0.00 | AA10: 0.00 | AB10: 0.00 | AC10: 0.00 | AD10: 0.00 | AE10: 0.00 | AG10: 0.00 | AK10: 0.00 | AO10: 0.00 | AP10: 0.00 | AQ10: 0.00 | AR10: 0.00 | AS10: 0.00 | AT10: 0.00 | AX10: 0.00 | BB10: 0.00 | BC10: 0.00 | BD10: 0.00 | BE10: 0.00 | BF10: 0.00 | BH10: 0.00 | BL10: 0.00
A11: 手续费及佣金收入 | B11: 0.00 | C11: 0.00 | D11: 0.00 | E11: 0.00 | F11: 0.00 | G11: 0.00 | J11: 0.00 | N11: 0.00 | O11: 0.00 | P11: 0.00 | Q11: 0.00 | R11: 0.00 | S11: 0.00 | W11: 0.00 | AA11: 0.00 | AB11: 0.00 | AC11: 0.00 | AD11: 0.00 | AE11: 0.00 | AG11: 0.00 | AK11: 0.00 | AO11: 0.00 | AP11: 0.00 | AQ11: 0.00 | AR11: 0.00 | AS11: 0.00 | AT11: 0.00 | AX11: 0.00 | BB11: 0.00 | BC11: 0.00 | BD11: 0.00 | BE11: 0.00 | BF11: 0.00 | BH11: 0.00 | BL11: 0.00
A12: 营业总收入差额(特殊报表科目) | B12: 0.00 | C12: 0.00 | D12: 0.00 | E12: 0.00 | F12: 0.00 | G12: 0.00 | J12: 0.00 | N12: 0.00 | O12: 0.00 | P12: 0.00 | Q12: 0.00 | R12: 0.00 | S12: 0.00 | W12: 0.00 | AA12: 0.00 | AB12: 0.00 | AC12: 0.00 | AD12: 0.00 | AE12: 0.00 | AG12: 0.00 | AK12: 0.00 | AO12: 0.00 | AP12: 0.00 | AQ12: 0.00 | AR12: 0.00 | AS12: 0.00 | AT12: 0.00 | AX12: 0.00 | BB12: 0.00 | BC12: 0.00 | BD12: 0.00 | BE12: 0.00 | BF12: 0.00 | BH12: 0.00 | BL12: 0.00
A13: 营业总收入差额(合计平衡科目) | B13: 0.00 | C13: 0.00 | D13: 0.00 | E13: 0.00 | F13: 0.00 | G13: 0.00 | J13: 0.00 | N13: 0.00 | O13: 0.00 | P13: 0.00 | Q13: 0.00 | R13: 0.00 | S13: 0.00 | W13: 0.00 | AA13: 0.00 | AB13: 0.00 | AC13: 0.00 | AD13: 0.00 | AE13: 0.00 | AG13: 0.00 | AK13: 0.00 | AO13: 0.00 | AP13: 0.00 | AQ13: 0.00 | AR13: 0.00 | AS13: 0.00 | AT13: 0.00 | AX13: 0.00 | BB13: 0.00 | BC13: 0.00 | BD13: 0.00 | BE13: 0.00 | BF13: 0.00 | BH13: 0.00 | BL13: 0.00
A14: 二、营业总成本 | B14: 36,386.85 | C14: 54,209.38 | D14: 61,193.99 | E14: 95,769.82 | F14: 149,270.66 | G14: 163,972.27 | J14: 104,966.10 | N14: 57,685.72 | O14: 63,663.40 | P14: 68,197.55 | Q14: 70,516.91 | R14: 78,235.89 | S14: 66,832.32 | W14: 54,564.65 | AA14: 162,176.40 | AB14: 235,496.10 | AC14: 283,459.43 | AD14: 355,804.69 | AE14: 435,312.84 | AG14: 511,277.80 | AK14: 354,110.46 | AO14: 71,126.79 | AP14: 98,661.39 | AQ14: 110,577.88 | AR14: 147,670.11 | AS14: 169,498.86 | AT14: 187,030.32 | AX14: 133,483.19 | BB14: 18,902.09 | BC14: 24,283.48 | BD14: 63,301.14 | BE14: 28,874.84 | BF14: 39,750.00 | BH14: 49,709.87 | BL14: 42,588.47
A15: 营业成本 | B15: 25,105.75 | C15: 37,507.66 | D15: 35,793.37 | E15: 66,416.44 | F15: 110,418.37 | G15: 103,183.58 | J15: 69,416.32 | N15: 34,310.91 | O15: 40,246.42 | P15: 37,561.07 | Q15: 38,885.39 | R15: 42,766.28 | S15: 38,681.31 | W15: 33,820.36 | AA15: 134,555.16 | AB15: 201,156.62 | AC15: 238,333.18 | AD15: 299,277.15 | AE15: 374,359.12 | AG15: 453,956.25 | AK15: 308,127.64 | AO15: 49,307.81 | AP15: 68,630.50 | AQ15: 75,652.81 | AR15: 101,101.79 | AS15: 105,068.44 | AT15: 111,778.24 | AX15: 86,229.76 | BB15: 3,753.31 | BC15: 7,212.39 | BD15: 7,403.45 | BE15: 9,149.29 | BF15: 11,951.19 | BH15: 12,847.39 | BL15: 5,040.72
A16: 利息支出 | B16: 0.00 | C16: 0.00 | D16: 0.00 | E16: 0.00 | F16: 0.00 | G16: 0.00 | J16: 0.00 | N16: 0.00 | O16: 0.00 | P16: 0.00 | Q16: 0.00 | R16: 0.00 | S16: 0.00 | W16: 0.00 | AA16: 0.00 | AB16: 0.00 | AC16: 0.00 | AD16: 0.00 | AE16: 0.00 | AG16: 0.00 | AK16: 0.00 | AO16: 0.00 | AP16: 0.00 | AQ16: 0.00 | AR16: 0.00 | AS16: 0.00 | AT16: 0.00 | AX16: 0.00 | BB16: 0.00 | BC16: 0.00 | BD16: 0.00 | BE16: 0.00 | BF16: 0.00 | BH16: 0.00 | BL16: 0.00
A17: 手续费及佣金支出 | B17: 0.00 | C17: 0.00 | D17: 0.00 | E17: 0.00 | F17: 0.00 | G17: 0.00 | J17: 0.00 | N17: 0.00 | O17: 0.00 | P17: 0.00 | Q17: 0.00 | R17: 0.00 | S17: 0.00 | W17: 0.00 | AA17: 0.00 | AB17: 0.00 | AC17: 0.00 | AD17: 0.00 | AE17: 0.00 | AG17: 0.00 | AK17: 0.00 | AO17: 0.00 | AP17: 0.00 | AQ17: 0.00 | AR17: 0.00 | AS17: 0.00 | AT17: 0.00 | AX17: 0.00 | BB17: 0.00 | BC17: 0.00 | BD17: 0.00 | BE17: 0.00 | BF17: 0.00 | BH17: 0.00 | BL17: 0.00
A18: 退保金 | B18: 0.00 | C18: 0.00 | D18: 0.00 | E18: 0.00 | F18: 0.00 | G18: 0.00 | J18: 0.00 | N18: 0.00 | O18: 0.00 | P18: 0.00 | Q18: 0.00 | R18: 0.00 | S18: 0.00 | W18: 0.00 | AA18: 0.00 | AB18: 0.00 | AC18: 0.00 | AD18: 0.00 | AE18: 0.00 | AG18: 0.00 | AK18: 0.00 | AO18: 0.00 | AP18: 0.00 | AQ18: 0.00 | AR18: 0.00 | AS18: 0.00 | AT18: 0.00 | AX18: 0.00 | BB18: 0.00 | BC18: 0.00 | BD18: 0.00 | BE18: 0.00 | BF18: 0.00 | BH18: 0.00 | BL18: 0.00
A19: 赔付支出 | B19: 0.00 | C19: 0.00 | D19: 0.00 | E19: 0.00 | F19: 0.00 | G19: 0.00 | J19: 0.00 | N19: 0.00 | O19: 0.00 | P19: 0.00 | Q19: 0.00 | R19: 0.00 | S19: 0.00 | W19: 0.00 | AA19: 0.00 | AB19: 0.00 | AC19: 0.00 | AD19: 0.00 | AE19: 0.00 | AG19: 0.00 | AK19: 0.00 | AO19: 0.00 | AP19: 0.00 | AQ19: 0.00 | AR19: 0.00 | AS19: 0.00 | AT19: 0.00 | AX19: 0.00 | BB19: 0.00 | BC19: 0.00 | BD19: 0.00 | BE19: 0.00 | BF19: 0.00 | BH19: 0.00 | BL19: 0.00
A20: 提取保险合同准备金 | B20: 0.00 | C20: 0.00 | D20: 0.00 | E20: 0.00 | F20: 0.00 | G20: 0.00 | J20: 0.00 | N20: 0.00 | O20: 0.00 | P20: 0.00 | Q20: 0.00 | R20: 0.00 | S20: 0.00 | W20: 0.00 | AA20: 0.00 | AB20: 0.00 | AC20: 0.00 | AD20: 0.00 | AE20: 0.00 | AG20: 0.00 | AK20: 0.00 | AO20: 0.00 | AP20: 0.00 | AQ20: 0.00 | AR20: 0.00 | AS20: 0.00 | AT20: 0.00 | AX20: 0.00 | BB20: 0.00 | BC20: 0.00 | BD20: 0.00 | BE20: 0.00 | BF20: 0.00 | BH20: 0.00 | BL20: 0.00
A21: 保单红利支出 | B21: 0.00 | C21: 0.00 | D21: 0.00 | E21: 0.00 | F21: 0.00 | G21: 0.00 | J21: 0.00 | N21: 0.00 | O21: 0.00 | P21: 0.00 | Q21: 0.00 | R21: 0.00 | S21: 0.00 | W21: 0.00 | AA21: 0.00 | AB21: 0.00 | AC21: 0.00 | AD21: 0.00 | AE21: 0.00 | AG21: 0.00 | AK21: 0.00 | AO21: 0.00 | AP21: 0.00 | AQ21: 0.00 | AR21: 0.00 | AS21: 0.00 | AT21: 0.00 | AX21: 0.00 | BB21: 0.00 | BC21: 0.00 | BD21: 0.00 | BE21: 0.00 | BF21: 0.00 | BH21: 0.00 | BL21: 0.00
A22: 分保费用 | B22: 0.00 | C22: 0.00 | D22: 0.00 | E22: 0.00 | F22: 0.00 | G22: 0.00 | J22: 0.00 | N22: 0.00 | O22: 0.00 | P22: 0.00 | Q22: 0.00 | R22: 0.00 | S22: 0.00 | W22: 0.00 | AA22: 0.00 | AB22: 0.00 | AC22: 0.00 | AD22: 0.00 | AE22: 0.00 | AG22: 0.00 | AK22: 0.00 | AO22: 0.00 | AP22: 0.00 | AQ22: 0.00 | AR22: 0.00 | AS22: 0.00 | AT22: 0.00 | AX22: 0.00 | BB22: 0.00 | BC22: 0.00 | BD22: 0.00 | BE22: 0.00 | BF22: 0.00 | BH22: 0.00 | BL22: 0.00
A23: 税金及附加 | B23: 267.43 | C23: 216.87 | D23: 353.96 | E23: 415.09 | F23: 763.47 | G23: 764.35 | J23: 494.87 | N23: 459.47 | O23: 502.06 | P23: 746.17 | Q23: 622.32 | R23: 535.06 | S23: 491.79 | W23: 448.31 | AA23: 479.17 | AB23: 667.19 | AC23: 861.24 | AD23: 1,130.07 | AE23: 1,520.10 | AG23: 1,359.42 | AK23: 879.84 | AO23: 687.96 | AP23: 812.95 | AQ23: 1,399.36 | AR23: 1,375.01 | AS23: 1,969.82 | AT23: 1,525.80 | AX23: 960.18 | BB23: 368.17 | BC23: 541.52 | BD23: 393.89 | BE23: 510.04 | BF23: 573.14 | BH23: 813.89 | BL23: 479.68
A24: 销售费用 | B24: 2,698.39 | C24: 3,451.22 | D24: 5,688.04 | E24: 7,434.58 | F24: 8,840.46 | G24: 9,454.83 | J24: 8,951.64 | N24: 8,308.44 | O24: 9,018.48 | P24: 9,202.85 | Q24: 9,689.98 | R24: 10,342.64 | S24: 9,098.37 | W24: 6,544.15 | AA24: 6,658.54 | AB24: 7,929.81 | AC24: 11,260.90 | AD24: 14,189.68 | AE24: 13,044.89 | AG24: 11,336.32 | AK24: 9,796.25 | AO24: 5,180.35 | AP24: 7,680.96 | AQ24: 9,288.32 | AR24: 11,893.34 | AS24: 13,107.02 | AT24: 9,964.84 | AX24: 7,616.92 | BB24: 6,134.50 | BC24: 5,576.09 | BD24: 4,381.81 | BE24: 5,686.22 | BF24: 7,527.18 | BH24: 8,951.50 | BL24: 12,810.99
A25: 管理费用 | B25: 7,909.48 | C25: 12,124.75 | D25: 18,404.19 | E25: 6,966.80 | F25: 9,196.40 | G25: 8,923.78 | J25: 8,228.47 | N25: 12,458.39 | O25: 11,681.32 | P25: 18,565.64 | Q25: 5,042.80 | R25: 5,311.14 | S25: 4,993.15 | W25: 5,151.78 | AA25: 17,659.02 | AB25: 21,534.10 | AC25: 28,540.70 | AD25: 16,053.79 | AE25: 15,669.67 | AG25: 14,057.50 | AK25: 11,586.95 | AO25: 15,046.65 | AP25: 16,989.46 | AQ25: 21,744.94 | AR25: 18,484.05 | AS25: 14,570.53 | AT25: 14,235.66 | AX25: 12,964.49 | BB25: 7,300.85 | BC25: 10,048.44 | BD25: 11,359.57 | BE25: 6,321.88 | BF25: 6,849.70 | BH25: 7,131.73 | BL25: 6,680.34
A26: 研发费用 | B26: 0.00 | C26: 0.00 | D26: 0.00 | E26: 13,462.80 | F26: 17,917.64 | G26: 18,041.88 | J26: 16,428.49 | N26: 0.00 | O26: 0.00 | P26: 0.00 | Q26: 14,800.61 | R26: 16,752.61 | S26: 9,795.09 | W26: 6,645.71 | AA26: 0.00 | AB26: 0.00 | AC26: 0.00 | AD26: 18,552.52 | AE26: 21,323.58 | AG26: 21,685.04 | AK26: 18,799.85 | AO26: 0.00 | AP26: 0.00 | AQ26: 0.00 | AR26: 11,166.35 | AS26: 25,697.00 | AT26: 35,160.97 | AX26: 25,417.44 | BB26: 0.00 | BC26: 0.00 | BD26: 0.00 | BE26: 7,036.92 | BF26: 9,970.36 | BH26: 17,496.12 | BL26: 15,639.04
A27: 财务费用 | B27: 3.28 | C27: -54.29 | D27: -99.31 | E27: 175.31 | F27: -88.28 | G27: -341.29 | J27: 366.81 | N27: 1,249.84 | O27: 1,210.31 | P27: 704.37 | Q27: 807.25 | R27: 1,843.22 | S27: 3,261.72 | W27: 2,289.11 | AA27: 1,687.84 | AB27: 2,776.47 | AC27: 3,391.03 | AD27: 4,371.22 | AE27: 6,714.98 | AG27: 6,586.30 | AK27: 5,437.61 | AO27: 411.22 | AP27: -726.63 | AQ27: -507.83 | AR27: 192.23 | AS27: 1,448.74 | AT27: 2,076.06 | AX27: 1,284.74 | BB27: -231.79 | BC27: -507.84 | BD27: -915.70 | BE27: -638.45 | BF27: 649.42 | BH27: -270.37 | BL27: -173.18
A28: 其中：财务费用：利息费用 | B28: 0.00 | C28: 0.00 | D28: 0.00 | E28: 619.80 | F28: 976.27 | G28: 1,253.52 | J28: 1,189.16 | N28: 0.00 | O28: 0.00 | P28: 0.00 | Q28: 989.98 | R28: 1,840.14 | S28: 3,574.03 | W28: 2,491.95 | AA28: 0.00 | AB28: 0.00 | AC28: 0.00 | AD28: 4,632.51 | AE28: 6,873.98 | AG28: 6,725.33 | AK28: 5,577.62 | AO28: 0.00 | AP28: 0.00 | AQ28: 0.00 | AR28: 1,021.92 | AS28: 2,327.09 | AT28: 3,123.09 | AX28: 2,442.67 | BB28: 0.00 | BC28: 0.00 | BD28: 0.00 | BE28: 254.78 | BF28: 995.23 | BH28: 97.54 | BL28: 47.80
A29: 财务费用：利息收入 | B29: 0.00 | C29: 0.00 | D29: 0.00 | E29: 384.31 | F29: 1,119.02 | G29: 1,729.24 | J29: 1,022.95 | N29: 0.00 | O29: 0.00 | P29: 0.00 | Q29: 143.70 | R29: 157.95 | S29: 310.43 | W29: 233.53 | AA29: 0.00 | AB29: 0.00 | AC29: 0.00 | AD29: 132.82 | AE29: 173.64 | AG29: 507.86 | AK29: 226.92 | AO29: 0.00 | AP29: 0.00 | AQ29: 0.00 | AR29: 1,093.28 | AS29: 1,297.02 | AT29: 1,264.68 | AX29: 943.03 | BB29: 0.00 | BC29: 0.00 | BD29: 0.00 | BE29: 913.47 | BF29: 375.17 | BH29: 382.63 | BL29: 304.29
A30: 营业总成本差额(特殊报表科目) | B30: 0.00 | C30: 0.00 | D30: 0.00 | E30: 0.00 | F30: 0.00 | G30: 0.00 | J30: 0.00 | N30: 0.00 | O30: 0.00 | P30: 0.00 | Q30: 0.00 | R30: 0.00 | S30: 0.00 | W30: 0.00 | AA30: 0.00 | AB30: 0.00 | AC30: 0.00 | AD30: 0.00 | AE30: 0.00 | AG30: 0.00 | AK30: 0.00 | AO30: 0.00 | AP30: 0.00 | AQ30: 0.00 | AR30: 0.00 | AS30: 0.00 | AT30: 0.00 | AX30: 0.00 | BB30: 0.00 | BC30: 0.00 | BD30: 0.00 | BE30: 0.00 | BF30: 0.00 | BH30: 0.00 | BL30: 0.00
A31: 营业总成本差额(合计平衡科目) | B31: 0.00 | C31: 0.00 | D31: 0.00 | E31: 0.00 | F31: 0.00 | G31: 0.00 | J31: 0.00 | N31: 0.00 | O31: 0.00 | P31: 0.00 | Q31: 0.00 | R31: 0.00 | S31: 0.00 | W31: 0.00 | AA31: 0.00 | AB31: 0.00 | AC31: 0.00 | AD31: 0.00 | AE31: 0.00 | AG31: 0.00 | AK31: 0.00 | AO31: 0.00 | AP31: 0.00 | AQ31: 0.00 | AR31: 0.00 | AS31: 0.00 | AT31: 0.00 | AX31: 0.00 | BB31: 0.00 | BC31: 0.00 | BD31: 0.00 | BE31: 0.00 | BF31: 0.00 | BH31: 0.00 | BL31: 0.00
A32: 公允价值变动收益 | B32: 0.00 | C32: 0.00 | D32: 0.00 | E32: 0.00 | F32: 1,606.33 | G32: 10,406.39 | J32: 0.00 | N32: 0.00 | O32: 0.00 | P32: 0.00 | Q32: 0.00 | R32: 0.00 | S32: 0.00 | W32: 0.00 | AA32: 0.00 | AB32: 0.00 | AC32: -29.77 | AD32: -138.75 | AE32: 51.03 | AG32: 196.70 | AK32: 0.00 | AO32: 0.00 | AP32: 0.00 | AQ32: 0.00 | AR32: 0.00 | AS32: 0.00 | AT32: 0.00 | AX32: 0.00 | BB32: 0.00 | BC32: 0.00 | BD32: 0.00 | BE32: 0.00 | BF32: 0.00 | BH32: 0.00 | BL32: 0.00
A33: 投资收益 | B33: 0.00 | C33: 105.36 | D33: 250.25 | E33: 409.46 | F33: 180.04 | G33: 1,812.82 | J33: 6.77 | N33: 27.75 | O33: 17.03 | P33: 147.07 | Q33: 176.64 | R33: -43.50 | S33: -168.10 | W33: 371.63 | AA33: 268.27 | AB33: 1,940.28 | AC33: 732.88 | AD33: 150.41 | AE33: 741.11 | AG33: 511.13 | AK33: -735.57 | AO33: -121.43 | AP33: 1,427.88 | AQ33: 3,430.44 | AR33: 3,598.73 | AS33: 1,987.05 | AT33: 1,153.06 | AX33: 2,360.42 | BB33: 3.24 | BC33: 19.72 | BD33: -395.50 | BE33: -30.09 | BF33: 124.80 | BH33: -74.62 | BL33: 215.92
A34: 其中：对联营企业和合营企业的投资收益 | B34: 0.00 | C34: -0.13 | D34: 18.64 | E34: 167.07 | F34: 207.30 | G34: 204.60 | J34: 6.38 | N34: 0.00 | O34: 0.00 | P34: 0.00 | Q34: -11.54 | R34: -87.65 | S34: -123.84 | W34: 371.63 | AA34: 268.27 | AB34: 60.08 | AC34: 381.80 | AD34: 147.93 | AE34: 581.03 | AG34: 671.97 | AK34: -735.57 | AO34: 0.00 | AP34: 0.00 | AQ34: 0.00 | AR34: 1,481.12 | AS34: 1,459.27 | AT34: 993.85 | AX34: 341.45 | BB34: -3.84 | BC34: -1.79 | BD34: -395.50 | BE34: -30.09 | BF34: 124.85 | BH34: -74.62 | BL34: 10.42
A35: 以摊余成本计量的金融资产终止确认收益 | B35: 0.00 | C35: 0.00 | D35: 0.00 | E35: 0.00 | F35: 0.00 | G35: 0.00 | J35: 0.00 | N35: 0.00 | O35: 0.00 | P35: 0.00 | Q35: 0.00 | R35: 0.00 | S35: 0.00 | W35: 0.00 | AA35: 0.00 | AB35: 0.00 | AC35: 0.00 | AD35: 0.00 | AE35: 0.00 | AG35: 0.00 | AK35: 0.00 | AO35: 0.00 | AP35: 0.00 | AQ35: 0.00 | AR35: 0.00 | AS35: 0.00 | AT35: 0.00 | AX35: 0.00 | BB35: 0.00 | BC35: 0.00 | BD35: 0.00 | BE35: 0.00 | BF35: 0.00 | BH35: 0.00 | BL35: 0.00
A36: 净敞口套期收益 | B36: 0.00 | C36: 0.00 | D36: 0.00 | E36: 0.00 | F36: 0.00 | G36: 0.00 | J36: 0.00 | N36: 0.00 | O36: 0.00 | P36: 0.00 | Q36: 0.00 | R36: 0.00 | S36: 0.00 | W36: 0.00 | AA36: 0.00 | AB36: 0.00 | AC36: 0.00 | AD36: 0.00 | AE36: 0.00 | AG36: 0.00 | AK36: 0.00 | AO36: 0.00 | AP36: 0.00 | AQ36: 0.00 | AR36: 0.00 | AS36: 0.00 | AT36: 0.00 | AX36: 0.00 | BB36: 0.00 | BC36: 0.00 | BD36: 0.00 | BE36: 0.00 | BF36: 0.00 | BH36: 0.00 | BL36: 0.00
A37: 汇兑收益 | B37: 0.00 | C37: 0.00 | D37: 0.00 | E37: -0.07 | F37: 0.00 | G37: 0.00 | J37: 0.00 | N37: 0.00 | O37: 0.00 | P37: 0.00 | Q37: 0.00 | R37: 0.00 | S37: 0.00 | W37: 0.00 | AA37: 0.00 | AB37: 0.00 | AC37: 0.00 | AD37: 0.00 | AE37: 0.00 | AG37: 0.00 | AK37: 0.00 | AO37: 0.00 | AP37: 0.00 | AQ37: 0.00 | AR37: 0.00 | AS37: 0.00 | AT37: 0.00 | AX37: 0.00 | BB37: 0.00 | BC37: 0.00 | BD37: 0.00 | BE37: 0.00 | BF37: 0.00 | BH37: 0.00 | BL37: 0.00
A38: 资产处置收益 | B38: 0.00 | C38: 0.00 | D38: 1.48 | E38: 0.00 | F38: -18.74 | G38: -75.15 | J38: -5.06 | N38: 0.00 | O38: 0.00 | P38: -0.39 | Q38: 0.05 | R38: -0.03 | S38: -4.21 | W38: -0.27 | AA38: 0.00 | AB38: 0.00 | AC38: -35.16 | AD38: -0.90 | AE38: -0.25 | AG38: -124.09 | AK38: -16.53 | AO38: 0.00 | AP38: 0.00 | AQ38: 0.00 | AR38: 32.19 | AS38: 50.30 | AT38: -25.66 | AX38: -21.93 | BB38: 0.00 | BC38: 0.00 | BD38: -18.35 | BE38: 0.00 | BF38: 0.00 | BH38: 0.04 | BL38: 0.00
A39: 资产减值损失 | B39: 402.52 | C39: 963.17 | D39: 1,053.74 | E39: 898.81 | F39: 200.48 | G39: 21,128.24 | J39: 0.00 | N39: 898.68 | O39: 1,004.81 | P39: 1,417.45 | Q39: 668.57 | R39: 639.11 | S39: 582.43 | W39: 519.72 | AA39: 1,136.67 | AB39: 1,431.91 | AC39: 1,072.38 | AD39: 2,230.26 | AE39: 0.00 | AG39: 33.40 | AK39: 43.44 | AO39: 492.80 | AP39: 5,274.15 | AQ39: 3,000.28 | AR39: 3,457.34 | AS39: 3,077.48 | AT39: 7,407.16 | AX39: 301.80 | BB39: 1,577.05 | BC39: 1,412.89 | BD39: 40,678.12 | BE39: 808.95 | BF39: 1,787.57 | BH39: 23.93 | BL39: 31.98
A40: 信用减值损失 | B40: 0.00 | C40: 0.00 | D40: 0.00 | E40: 0.00 | F40: 2,022.11 | G40: 2,816.90 | J40: 1,079.49 | N40: 0.00 | O40: 0.00 | P40: 0.00 | Q40: 0.00 | R40: 45.83 | S40: -71.54 | W40: -854.49 | AA40: 0.00 | AB40: 0.00 | AC40: 0.00 | AD40: 0.00 | AE40: 2,680.51 | AG40: 2,263.57 | AK40: -561.12 | AO40: 0.00 | AP40: 0.00 | AQ40: 0.00 | AR40: 0.00 | AS40: 4,559.85 | AT40: 4,881.58 | AX40: -1,292.14 | BB40: 0.00 | BC40: 0.00 | BD40: 0.00 | BE40: 0.00 | BF40: 441.44 | BH40: 2,715.68 | BL40: 2,078.92
A41: 其他收益 | B41: 0.00 | C41: 0.00 | D41: 1,224.23 | E41: 2,035.11 | F41: 3,925.63 | G41: 5,730.36 | J41: 3,956.53 | N41: 0.00 | O41: 0.00 | P41: 560.58 | Q41: 892.88 | R41: 1,061.19 | S41: 921.61 | W41: 695.06 | AA41: 0.00 | AB41: 0.00 | AC41: 4,292.85 | AD41: 5,354.28 | AE41: 4,676.48 | AG41: 6,230.03 | AK41: 4,017.82 | AO41: 0.00 | AP41: 0.00 | AQ41: 2,520.12 | AR41: 4,028.53 | AS41: 6,099.71 | AT41: 8,971.35 | AX41: 4,937.40 | BB41: 0.00 | BC41: 0.00 | BD41: 3,102.21 | BE41: 4,362.92 | BF41: 4,955.88 | BH41: 12,123.34 | BL41: 5,769.29
A42: 营业利润差额(特殊报表科目) | B42: 0.00 | C42: 0.00 | D42: 0.00 | E42: 0.00 | F42: 0.00 | G42: 0.00 | J42: 0.00 | N42: 0.00 | O42: 0.00 | P42: 0.00 | Q42: 0.00 | R42: 0.00 | S42: 0.00 | W42: 0.00 | AA42: 0.00 | AB42: 0.00 | AC42: 0.00 | AD42: 0.00 | AE42: 0.00 | AG42: 0.00 | AK42: 0.00 | AO42: 0.00 | AP42: 0.00 | AQ42: 0.00 | AR42: 0.00 | AS42: 0.00 | AT42: 0.00 | AX42: 0.00 | BB42: 0.00 | BC42: 0.00 | BD42: 0.00 | BE42: 0.00 | BF42: 0.00 | BH42: 0.00 | BL42: 0.00
A43: 营业利润差额(合计平衡科目) | B43: 0.00 | C43: 0.00 | D43: 0.00 | E43: 0.00 | F43: 0.00 | G43: 0.00 | J43: 0.00 | N43: 0.00 | O43: 0.00 | P43: 0.00 | Q43: 0.00 | R43: 0.00 | S43: 0.00 | W43: 0.00 | AA43: 0.00 | AB43: 0.00 | AC43: 0.00 | AD43: 0.00 | AE43: 0.00 | AG43: 0.00 | AK43: 0.00 | AO43: 0.00 | AP43: 0.00 | AQ43: 0.00 | AR43: 0.00 | AS43: 0.00 | AT43: 0.00 | AX43: 0.00 | BB43: 0.00 | BC43: 0.00 | BD43: 0.00 | BE43: 0.00 | BF43: 0.00 | BH43: 0.00 | BL43: 0.00
A44: 三、营业利润 | B44: 4,189.07 | C44: 5,319.12 | D44: 1,067.72 | E44: 4,889.38 | F44: 13,394.39 | G44: 5,106.23 | J44: 4,926.91 | N44: 3,773.81 | O44: 4,897.05 | P44: 6,510.14 | Q44: 9,322.27 | R44: 8,759.75 | S44: 7,640.58 | W44: -3,019.06 | AA44: 5,753.37 | AB44: 11,266.14 | AC44: 17,807.26 | AD44: 26,242.99 | AE44: 17,234.80 | AG44: 20,951.94 | AK44: 11,839.72 | AO44: 21,862.68 | AP44: 30,541.25 | AQ44: 45,971.63 | AR44: 59,607.13 | AS44: 53,684.84 | AT44: 31,917.37 | AX44: 22,779.01 | BB44: 4,828.88 | BC44: 8,276.01 | BD44: -31,334.14 | BE44: 12,663.22 | BF44: 15,327.67 | BH44: 26,372.67 | BL44: 2,645.05
A45: 加：营业外收入 | B45: 491.58 | C45: 955.19 | D45: 0.00 | E45: 0.29 | F45: 0.00 | G45: 0.00 | J45: 229.92 | N45: 1,462.81 | O45: 1,190.70 | P45: 649.81 | Q45: 373.72 | R45: 325.90 | S45: 117.95 | W45: 50.39 | AA45: 1,300.92 | AB45: 2,222.14 | AC45: 394.84 | AD45: 355.60 | AE45: 15.37 | AG45: 5.45 | AK45: 6.99 | AO45: 2,892.69 | AP45: 6,082.82 | AQ45: 3,860.39 | AR45: 441.22 | AS45: 927.13 | AT45: 1,527.54 | AX45: 815.89 | BB45: 3,489.83 | BC45: 4,471.55 | BD45: 1,417.08 | BE45: 0.93 | BF45: 0.28 | BH45: 0.34 | BL45: 9.97
A46: 其中：非流动资产处置利得 | B46: 0.00 | C46: 0.00 | D46: 0.00 | E46: 0.00 | F46: 0.00 | G46: 0.00 | J46: 0.00 | N46: 0.08 | O46: 0.00 | P46: 0.00 | Q46: 0.00 | R46: 0.00 | S46: 0.00 | W46: 0.00 | AA46: 0.37 | AB46: 14.26 | AC46: 0.00 | AD46: 0.00 | AE46: 0.00 | AG46: 0.00 | AK46: 0.00 | AO46: 8.82 | AP46: 0.44 | AQ46: 0.00 | AR46: 0.00 | AS46: 0.00 | AT46: 0.00 | AX46: 0.00 | BB46: 0.00 | BC46: 0.18 | BD46: 0.00 | BE46: 0.00 | BF46: 0.00 | BH46: 0.00 | BL46: 0.00
A47: 减：营业外支出 | B47: 8.36 | C47: 10.00 | D47: 2.20 | E47: 120.51 | F47: 0.09 | G47: 129.07 | J47: 2.29 | N47: 6.33 | O47: 8.56 | P47: 11.83 | Q47: 158.14 | R47: 88.01 | S47: 13.26 | W47: 3.64 | AA47: 35.45 | AB47: 44.65 | AC47: 11.23 | AD47: 39.47 | AE47: 78.53 | AG47: 24.30 | AK47: 13.65 | AO47: 16.76 | AP47: 8.27 | AQ47: 186.41 | AR47: 1,440.37 | AS47: 171.96 | AT47: 42.31 | AX47: 261.08 | BB47: 90.69 | BC47: 157.98 | BD47: 18.65 | BE47: 18.13 | BF47: 14.82 | BH47: 503.96 | BL47: 2.46
A48: 其中：非流动资产处置损失 | B48: 8.36 | C48: 0.00 | D48: 0.00 | E48: 0.00 | F48: 0.00 | G48: 0.00 | J48: 0.00 | N48: 6.33 | O48: 8.13 | P48: 0.00 | Q48: 0.00 | R48: 0.00 | S48: 0.00 | W48: 0.00 | AA48: 22.68 | AB48: 40.93 | AC48: 0.00 | AD48: 0.00 | AE48: 0.00 | AG48: 0.00 | AK48: 0.00 | AO48: 14.22 | AP48: 6.96 | AQ48: 0.00 | AR48: 0.00 | AS48: 0.00 | AT48: 0.00 | AX48: 0.00 | BB48: 77.74 | BC48: 129.18 | BD48: 0.00 | BE48: 0.00 | BF48: 0.00 | BH48: 0.00 | BL48: 0.00
A49: 利润总额差额(特殊报表科目) | B49: 0.00 | C49: 0.00 | D49: 0.00 | E49: 0.00 | F49: 0.00 | G49: 0.00 | J49: 0.00 | N49: 0.00 | O49: 0.00 | P49: 0.00 | Q49: 0.00 | R49: 0.00 | S49: 0.00 | W49: 0.00 | AA49: 0.00 | AB49: 0.00 | AC49: 0.00 | AD49: 0.00 | AE49: 0.00 | AG49: 0.00 | AK49: 0.00 | AO49: 0.00 | AP49: 0.00 | AQ49: 0.00 | AR49: 0.00 | AS49: 0.00 | AT49: 0.00 | AX49: 0.00 | BB49: 0.00 | BC49: 0.00 | BD49: 0.00 | BE49: 0.00 | BF49: 0.00 | BH49: 0.00 | BL49: 0.00
A50: 利润总额差额(合计平衡科目) | B50: 0.00 | C50: 0.00 | D50: 0.00 | E50: 0.00 | F50: 0.00 | G50: 0.00 | J50: 0.00 | N50: 0.00 | O50: 0.00 | P50: 0.00 | Q50: 0.00 | R50: 0.00 | S50: 0.00 | W50: 0.00 | AA50: 0.00 | AB50: 0.00 | AC50: 0.00 | AD50: 0.00 | AE50: 0.00 | AG50: 0.00 | AK50: 0.00 | AO50: 0.00 | AP50: 0.00 | AQ50: 0.00 | AR50: 0.00 | AS50: 0.00 | AT50: 0.00 | AX50: 0.00 | BB50: 0.00 | BC50: 0.00 | BD50: 0.00 | BE50: 0.00 | BF50: 0.00 | BH50: 0.00 | BL50: 0.00
A51: 四、利润总额 | B51: 4,672.29 | C51: 6,264.31 | D51: 1,065.52 | E51: 4,769.16 | F51: 13,394.29 | G51: 4,977.17 | J51: 5,154.53 | N51: 5,230.30 | O51: 6,079.19 | P51: 7,148.12 | Q51: 9,537.85 | R51: 8,997.64 | S51: 7,745.26 | W51: -2,972.32 | AA51: 7,018.85 | AB51: 13,443.64 | AC51: 18,190.88 | AD51: 26,559.12 | AE51: 17,171.64 | AG51: 20,933.09 | AK51: 11,833.06 | AO51: 24,738.62 | AP51: 36,615.81 | AQ51: 49,645.61 | AR51: 58,607.98 | AS51: 54,440.01 | AT51: 33,402.60 | AX51: 23,333.82 | BB51: 8,228.01 | BC51: 12,589.57 | BD51: -29,935.72 | BE51: 12,646.02 | BF51: 15,313.13 | BH51: 25,869.04 | BL51: 2,652.56
A52: 减：所得税费用 | B52: 384.46 | C52: 843.34 | D52: -846.81 | E52: -353.79 | F52: 817.21 | G52: 375.81 | J52: -281.80 | N52: 490.09 | O52: 533.40 | P52: 602.90 | Q52: 906.31 | R52: 167.31 | S52: 744.25 | W52: -144.96 | AA52: -487.46 | AB52: -15.45 | AC52: 256.87 | AD52: 2,115.30 | AE52: 1,899.40 | AG52: 3,451.56 | AK52: 1,581.57 | AO52: 1,940.82 | AP52: 3,230.42 | AQ52: 5,708.37 | AR52: 5,561.49 | AS52: 4,078.56 | AT52: 2,095.66 | AX52: 1,418.97 | BB52: 1,159.37 | BC52: 1,453.21 | BD52: 792.95 | BE52: 429.16 | BF52: 1,183.95 | BH52: 1,432.58 | BL52: -1,167.52
A53: 净利润差额(特殊报表科目) | B53: 0.00 | C53: 0.00 | D53: 0.00 | E53: 0.00 | F53: 0.00 | G53: 0.00 | J53: 0.00 | N53: 0.00 | O53: 0.00 | P53: 0.00 | Q53: 0.00 | R53: 0.00 | S53: 0.00 | W53: 0.00 | AA53: 0.00 | AB53: 0.00 | AC53: 0.00 | AD53: 0.00 | AE53: 0.00 | AG53: 0.00 | AK53: 0.00 | AO53: 0.00 | AP53: 0.00 | AQ53: 0.00 | AR53: 0.00 | AS53: 0.00 | AT53: 0.00 | AX53: 0.00 | BB53: 0.00 | BC53: 0.00 | BD53: 0.00 | BE53: 0.00 | BF53: 0.00 | BH53: 0.00 | BL53: 0.00
A54: 净利润差额(合计平衡科目) | B54: 0.00 | C54: 0.00 | D54: 0.00 | E54: 0.00 | F54: 0.00 | G54: 0.00 | J54: 0.00 | N54: 0.00 | O54: 0.00 | P54: 0.00 | Q54: 0.00 | R54: 0.00 | S54: 0.00 | W54: 0.00 | AA54: 0.00 | AB54: 0.00 | AC54: 0.00 | AD54: 0.00 | AE54: 0.00 | AG54: 0.00 | AK54: 0.00 | AO54: 0.00 | AP54: 0.00 | AQ54: 0.00 | AR54: 0.00 | AS54: 0.00 | AT54: 0.00 | AX54: 0.00 | BB54: 0.00 | BC54: 0.00 | BD54: 0.00 | BE54: 0.00 | BF54: 0.00 | BH54: 0.00 | BL54: 0.00
A55: 五、净利润 | B55: 4,287.83 | C55: 5,420.97 | D55: 1,912.32 | E55: 5,122.95 | F55: 12,577.08 | G55: 4,601.36 | J55: 5,436.33 | N55: 4,740.20 | O55: 5,545.79 | P55: 6,545.22 | Q55: 8,631.54 | R55: 8,830.34 | S55: 7,001.01 | W55: -2,827.36 | AA55: 7,506.31 | AB55: 13,459.09 | AC55: 17,934.01 | AD55: 24,443.82 | AE55: 15,272.24 | AG55: 17,481.52 | AK55: 10,251.49 | AO55: 22,797.80 | AP55: 33,385.39 | AQ55: 43,937.24 | AR55: 53,046.48 | AS55: 50,361.45 | AT55: 31,306.94 | AX55: 21,914.85 | BB55: 7,068.64 | BC55: 11,136.36 | BD55: -30,728.67 | BE55: 12,216.86 | BF55: 14,129.19 | BH55: 24,436.46 | BL55: 3,820.08
A56: (一)持续经营净利润 | B56: 0.00 | C56: 0.00 | D56: 1,912.32 | E56: 5,122.95 | F56: 12,577.08 | G56: 4,601.36 | J56: 5,436.33 | N56: 0.00 | O56: 0.00 | P56: 6,545.22 | Q56: 8,631.54 | R56: 8,830.34 | S56: 7,001.01 | W56: -2,827.36 | AA56: 0.00 | AB56: 0.00 | AC56: 17,934.01 | AD56: 24,443.82 | AE56: 15,272.24 | AG56: 17,481.52 | AK56: 10,251.49 | AO56: 0.00 | AP56: 0.00 | AQ56: 43,937.24 | AR56: 52,920.30 | AS56: 50,361.45 | AT56: 31,306.94 | AX56: 21,914.85 | BB56: 0.00 | BC56: 0.00 | BD56: -30,728.67 | BE56: 12,216.86 | BF56: 14,129.19 | BH56: 24,436.46 | BL56: 3,820.08
A57: (二)终止经营净利润 | B57: 0.00 | C57: 0.00 | D57: 0.00 | E57: 0.00 | F57: 0.00 | G57: 0.00 | J57: 0.00 | N57: 0.00 | O57: 0.00 | P57: 0.00 | Q57: 0.00 | R57: 0.00 | S57: 0.00 | W57: 0.00 | AA57: 0.00 | AB57: 0.00 | AC57: 0.00 | AD57: 0.00 | AE57: 0.00 | AG57: 0.00 | AK57: 0.00 | AO57: 0.00 | AP57: 0.00 | AQ57: 0.00 | AR57: 126.19 | AS57: 0.00 | AT57: 0.00 | AX57: 0.00 | BB57: 0.00 | BC57: 0.00 | BD57: 0.00 | BE57: 0.00 | BF57: 0.00 | BH57: 0.00 | BL57: 0.00
A58: 减：少数股东损益 | B58: -157.02 | C58: -271.78 | D58: 74.89 | E58: 236.88 | F58: 692.47 | G58: 573.24 | J58: 368.64 | N58: 0.00 | O58: 0.00 | P58: 0.00 | Q58: 99.98 | R58: -271.71 | S58: -67.58 | W58: -165.23 | AA58: 1,201.30 | AB58: 1,968.72 | AC58: 2,340.71 | AD58: 2,889.55 | AE58: 3,600.52 | AG58: 4,271.25 | AK58: 2,788.40 | AO58: -53.76 | AP58: 595.27 | AQ58: 858.36 | AR58: 1,220.57 | AS58: 15.33 | AT58: 1,121.37 | AX58: 803.29 | BB58: 0.00 | BC58: 0.00 | BD58: 0.00 | BE58: 0.00 | BF58: 0.00 | BH58: 0.00 | BL58: 0.00
A59: 归属于母公司所有者的净利润 | B59: 4,444.85 | C59: 5,692.74 | D59: 1,837.44 | E59: 4,886.07 | F59: 11,884.61 | G59: 4,028.12 | J59: 5,067.69 | N59: 4,740.20 | O59: 5,545.79 | P59: 6,545.22 | Q59: 8,531.57 | R59: 9,102.05 | S59: 7,068.60 | W59: -2,662.13 | AA59: 6,305.01 | AB59: 11,490.37 | AC59: 15,593.29 | AD59: 21,554.27 | AE59: 11,671.73 | AG59: 13,210.28 | AK59: 7,463.08 | AO59: 22,851.55 | AP59: 32,790.11 | AQ59: 43,078.89 | AR59: 51,825.91 | AS59: 50,346.11 | AT59: 30,185.57 | AX59: 21,111.56 | BB59: 7,068.64 | BC59: 11,136.36 | BD59: -30,728.67 | BE59: 12,216.86 | BF59: 14,129.19 | BH59: 24,436.46 | BL59: 3,820.08
A60: 扣除非经常性损益后的归属母公司股东净利润 | B60: 4,023.11 | C60: 4,882.59 | D60: 646.95 | E60: 3,255.44 | F60: 8,000.58 | G60: -12,230.31 | J60: 2,459.23 | N60: 5,111.40 | O60: 5,824.68 | P60: 5,704.29 | Q60: 8,125.68 | R60: 8,660.49 | S60: 6,423.08 | W60: -3,196.80 | AA60: 5,272.00 | AB60: 9,117.50 | AC60: 13,354.51 | AD60: 18,899.38 | AE60: 9,592.47 | AG60: 9,959.56 | AK60: 5,430.96 | AO60: 22,286.42 | AP60: 27,444.22 | AQ60: 36,327.35 | AR60: 48,237.50 | AS60: 45,938.13 | AT60: 22,862.22 | AX60: 16,888.07 | BB60: 6,167.69 | BC60: 10,238.74 | BD60: -32,294.48 | BE60: 10,589.94 | BF60: 11,927.45 | BH60: 16,773.90 | BL60: 2,177.40
A61: 六、每股收益：
A62: (一) 基本每股收益(元) | B62: 0.64 | C62: 0.72 | D62: 0.09 | E62: 0.24 | F62: 0.49 | G62: 0.16 | J62: 0.21 | N62: 0.94 | O62: 1.10 | P62: 0.78 | Q62: 0.80 | R62: 0.58 | S62: 0.45 | W62: -0.15 | AA62: 0.20 | AB62: 0.34 | AC62: 0.42 | AD62: 0.54 | AE62: 0.18 | AG62: 0.21 | AK62: 0.12 | AO62: 0.41 | AP62: 0.53 | AQ62: 0.41 | AR62: 0.50 | AS62: 0.48 | AT62: 0.29 | AX62: 0.19 | BB62: 0.61 | BC62: 0.88 | BD62: -1.11 | BE62: 0.44 | BF62: 0.53 | BH62: 0.88 | BL62: 0.08
A63: (二) 稀释每股收益(元) | B63: 0.64 | C63: 0.72 | D63: 0.09 | E63: 0.24 | F63: 0.49 | G63: 0.16 | J63: 0.21 | N63: 0.94 | O63: 1.10 | P63: 0.78 | Q63: 0.80 | R63: 0.58 | S63: 0.45 | W63: -0.11 | AA63: 0.20 | AB63: 0.34 | AC63: 0.42 | AD63: 0.54 | AE63: 0.18 | AG63: 0.21 | AK63: 0.12 | AO63: 0.40 | AP63: 0.53 | AQ63: 0.41 | AR63: 0.50 | AS63: 0.48 | AT63: 0.29 | AX63: 0.19 | BB63: 0.61 | BC63: 0.88 | BD63: -1.11 | BE63: 0.44 | BF63: 0.52 | BH63: 0.86 | BL63: 0.08
A64: 七、其他综合收益 | B64: 10.68 | C64: 20.74 | D64: -16.55 | E64: 24.31 | F64: 1,566.00 | G64: 2,526.20 | J64: -47.85 | N64: 1.00 | O64: 4.85 | P64: -4.49 | Q64: 1.93 | R64: 0.45 | S64: -2.20 | W64: -0.30 | AA64: 0.00 | AB64: 0.00 | AC64: 0.00 | AD64: 0.00 | AE64: 1,234.21 | AG64: 401.71 | AK64: 0.00 | AO64: -4.94 | AP64: -365.13 | AQ64: 142.40 | AR64: -35.76 | AS64: 193.16 | AT64: -124.10 | AX64: -83.91 | BB64: 0.23 | BC64: 0.00 | BD64: 0.00 | BE64: 0.00 | BF64: 0.00 | BH64: -405.78 | BL64: 0.00
A65: 归属母公司所有者的其他综合收益 | B65: 10.68 | C65: 20.74 | D65: -16.55 | E65: 24.31 | F65: 1,566.00 | G65: 2,526.20 | J65: -47.85 | N65: 1.00 | O65: 4.85 | P65: -4.49 | Q65: 1.93 | R65: 0.45 | S65: -2.20 | W65: -0.30 | AA65: 0.00 | AB65: 0.00 | AC65: 0.00 | AD65: 0.00 | AE65: 1,234.21 | AG65: 401.71 | AK65: 0.00 | AO65: -4.94 | AP65: -365.13 | AQ65: 142.40 | AR65: -35.76 | AS65: 193.16 | AT65: -124.10 | AX65: -83.91 | BB65: 0.23 | BC65: 0.00 | BD65: 0.00 | BE65: 0.00 | BF65: 0.00 | BH65: -405.78 | BL65: 0.00
A66: （一）以后不能重分类进损益的其他综合收益 | B66: 0.00 | C66: 0.00 | D66: 0.00 | E66: 0.00 | F66: 1,552.29 | G66: 2,542.07 | J66: 0.00 | N66: 0.00 | O66: 0.00 | P66: 0.00 | Q66: 0.00 | R66: 0.00 | S66: 0.00 | W66: 0.00 | AA66: 0.00 | AB66: 0.00 | AC66: 0.00 | AD66: 0.00 | AE66: 1,234.21 | AG66: 401.71 | AK66: 0.00 | AO66: 0.00 | AP66: 0.00 | AQ66: 0.00 | AR66: 0.00 | AS66: 0.00 | AT66: 0.00 | AX66: 0.00 | BB66: 0.00 | BC66: 0.00 | BD66: 0.00 | BE66: 0.00 | BF66: 0.00 | BH66: -405.78 | BL66: 0.00
A67: 1,重新计量设定受益计划净负债或净资产的变动 | B67: 0.00 | C67: 0.00 | D67: 0.00 | E67: 0.00 | F67: 0.00 | G67: 0.00 | J67: 0.00 | N67: 0.00 | O67: 0.00 | P67: 0.00 | Q67: 0.00 | R67: 0.00 | S67: 0.00 | W67: 0.00 | AA67: 0.00 | AB67: 0.00 | AC67: 0.00 | AD67: 0.00 | AE67: 0.00 | AG67: 0.00 | AK67: 0.00 | AO67: 0.00 | AP67: 0.00 | AQ67: 0.00 | AR67: 0.00 | AS67: 0.00 | AT67: 0.00 | AX67: 0.00 | BB67: 0.00 | BC67: 0.00 | BD67: 0.00 | BE67: 0.00 | BF67: 0.00 | BH67: 0.00 | BL67: 0.00
A68: 2,权益法下在被投资单位不能重分类进损益的其他综合收益中享有的份额 | B68: 0.00 | C68: 0.00 | D68: 0.00 | E68: 0.00 | F68: 0.00 | G68: 0.00 | J68: 0.00 | N68: 0.00 | O68: 0.00 | P68: 0.00 | Q68: 0.00 | R68: 0.00 | S68: 0.00 | W68: 0.00 | AA68: 0.00 | AB68: 0.00 | AC68: 0.00 | AD68: 0.00 | AE68: 0.00 | AG68: 0.00 | AK68: 0.00 | AO68: 0.00 | AP68: 0.00 | AQ68: 0.00 | AR68: 0.00 | AS68: 0.00 | AT68: 0.00 | AX68: 0.00 | BB68: 0.00 | BC68: 0.00 | BD68: 0.00 | BE68: 0.00 | BF68: 0.00 | BH68: 0.00 | BL68: 0.00
A69: 3,其他以后不能重分类进损益 | B69: 0.00 | C69: 0.00 | D69: 0.00 | E69: 0.00 | F69: 0.00 | G69: 0.00 | J69: 0.00 | N69: 0.00 | O69: 0.00 | P69: 0.00 | Q69: 0.00 | R69: 0.00 | S69: 0.00 | W69: 0.00 | AA69: 0.00 | AB69: 0.00 | AC69: 0.00 | AD69: 0.00 | AE69: 0.00 | AG69: 0.00 | AK69: 0.00 | AO69: 0.00 | AP69: 0.00 | AQ69: 0.00 | AR69: 0.00 | AS69: 0.00 | AT69: 0.00 | AX69: 0.00 | BB69: 0.00 | BC69: 0.00 | BD69: 0.00 | BE69: 0.00 | BF69: 0.00 | BH69: 0.00 | BL69: 0.00
A70: 4,其他权益工具投资公允价值变动 | B70: 0.00 | C70: 0.00 | D70: 0.00 | E70: 0.00 | F70: 1,552.29 | G70: 2,542.07 | J70: 0.00 | N70: 0.00 | O70: 0.00 | P70: 0.00 | Q70: 0.00 | R70: 0.00 | S70: 0.00 | W70: 0.00 | AA70: 0.00 | AB70: 0.00 | AC70: 0.00 | AD70: 0.00 | AE70: 1,234.21 | AG70: 401.71 | AK70: 0.00 | AO70: 0.00 | AP70: 0.00 | AQ70: 0.00 | AR70: 0.00 | AS70: 0.00 | AT70: 0.00 | AX70: 0.00 | BB70: 0.00 | BC70: 0.00 | BD70: 0.00 | BE70: 0.00 | BF70: 0.00 | BH70: -405.78 | BL70: 0.00
A71: 5,企业自身信用风险公允价值变动 | B71: 0.00 | C71: 0.00 | D71: 0.00 | E71: 0.00 | F71: 0.00 | G71: 0.00 | J71: 0.00 | N71: 0.00 | O71: 0.00 | P71: 0.00 | Q71: 0.00 | R71: 0.00 | S71: 0.00 | W71: 0.00 | AA71: 0.00 | AB71: 0.00 | AC71: 0.00 | AD71: 0.00 | AE71: 0.00 | AG71: 0.00 | AK71: 0.00 | AO71: 0.00 | AP71: 0.00 | AQ71: 0.00 | AR71: 0.00 | AS71: 0.00 | AT71: 0.00 | AX71: 0.00 | BB71: 0.00 | BC71: 0.00 | BD71: 0.00 | BE71: 0.00 | BF71: 0.00 | BH71: 0.00 | BL71: 0.00
A72: （二）以后将重分类进损益的其他综合收益 | B72: 10.68 | C72: 20.74 | D72: -16.55 | E72: 24.31 | F72: 13.71 | G72: -15.87 | J72: -47.85 | N72: 1.00 | O72: 4.85 | P72: -4.49 | Q72: 1.93 | R72: 0.45 | S72: -2.20 | W72: -0.30 | AA72: 0.00 | AB72: 0.00 | AC72: 0.00 | AD72: 0.00 | AE72: 0.00 | AG72: 0.00 | AK72: 0.00 | AO72: -4.94 | AP72: -365.13 | AQ72: 142.40 | AR72: -35.76 | AS72: 193.16 | AT72: -124.10 | AX72: -83.91 | BB72: 0.23 | BC72: 0.00 | BD72: 0.00 | BE72: 0.00 | BF72: 0.00 | BH72: 0.00 | BL72: 0.00
A73: 1,权益法下在被投资单位以后将重分类进损益的其他综合收益中享有的份额 | B73: 0.00 | C73: 0.00 | D73: 0.00 | E73: 0.00 | F73: 0.00 | G73: 0.00 | J73: 0.00 | N73: 0.00 | O73: 0.00 | P73: 0.00 | Q73: 0.00 | R73: 0.00 | S73: 0.00 | W73: 0.00 | AA73: 0.00 | AB73: 0.00 | AC73: 0.00 | AD73: 0.00 | AE73: 0.00 | AG73: 0.00 | AK73: 0.00 | AO73: 0.00 | AP73: 0.00 | AQ73: 0.00 | AR73: 0.00 | AS73: 0.00 | AT73: 0.00 | AX73: 0.00 | BB73: 0.00 | BC73: 0.00 | BD73: 0.00 | BE73: 0.00 | BF73: 0.00 | BH73: 0.00 | BL73: 0.00
A74: 2,可供出售金融资产公允价值变动损益 | B74: 0.00 | C74: 0.00 | D74: 0.00 | E74: 0.00 | F74: 0.00 | G74: 0.00 | J74: 0.00 | N74: 0.00 | O74: 0.00 | P74: 0.00 | Q74: 0.00 | R74: 0.00 | S74: 0.00 | W74: 0.00 | AA74: 0.00 | AB74: 0.00 | AC74: 0.00 | AD74: 0.00 | AE74: 0.00 | AG74: 0.00 | AK74: 0.00 | AO74: 0.00 | AP74: 0.00 | AQ74: 0.00 | AR74: 0.00 | AS74: 0.00 | AT74: 0.00 | AX74: 0.00 | BB74: 0.00 | BC74: 0.00 | BD74: 0.00 | BE74: 0.00 | BF74: 0.00 | BH74: 0.00 | BL74: 0.00
A75: 3,持有至到期投资重分类为可供出售金融资产损益 | B75: 0.00 | C75: 0.00 | D75: 0.00 | E75: 0.00 | F75: 0.00 | G75: 0.00 | J75: 0.00 | N75: 0.00 | O75: 0.00 | P75: 0.00 | Q75: 0.00 | R75: 0.00 | S75: 0.00 | W75: 0.00 | AA75: 0.00 | AB75: 0.00 | AC75: 0.00 | AD75: 0.00 | AE75: 0.00 | AG75: 0.00 | AK75: 0.00 | AO75: 0.00 | AP75: 0.00 | AQ75: 0.00 | AR75: 0.00 | AS75: 0.00 | AT75: 0.00 | AX75: 0.00 | BB75: 0.00 | BC75: 0.00 | BD75: 0.00 | BE75: 0.00 | BF75: 0.00 | BH75: 0.00 | BL75: 0.00
A76: 4,现金流量套期损益的有效部分 | B76: 0.00 | C76: 0.00 | D76: 0.00 | E76: 0.00 | F76: 0.00 | G76: 0.00 | J76: 0.00 | N76: 0.00 | O76: 0.00 | P76: 0.00 | Q76: 0.00 | R76: 0.00 | S76: 0.00 | W76: 0.00 | AA76: 0.00 | AB76: 0.00 | AC76: 0.00 | AD76: 0.00 | AE76: 0.00 | AG76: 0.00 | AK76: 0.00 | AO76: 0.00 | AP76: 0.00 | AQ76: 0.00 | AR76: 0.00 | AS76: 0.00 | AT76: 0.00 | AX76: 0.00 | BB76: 0.00 | BC76: 0.00 | BD76: 0.00 | BE76: 0.00 | BF76: 0.00 | BH76: 0.00 | BL76: 0.00
A77: 5,外币财务报表折算差额 | B77: 10.68 | C77: 20.74 | D77: -16.55 | E77: 24.31 | F77: 13.71 | G77: -15.87 | J77: -47.85 | N77: 0.00 | O77: 4.85 | P77: -4.49 | Q77: 1.93 | R77: 0.45 | S77: -2.20 | W77: -0.30 | AA77: 0.00 | AB77: 0.00 | AC77: 0.00 | AD77: 0.00 | AE77: 0.00 | AG77: 0.00 | AK77: 0.00 | AO77: -4.94 | AP77: -365.13 | AQ77: 142.40 | AR77: -35.76 | AS77: 193.16 | AT77: -124.10 | AX77: -83.91 | BB77: 0.23 | BC77: 0.00 | BD77: 0.00 | BE77: 0.00 | BF77: 0.00 | BH77: 0.00 | BL77: 0.00
A78: 6,其他以后将重分类进损益 | B78: 0.00 | C78: 0.00 | D78: 0.00 | E78: 0.00 | F78: 0.00 | G78: 0.00 | J78: 0.00 | N78: 0.00 | O78: 0.00 | P78: 0.00 | Q78: 0.00 | R78: 0.00 | S78: 0.00 | W78: 0.00 | AA78: 0.00 | AB78: 0.00 | AC78: 0.00 | AD78: 0.00 | AE78: 0.00 | AG78: 0.00 | AK78: 0.00 | AO78: 0.00 | AP78: 0.00 | AQ78: 0.00 | AR78: 0.00 | AS78: 0.00 | AT78: 0.00 | AX78: 0.00 | BB78: 0.00 | BC78: 0.00 | BD78: 0.00 | BE78: 0.00 | BF78: 0.00 | BH78: 0.00 | BL78: 0.00
A79: 7,其他债权投资公允价值变动 | B79: 0.00 | C79: 0.00 | D79: 0.00 | E79: 0.00 | F79: 0.00 | G79: 0.00 | J79: 0.00 | N79: 0.00 | O79: 0.00 | P79: 0.00 | Q79: 0.00 | R79: 0.00 | S79: 0.00 | W79: 0.00 | AA79: 0.00 | AB79: 0.00 | AC79: 0.00 | AD79: 0.00 | AE79: 0.00 | AG79: 0.00 | AK79: 0.00 | AO79: 0.00 | AP79: 0.00 | AQ79: 0.00 | AR79: 0.00 | AS79: 0.00 | AT79: 0.00 | AX79: 0.00 | BB79: 0.00 | BC79: 0.00 | BD79: 0.00 | BE79: 0.00 | BF79: 0.00 | BH79: 0.00 | BL79: 0.00
A80: 8,金融资产重分类计入其他综合收益的金额 | B80: 0.00 | C80: 0.00 | D80: 0.00 | E80: 0.00 | F80: 0.00 | G80: 0.00 | J80: 0.00 | N80: 0.00 | O80: 0.00 | P80: 0.00 | Q80: 0.00 | R80: 0.00 | S80: 0.00 | W80: 0.00 | AA80: 0.00 | AB80: 0.00 | AC80: 0.00 | AD80: 0.00 | AE80: 0.00 | AG80: 0.00 | AK80: 0.00 | AO80: 0.00 | AP80: 0.00 | AQ80: 0.00 | AR80: 0.00 | AS80: 0.00 | AT80: 0.00 | AX80: 0.00 | BB80: 0.00 | BC80: 0.00 | BD80: 0.00 | BE80: 0.00 | BF80: 0.00 | BH80: 0.00 | BL80: 0.00
A81: 9,其他债权投资信用减值准备 | B81: 0.00 | C81: 0.00 | D81: 0.00 | E81: 0.00 | F81: 0.00 | G81: 0.00 | J81: 0.00 | N81: 0.00 | O81: 0.00 | P81: 0.00 | Q81: 0.00 | R81: 0.00 | S81: 0.00 | W81: 0.00 | AA81: 0.00 | AB81: 0.00 | AC81: 0.00 | AD81: 0.00 | AE81: 0.00 | AG81: 0.00 | AK81: 0.00 | AO81: 0.00 | AP81: 0.00 | AQ81: 0.00 | AR81: 0.00 | AS81: 0.00 | AT81: 0.00 | AX81: 0.00 | BB81: 0.00 | BC81: 0.00 | BD81: 0.00 | BE81: 0.00 | BF81: 0.00 | BH81: 0.00 | BL81: 0.00
A82: 10,现金流量套期储备 | B82: 0.00 | C82: 0.00 | D82: 0.00 | E82: 0.00 | F82: 0.00 | G82: 0.00 | J82: 0.00 | N82: 0.00 | O82: 0.00 | P82: 0.00 | Q82: 0.00 | R82: 0.00 | S82: 0.00 | W82: 0.00 | AA82: 0.00 | AB82: 0.00 | AC82: 0.00 | AD82: 0.00 | AE82: 0.00 | AG82: 0.00 | AK82: 0.00 | AO82: 0.00 | AP82: 0.00 | AQ82: 0.00 | AR82: 0.00 | AS82: 0.00 | AT82: 0.00 | AX82: 0.00 | BB82: 0.00 | BC82: 0.00 | BD82: 0.00 | BE82: 0.00 | BF82: 0.00 | BH82: 0.00 | BL82: 0.00
A83: 归属于少数股东的其他综合收益 | B83: 0.00 | C83: 0.00 | D83: 0.00 | E83: 0.00 | F83: 0.00 | G83: 0.00 | J83: 0.00 | N83: 0.00 | O83: 0.00 | P83: 0.00 | Q83: 0.00 | R83: 0.00 | S83: 0.00 | W83: 0.00 | AA83: 0.00 | AB83: 0.00 | AC83: 0.00 | AD83: 0.00 | AE83: 0.00 | AG83: 0.00 | AK83: 0.00 | AO83: 0.00 | AP83: 0.00 | AQ83: 0.00 | AR83: 0.00 | AS83: 0.00 | AT83: 0.00 | AX83: 0.00 | BB83: 0.00 | BC83: 0.00 | BD83: 0.00 | BE83: 0.00 | BF83: 0.00 | BH83: 0.00 | BL83: 0.00
A84: 八、综合收益总额 | B84: 4,298.51 | C84: 5,441.70 | D84: 1,895.78 | E84: 5,147.26 | F84: 14,143.08 | G84: 7,127.56 | J84: 5,388.48 | N84: 4,741.20 | O84: 5,550.65 | P84: 6,540.73 | Q84: 8,633.47 | R84: 8,830.78 | S84: 6,998.82 | W84: -2,827.66 | AA84: 7,506.31 | AB84: 13,459.09 | AC84: 17,934.01 | AD84: 24,443.82 | AE84: 16,506.46 | AG84: 17,883.23 | AK84: 10,251.49 | AO84: 22,792.86 | AP84: 33,020.25 | AQ84: 44,079.64 | AR84: 53,010.73 | AS84: 50,554.61 | AT84: 31,182.84 | AX84: 21,830.94 | BB84: 7,068.87 | BC84: 11,136.36 | BD84: -30,728.67 | BE84: 12,216.86 | BF84: 14,129.19 | BH84: 24,030.69 | BL84: 3,820.08
A85: 归属于母公司股东的综合收益总额 | B85: 4,455.53 | C85: 5,713.48 | D85: 1,820.89 | E85: 4,910.38 | F85: 13,450.62 | G85: 6,554.32 | J85: 5,019.84 | N85: 4,741.20 | O85: 5,550.65 | P85: 6,540.73 | Q85: 8,533.50 | R85: 9,102.50 | S85: 7,066.40 | W85: -2,662.43 | AA85: 6,305.01 | AB85: 11,490.37 | AC85: 15,593.29 | AD85: 21,554.27 | AE85: 12,905.94 | AG85: 13,611.98 | AK85: 7,463.08 | AO85: 22,846.62 | AP85: 32,424.98 | AQ85: 43,221.28 | AR85: 51,790.16 | AS85: 50,539.27 | AT85: 30,061.48 | AX85: 21,027.65 | BB85: 7,068.87 | BC85: 11,136.36 | BD85: -30,728.67 | BE85: 12,216.86 | BF85: 14,129.19 | BH85: 24,030.69 | BL85: 3,820.08
A86: 归属于少数股东的综合收益总额 | B86: -157.02 | C86: -271.78 | D86: 74.89 | E86: 236.88 | F86: 692.47 | G86: 573.24 | J86: 368.64 | N86: 0.00 | O86: 0.00 | P86: 0.00 | Q86: 99.98 | R86: -271.71 | S86: -67.58 | W86: -165.23 | AA86: 1,201.30 | AB86: 1,968.72 | AC86: 2,340.71 | AD86: 2,889.55 | AE86: 3,600.52 | AG86: 4,271.25 | AK86: 2,788.40 | AO86: -53.76 | AP86: 595.27 | AQ86: 858.36 | AR86: 1,220.57 | AS86: 15.33 | AT86: 1,121.37 | AX86: 803.29 | BB86: 0.00 | BC86: 0.00 | BD86: 0.00 | BE86: 0.00 | BF86: 0.00 | BH86: 0.00 | BL86: 0.00
A91: 财务报表新准则-一般企业-资产负债表(单位:万元)
A92: 流动资产：
A93: 货币资金 | B93: 15,408.01 | C93: 53,040.26 | D93: 50,775.99 | E93: 46,617.17 | F93: 70,848.09 | G93: 74,138.60 | J93: 51,899.62 | N93: 13,968.04 | O93: 21,344.16 | P93: 23,860.53 | Q93: 38,536.54 | R93: 39,334.57 | S93: 37,769.71 | W93: 27,629.50 | AA93: 41,034.91 | AB93: 18,472.97 | AC93: 34,541.24 | AD93: 30,358.49 | AE93: 47,635.03 | AG93: 37,014.31 | AK93: 27,862.27 | AO93: 45,628.22 | AP93: 56,894.84 | AQ93: 91,154.29 | AR93: 118,085.30 | AS93: 91,922.30 | AT93: 94,099.67 | AX93: 79,946.58 | BB93: 18,641.80 | BC93: 65,957.78 | BD93: 59,862.41 | BE93: 37,009.46 | BF93: 35,593.24 | BH93: 31,809.82 | BL93: 15,023.33
A94: 结算备付金 | B94: 0.00 | C94: 0.00 | D94: 0.00 | E94: 0.00 | F94: 0.00 | G94: 0.00 | J94: 0.00 | N94: 0.00 | O94: 0.00 | P94: 0.00 | Q94: 0.00 | R94: 0.00 | S94: 0.00 | W94: 0.00 | AA94: 0.00 | AB94: 0.00 | AC94: 0.00 | AD94: 0.00 | AE94: 0.00 | AG94: 0.00 | AK94: 0.00 | AO94: 0.00 | AP94: 0.00 | AQ94: 0.00 | AR94: 0.00 | AS94: 0.00 | AT94: 0.00 | AX94: 0.00 | BB94: 0.00 | BC94: 0.00 | BD94: 0.00 | BE94: 0.00 | BF94: 0.00 | BH94: 0.00 | BL94: 0.00
A95: 拆出资金 | B95: 0.00 | C95: 0.00 | D95: 0.00 | E95: 0.00 | F95: 0.00 | G95: 0.00 | J95: 0.00 | N95: 0.00 | O95: 0.00 | P95: 0.00 | Q95: 0.00 | R95: 0.00 | S95: 0.00 | W95: 0.00 | AA95: 0.00 | AB95: 0.00 | AC95: 0.00 | AD95: 0.00 | AE95: 0.00 | AG95: 0.00 | AK95: 0.00 | AO95: 0.00 | AP95: 0.00 | AQ95: 0.00 | AR95: 0.00 | AS95: 0.00 | AT95: 0.00 | AX95: 0.00 | BB95: 0.00 | BC95: 0.00 | BD95: 0.00 | BE95: 0.00 | BF95: 0.00 | BH95: 0.00 | BL95: 0.00
A96: 交易性金融资产 | B96: 0.00 | C96: 0.00 | D96: 0.00 | E96: 0.00 | F96: 0.00 | G96: 0.00 | J96: 0.00 | N96: 0.00 | O96: 0.00 | P96: 0.00 | Q96: 0.00 | R96: 0.00 | S96: 0.00 | W96: 0.00 | AA96: 0.00 | AB96: 0.00 | AC96: 312.39 | AD96: 172.24 | AE96: 223.27 | AG96: 0.00 | AK96: 0.00 | AO96: 0.00 | AP96: 0.00 | AQ96: 0.00 | AR96: 0.00 | AS96: 3,335.00 | AT96: 1,900.00 | AU96: 1,900.00 | AX96: 29,600.00 | AY96: 29,600.00 | BB96: 0.00 | BC96: 0.00 | BD96: 0.00 | BE96: 0.00 | BF96: 0.00 | BH96: 0.00 | BI96: 0.00 | BL96: 0.00 | BM96: 0.00
A97: 衍生金融资产 | B97: 0.00 | C97: 0.00 | D97: 0.00 | E97: 0.00 | F97: 0.00 | G97: 0.00 | J97: 0.00 | N97: 0.00 | O97: 0.00 | P97: 0.00 | Q97: 0.00 | R97: 0.00 | S97: 0.00 | W97: 0.00 | AA97: 0.00 | AB97: 0.00 | AC97: 0.00 | AD97: 0.00 | AE97: 0.00 | AG97: 0.00 | AK97: 0.00 | AO97: 0.00 | AP97: 0.00 | AQ97: 0.00 | AR97: 0.00 | AS97: 0.00 | AT97: 0.00 | AX97: 0.00 | BB97: 0.00 | BC97: 0.00 | BD97: 0.00 | BE97: 0.00 | BF97: 0.00 | BH97: 0.00 | BL97: 0.00
A98: 应收票据及应收账款 | B98: 18,074.66 | C98: 28,124.78 | D98: 37,569.90 | E98: 46,744.71 | F98: 48,214.10 | G98: 37,864.67 | J98: 59,416.36 | N98: 28,246.44 | O98: 30,426.29 | P98: 40,307.70 | Q98: 42,489.48 | R98: 44,563.26 | S98: 35,600.21 | W98: 38,484.92 | AA98: 68,757.12 | AB98: 103,453.71 | AC98: 138,967.85 | AD98: 165,138.51 | AE98: 167,882.89 | AG98: 169,920.86 | AK98: 151,257.13 | AO98: 70,612.86 | AP98: 93,826.26 | AQ98: 124,454.39 | AR98: 171,154.04 | AS98: 193,138.21 | AT98: 151,293.52 | AX98: 143,302.27 | BB98: 25,796.44 | BC98: 31,664.50 | BD98: 30,434.17 | BE98: 35,124.28 | BF98: 45,595.99 | BH98: 59,414.08 | BL98: 53,554.61
A99: 其中：应收票据 | B99: 734.05 | C99: 180.00 | D99: 431.82 | E99: 4,061.32 | F99: 123.98 | G99: 116.38 | J99: 0.00 | N99: 0.00 | O99: 183.10 | P99: 716.31 | Q99: 495.86 | R99: 507.03 | S99: 683.99 | W99: 603.11 | AA99: 1,422.68 | AB99: 7,582.90 | AC99: 12,991.53 | AD99: 11,599.65 | AE99: 10,170.43 | AG99: 4,605.84 | AK99: 8,748.35 | AO99: 1,602.26 | AP99: 2,441.83 | AQ99: 3,987.84 | AR99: 4,373.52 | AS99: 5,376.42 | AT99: 4,740.50 | AX99: 4,984.62 | BB99: 51.50 | BC99: 785.75 | BD99: 330.86 | BE99: 92.99 | BF99: 651.32 | BH99: 2,018.94 | BL99: 31.40
A100: 应收账款 | B100: 17,340.62 | C100: 27,944.78 | D100: 37,138.08 | E100: 42,683.39 | F100: 48,090.12 | G100: 37,748.30 | J100: 59,416.36 | N100: 28,246.44 | O100: 30,243.19 | P100: 39,591.39 | Q100: 41,993.62 | R100: 44,056.23 | S100: 34,916.22 | W100: 37,881.81 | AA100: 67,334.44 | AB100: 95,870.80 | AC100: 125,976.32 | AD100: 153,538.86 | AE100: 157,712.46 | AG100: 165,315.02 | AK100: 142,508.78 | AO100: 69,010.60 | AP100: 91,384.43 | AQ100: 120,466.55 | AR100: 166,780.52 | AS100: 187,761.79 | AT100: 146,553.02 | AX100: 138,317.64 | BB100: 25,744.94 | BC100: 30,878.75 | BD100: 30,103.30 | BE100: 35,031.28 | BF100: 44,944.67 | BH100: 57,395.14 | BL100: 53,523.21
A101: 应收款项融资 | B101: 0.00 | C101: 0.00 | D101: 0.00 | E101: 0.00 | F101: 4,470.89 | G101: 4,615.17 | J101: 7,388.20 | N101: 0.00 | O101: 0.00 | P101: 0.00 | Q101: 0.00 | R101: 0.00 | S101: 0.00 | W101: 0.00 | AA101: 0.00 | AB101: 0.00 | AC101: 0.00 | AD101: 0.00 | AE101: 4,337.98 | AG101: 1,190.19 | AK101: 9,050.42 | AO101: 0.00 | AP101: 0.00 | AQ101: 0.00 | AR101: 0.00 | AS101: 0.00 | AT101: 0.00 | AX101: 0.00 | BB101: 0.00 | BC101: 0.00 | BD101: 0.00 | BE101: 0.00 | BF101: 0.00 | BH101: 0.00 | BL101: 0.00
A102: 预付款项 | B102: 845.53 | C102: 442.25 | D102: 1,211.60 | E102: 1,877.09 | F102: 1,376.47 | G102: 853.07 | J102: 9,374.70 | N102: 0.00 | O102: 0.00 | P102: 0.00 | Q102: 0.00 | R102: 0.00 | S102: 72.82 | W102: 0.00 | AA102: 8,033.80 | AB102: 13,557.35 | AC102: 14,570.86 | AD102: 9,743.90 | AE102: 45,263.56 | AG102: 23,522.39 | AK102: 17,991.44 | AO102: 2,358.41 | AP102: 2,784.50 | AQ102: 2,640.27 | AR102: 4,770.83 | AS102: 4,105.60 | AT102: 3,006.29 | AX102: 3,957.13 | BB102: 160.77 | BC102: 546.46 | BD102: 581.26 | BE102: 473.24 | BF102: 1,071.96 | BH102: 931.81 | BL102: 1,415.17
A103: 应收保费 | B103: 0.00 | C103: 0.00 | D103: 0.00 | E103: 0.00 | F103: 0.00 | G103: 0.00 | J103: 0.00 | N103: 0.00 | O103: 0.00 | P103: 0.00 | Q103: 0.00 | R103: 0.00 | S103: 0.00 | W103: 0.00 | AA103: 0.00 | AB103: 0.00 | AC103: 0.00 | AD103: 0.00 | AE103: 0.00 | AG103: 0.00 | AK103: 0.00 | AO103: 0.00 | AP103: 0.00 | AQ103: 0.00 | AR103: 0.00 | AS103: 0.00 | AT103: 0.00 | AX103: 0.00 | BB103: 0.00 | BC103: 0.00 | BD103: 0.00 | BE103: 0.00 | BF103: 0.00 | BH103: 0.00 | BL103: 0.00
A104: 应收分保账款 | B104: 0.00 | C104: 0.00 | D104: 0.00 | E104: 0.00 | F104: 0.00 | G104: 0.00 | J104: 0.00 | N104: 0.00 | O104: 0.00 | P104: 0.00 | Q104: 0.00 | R104: 0.00 | S104: 0.00 | W104: 0.00 | AA104: 0.00 | AB104: 0.00 | AC104: 0.00 | AD104: 0.00 | AE104: 0.00 | AG104: 0.00 | AK104: 0.00 | AO104: 0.00 | AP104: 0.00 | AQ104: 0.00 | AR104: 0.00 | AS104: 0.00 | AT104: 0.00 | AX104: 0.00 | BB104: 0.00 | BC104: 0.00 | BD104: 0.00 | BE104: 0.00 | BF104: 0.00 | BH104: 0.00 | BL104: 0.00
A105: 应收分保合同准备金 | B105: 0.00 | C105: 0.00 | D105: 0.00 | E105: 0.00 | F105: 0.00 | G105: 0.00 | J105: 0.00 | N105: 0.00 | O105: 0.00 | P105: 0.00 | Q105: 0.00 | R105: 0.00 | S105: 0.00 | W105: 0.00 | AA105: 0.00 | AB105: 0.00 | AC105: 0.00 | AD105: 0.00 | AE105: 0.00 | AG105: 0.00 | AK105: 0.00 | AO105: 0.00 | AP105: 0.00 | AQ105: 0.00 | AR105: 0.00 | AS105: 0.00 | AT105: 0.00 | AX105: 0.00 | BB105: 0.00 | BC105: 0.00 | BD105: 0.00 | BE105: 0.00 | BF105: 0.00 | BH105: 0.00 | BL105: 0.00
A106: 其他应收款合计 | B106: 1,409.65 | C106: 3,610.01 | D106: 4,086.68 | E106: 2,879.48 | F106: 2,737.96 | G106: 5,192.40 | J106: 6,207.74 | N106: 775.62 | O106: 782.78 | P106: 893.40 | Q106: 1,040.05 | R106: 1,246.33 | S106: 1,247.55 | T106: 50.00 | U106: 股权转让款 | W106: 1,358.25 | AA106: 2,534.66 | AB106: 2,941.72 | AC106: 4,060.52 | AD106: 5,707.38 | AE106: 5,712.91 | AG106: 4,986.01 | AK106: 7,102.98 | AO106: 2,537.95 | AP106: 5,078.15 | AQ106: 4,974.76 | AR106: 5,557.11 | AS106: 6,781.70 | AT106: 12,005.04 | AX106: 15,150.13 | BB106: 479.70 | BC106: 1,612.17 | BD106: 777.01 | BE106: 717.97 | BF106: 1,255.97 | BH106: 4,465.72 | BL106: 2,853.51
A107: 其中：应收利息 | B107: 0.00 | C107: 0.00 | D107: 0.00 | E107: 0.00 | F107: 0.00 | G107: 0.00 | J107: 0.00 | N107: 0.00 | O107: 0.00 | P107: 0.00 | Q107: 0.00 | R107: 0.00 | S107: 0.00 | W107: 0.00 | AA107: 0.00 | AB107: 278.63 | AC107: 0.00 | AD107: 0.00 | AE107: 0.00 | AG107: 0.00 | AK107: 0.00 | AO107: 0.00 | AP107: 294.72 | AQ107: 104.25 | AR107: 32.90 | AS107: 19.27 | AT107: 35.09 | AU107: 35.09 | AV107: 理财产品利息 | AX107: 0.00 | BB107: 0.00 | BC107: 226.90 | BD107: 220.88 | BE107: 0.00 | BF107: 0.00 | BH107: 0.00 | BL107: 0.00
A108: 应收股利 | B108: 0.00 | C108: 0.00 | D108: 0.00 | E108: 0.00 | F108: 0.00 | G108: 91.98 | H108: 91.98 | J108: 0.00 | K108: 0.00 | N108: 0.00 | O108: 0.00 | P108: 0.00 | Q108: 0.00 | R108: 0.00 | S108: 0.00 | W108: 0.00 | AA108: 0.00 | AB108: 0.00 | AC108: 0.00 | AD108: 0.00 | AE108: 0.00 | AG108: 0.00 | AK108: 0.00 | AO108: 0.00 | AP108: 0.00 | AQ108: 0.00 | AR108: 0.00 | AS108: 0.00 | AT108: 0.00 | AX108: 0.00 | BB108: 0.00 | BC108: 0.00 | BD108: 0.00 | BE108: 0.00 | BF108: 0.00 | BH108: 0.00 | BL108: 0.00
A109: 其他应收款 | B109: 1,409.65 | C109: 3,610.01 | D109: 4,086.68 | E109: 2,879.48 | F109: 2,737.96 | G109: 5,100.42 | H109: 1,557.00 | I109: 预付投资款 | J109: 0.00 | N109: 775.62 | O109: 782.78 | P109: 893.40 | Q109: 1,040.05 | R109: 1,246.33 | S109: 1,247.55 | W109: 0.00 | AA109: 2,534.66 | AB109: 2,663.09 | AC109: 4,060.52 | AD109: 5,707.38 | AE109: 5,712.91 | AG109: 4,986.01 | AK109: 0.00 | AO109: 2,537.95 | AP109: 4,783.43 | AQ109: 4,870.51 | AR109: 5,524.21 | AS109: 6,762.43 | AT109: 11,969.94 | AU109: 2,247.67 | AV109: 股权回购款+退税 | AX109: 0.00 | AY109: 3,840.70 | BB109: 479.70 | BC109: 1,385.27 | BD109: 556.12 | BE109: 717.97 | BF109: 1,255.97 | BH109: 4,465.72 | BI109: 2,962.08 | BJ109: 股权激励款 | BL109: 0.00 | BM109: 1,107.58 | BN109: 股权激励款
A110: 买入返售金融资产 | B110: 0.00 | C110: 0.00 | D110: 0.00 | E110: 0.00 | F110: 0.00 | G110: 0.00 | J110: 0.00 | N110: 0.00 | O110: 0.00 | P110: 0.00 | Q110: 0.00 | R110: 0.00 | S110: 0.00 | W110: 0.00 | AA110: 0.00 | AB110: 0.00 | AC110: 0.00 | AD110: 0.00 | AE110: 0.00 | AG110: 0.00 | AK110: 0.00 | AO110: 0.00 | AP110: 0.00 | AQ110: 0.00 | AR110: 0.00 | AS110: 0.00 | AT110: 0.00 | AX110: 0.00 | BB110: 0.00 | BC110: 0.00 | BD110: 0.00 | BE110: 0.00 | BF110: 0.00 | BH110: 0.00 | BL110: 0.00
A111: 合同资产 | B111: 0.00 | C111: 0.00 | D111: 0.00 | E111: 0.00 | F111: 0.00 | G111: 71.91 | J111: 425.04 | N111: 0.00 | O111: 0.00 | P111: 0.00 | Q111: 0.00 | R111: 0.00 | S111: 4,441.01 | W111: 5,572.05 | AA111: 0.00 | AB111: 0.00 | AC111: 0.00 | AD111: 0.00 | AE111: 0.00 | AG111: 2,858.03 | AK111: 3,220.69 | AO111: 0.00 | AP111: 0.00 | AQ111: 0.00 | AR111: 0.00 | AS111: 0.00 | AT111: 38,918.04 | AX111: 44,507.48 | BB111: 0.00 | BC111: 0.00 | BD111: 0.00 | BE111: 0.00 | BF111: 0.00 | BH111: 663.82 | BL111: 563.91
A112: 存货 | B112: 3,639.53 | C112: 3,990.42 | D112: 15,262.52 | E112: 14,685.55 | F112: 11,593.08 | G112: 19,157.54 | J112: 36,502.26 | N112: 20,277.79 | O112: 17,987.03 | P112: 16,773.40 | Q112: 19,173.52 | R112: 20,095.41 | S112: 29,240.44 | W112: 37,284.71 | AA112: 41,898.64 | AB112: 59,170.40 | AC112: 53,628.48 | AD112: 86,271.69 | AE112: 121,398.91 | AG112: 174,194.29 | AK112: 157,827.86 | AO112: 10,383.99 | AP112: 12,503.90 | AQ112: 17,243.22 | AR112: 20,630.27 | AS112: 34,494.29 | AT112: 49,758.46 | AX112: 87,428.33 | BB112: 106.50 | BC112: 1,607.90 | BD112: 3,324.88 | BE112: 3,857.77 | BF112: 2,661.55 | BH112: 8,336.69 | BL112: 9,216.20
A113: 持有待售资产 | B113: 0.00 | C113: 0.00 | D113: 0.00 | E113: 0.00 | F113: 0.00 | G113: 0.00 | J113: 0.00 | N113: 0.00 | O113: 0.00 | P113: 0.00 | Q113: 0.00 | R113: 0.00 | S113: 0.00 | W113: 0.00 | AA113: 0.00 | AB113: 0.00 | AC113: 0.00 | AD113: 0.00 | AE113: 0.00 | AG113: 0.00 | AK113: 0.00 | AO113: 0.00 | AP113: 0.00 | AQ113: 0.00 | AR113: 0.00 | AS113: 0.00 | AT113: 0.00 | AX113: 0.00 | BB113: 0.00 | BC113: 0.00 | BD113: 0.00 | BE113: 0.00 | BF113: 0.00 | BH113: 0.00 | BL113: 0.00
A114: 一年内到期的非流动资产 | B114: 0.00 | C114: 0.00 | D114: 0.00 | E114: 0.00 | F114: 6,662.10 | G114: 9,417.22 | H114: 9,417.22 | I114: 长期应收款 | J114: 9,475.01 | K114: 9,475.01 | L114: 长期应收款 | N114: 6.07 | O114: 71.64 | P114: 0.00 | Q114: 0.00 | R114: 0.00 | S114: 0.00 | W114: 0.00 | AA114: 0.00 | AB114: 0.00 | AC114: 0.00 | AD114: 0.00 | AE114: 0.00 | AG114: 0.00 | AK114: 0.00 | AO114: 0.00 | AP114: 0.00 | AQ114: 0.00 | AR114: 0.00 | AS114: 0.00 | AT114: 0.00 | AX114: 0.00 | BB114: 1.97 | BC114: 20.79 | BD114: 0.00 | BE114: 0.00 | BF114: 0.00 | BH114: 0.00 | BL114: 0.00
A115: 其他流动资产 | B115: 478.96 | C115: 3,294.74 | D115: 2,160.54 | E115: 2,586.53 | F115: 3,556.39 | G115: 4,296.63 | H115: 4,296.63 | I115: 预提预缴税费 | J115: 5,999.98 | K115: 5,999.98 | L115: 预提预缴税费 | N115: 392.85 | O115: 646.36 | P115: 7,388.95 | Q115: 2,444.58 | R115: 630.14 | S115: 1,566.08 | T115: 1,382.18 | U115: 预缴税金 | W115: 1,354.58 | X115: 1,139.33 | Y115: 预缴税金 | AA115: 0.00 | AB115: 26,309.83 | AC115: 402.84 | AD115: 1,339.62 | AE115: 1,834.44 | AG115: 8,141.75 | AH115: 8,141.75 | AI115: 待抵扣进项税 | AK115: 5,193.90 | AL115: 5,193.90 | AM115: 待抵扣进项税 | AO115: 1,103.72 | AP115: 145,521.22 | AQ115: 65,023.25 | AR115: 8,087.55 | AS115: 203.69 | AT115: 13,242.57 | AU115: 13,242.57 | AV115: 税费重分类+定期存款及应收利息 | AX115: 12,534.65 | AY115: 12,534.65 | AZ115: 税费重分类+定期存款及应收利息 | BB115: 0.00 | BC115: 0.04 | BD115: 4.09 | BE115: 4.09 | BF115: 6.62 | BH115: 132.23 | BI115: 132.23 | BJ115: 待抵扣进项税 | BL115: 1,072.50 | BM115: 1,072.50 | BN115: 待抵扣进项税
A116: 流动资产差额(特殊报表科目) | B116: 0.00 | C116: 0.00 | D116: 0.00 | E116: 0.00 | F116: 0.00 | G116: 0.00 | J116: 0.00 | N116: 0.00 | O116: 0.00 | P116: 0.00 | Q116: 0.00 | R116: 0.00 | S116: 0.00 | W116: 0.00 | AA116: 0.00 | AB116: 0.00 | AC116: 0.00 | AD116: 0.00 | AE116: 0.00 | AG116: 0.00 | AK116: 0.00 | AO116: 0.00 | AP116: 0.00 | AQ116: 0.00 | AR116: 0.00 | AS116: 0.00 | AT116: 0.00 | AX116: 0.00 | BB116: 0.00 | BC116: 0.00 | BD116: 0.00 | BE116: 0.00 | BF116: 0.00 | BH116: 0.00 | BL116: 0.00
A117: 流动资产差额(合计平衡科目) | B117: 0.00 | C117: 0.00 | D117: 0.00 | E117: 0.00 | F117: 0.00 | G117: 0.00 | J117: 0.00 | N117: 0.00 | O117: 0.00 | P117: 0.00 | Q117: 0.00 | R117: 0.00 | S117: 0.00 | W117: 0.00 | AA117: 0.00 | AB117: 0.00 | AC117: 0.00 | AD117: 0.00 | AE117: 0.00 | AG117: 0.00 | AK117: 0.00 | AO117: 0.00 | AP117: 0.00 | AQ117: 0.00 | AR117: 0.00 | AS117: 0.00 | AT117: 0.00 | AX117: 0.00 | BB117: 0.00 | BC117: 0.00 | BD117: 0.00 | BE117: 0.00 | BF117: 0.00 | BH117: 0.00 | BL117: 0.00
A118: 流动资产合计 | B118: 39,856.34 | C118: 92,502.45 | D118: 111,067.24 | E118: 115,390.53 | F118: 149,459.08 | G118: 155,607.21 | H118: 15,362.82 | J118: 186,688.91 | K118: 15,474.99 | N118: 63,666.82 | O118: 71,258.26 | P118: 89,223.98 | Q118: 103,684.17 | R118: 105,869.70 | S118: 109,937.83 | T118: 1,432.18 | W118: 111,684.02 | X118: 1,139.33 | AA118: 162,259.14 | AB118: 223,905.98 | AC118: 246,484.18 | AD118: 298,731.83 | AE118: 394,289.01 | AG118: 421,827.82 | AH118: 8,141.75 | AK118: 379,506.69 | AL118: 5,193.90 | AO118: 132,625.15 | AP118: 316,608.86 | AQ118: 305,490.19 | AR118: 328,285.10 | AS118: 333,980.79 | AT118: 364,223.61 | AU118: 17,425.34 | AX118: 416,426.57 | AY118: 45,975.35 | BB118: 45,187.19 | BC118: 101,409.63 | BD118: 94,983.82 | BE118: 77,186.80 | BF118: 86,185.33 | BH118: 105,754.17 | BI118: 3,094.31 | BL118: 83,699.24 | BM118: 2,180.08
A119: 非流动资产：
A120: 发放贷款及垫款 | B120: 0.00 | C120: 0.00 | D120: 0.00 | E120: 0.00 | F120: 0.00 | G120: 0.00 | J120: 0.00 | N120: 0.00 | O120: 0.00 | P120: 0.00 | Q120: 0.00 | R120: 0.00 | S120: 0.00 | W120: 0.00 | AA120: 0.00 | AB120: 0.00 | AC120: 0.00 | AD120: 0.00 | AE120: 0.00 | AG120: 0.00 | AK120: 0.00 | AO120: 0.00 | AP120: 0.00 | AQ120: 0.00 | AR120: 0.00 | AS120: 0.00 | AT120: 0.00 | AX120: 0.00 | BB120: 0.00 | BC120: 0.00 | BD120: 0.00 | BE120: 0.00 | BF120: 0.00 | BH120: 0.00 | BL120: 0.00
A121: 以公允价值计量且其变动计入其他综合收益的金融资产 | B121: 0.00 | C121: 0.00 | D121: 0.00 | E121: 0.00 | F121: 0.00 | G121: 0.00 | J121: 0.00 | N121: 0.00 | O121: 0.00 | P121: 0.00 | Q121: 0.00 | R121: 0.00 | S121: 0.00 | W121: 0.00 | AA121: 0.00 | AB121: 0.00 | AC121: 0.00 | AD121: 0.00 | AE121: 0.00 | AG121: 0.00 | AK121: 0.00 | AO121: 0.00 | AP121: 0.00 | AQ121: 0.00 | AR121: 0.00 | AS121: 0.00 | AT121: 0.00 | AX121: 0.00 | BB121: 0.00 | BC121: 0.00 | BD121: 0.00 | BE121: 0.00 | BF121: 0.00 | BH121: 0.00 | BL121: 0.00
A122: 以摊余成本计量的金融资产 | B122: 0.00 | C122: 0.00 | D122: 0.00 | E122: 0.00 | F122: 0.00 | G122: 0.00 | J122: 0.00 | N122: 0.00 | O122: 0.00 | P122: 0.00 | Q122: 0.00 | R122: 0.00 | S122: 0.00 | W122: 0.00 | AA122: 0.00 | AB122: 0.00 | AC122: 0.00 | AD122: 0.00 | AE122: 0.00 | AG122: 0.00 | AK122: 0.00 | AO122: 0.00 | AP122: 0.00 | AQ122: 0.00 | AR122: 0.00 | AS122: 0.00 | AT122: 0.00 | AX122: 0.00 | BB122: 0.00 | BC122: 0.00 | BD122: 0.00 | BE122: 0.00 | BF122: 0.00 | BH122: 0.00 | BL122: 0.00
A123: 可供出售金融资产 | B123: 0.00 | C123: 0.00 | D123: 0.00 | E123: 2,250.00 | F123: 0.00 | G123: 0.00 | J123: 0.00 | N123: 0.00 | O123: 0.00 | P123: 0.00 | Q123: 500.00 | R123: 0.00 | S123: 0.00 | W123: 0.00 | AA123: 5,090.04 | AB123: 3,573.40 | AC123: 5,506.40 | AD123: 7,292.76 | AE123: 0.00 | AG123: 0.00 | AK123: 0.00 | AO123: 0.00 | AP123: 10,115.99 | AQ123: 13,115.99 | AR123: 39,981.24 | AS123: 0.00 | AT123: 0.00 | AX123: 0.00 | BB123: 20.00 | BC123: 20.00 | BD123: 20.00 | BE123: 20.00 | BF123: 0.00 | BH123: 0.00 | BL123: 0.00
A124: 持有至到期投资 | B124: 0.00 | C124: 0.00 | D124: 0.00 | E124: 0.00 | F124: 0.00 | G124: 0.00 | J124: 0.00 | N124: 0.00 | O124: 0.00 | P124: 0.00 | Q124: 0.00 | R124: 0.00 | S124: 0.00 | W124: 0.00 | AA124: 0.00 | AB124: 0.00 | AC124: 0.00 | AD124: 0.00 | AE124: 0.00 | AG124: 0.00 | AK124: 0.00 | AO124: 0.00 | AP124: 0.00 | AQ124: 0.00 | AR124: 0.00 | AS124: 0.00 | AT124: 0.00 | AX124: 0.00 | BB124: 0.00 | BC124: 0.00 | BD124: 0.00 | BE124: 0.00 | BF124: 0.00 | BH124: 0.00 | BL124: 0.00
A125: 债权投资 | B125: 0.00 | C125: 0.00 | D125: 0.00 | E125: 0.00 | F125: 0.00 | G125: 0.00 | J125: 0.00 | N125: 0.00 | O125: 0.00 | P125: 0.00 | Q125: 0.00 | R125: 0.00 | S125: 0.00 | W125: 0.00 | AA125: 0.00 | AB125: 0.00 | AC125: 0.00 | AD125: 0.00 | AE125: 0.00 | AG125: 0.00 | AK125: 0.00 | AO125: 0.00 | AP125: 0.00 | AQ125: 0.00 | AR125: 0.00 | AS125: 0.00 | AT125: 0.00 | AX125: 0.00 | BB125: 0.00 | BC125: 0.00 | BD125: 0.00 | BE125: 0.00 | BF125: 0.00 | BH125: 0.00 | BL125: 0.00
A126: 其他债权投资 | B126: 0.00 | C126: 0.00 | D126: 0.00 | E126: 0.00 | F126: 0.00 | G126: 0.00 | J126: 0.00 | N126: 0.00 | O126: 0.00 | P126: 0.00 | Q126: 0.00 | R126: 0.00 | S126: 0.00 | W126: 0.00 | AA126: 0.00 | AB126: 0.00 | AC126: 0.00 | AD126: 0.00 | AE126: 0.00 | AG126: 0.00 | AK126: 0.00 | AO126: 0.00 | AP126: 0.00 | AQ126: 0.00 | AR126: 0.00 | AS126: 0.00 | AT126: 0.00 | AX126: 0.00 | BB126: 0.00 | BC126: 0.00 | BD126: 0.00 | BE126: 0.00 | BF126: 0.00 | BH126: 0.00 | BL126: 0.00
A127: 长期应收款 | B127: 0.00 | C127: 0.00 | D127: 0.00 | E127: 11,288.71 | F127: 8,493.07 | G127: 6,274.22 | H127: 6,274.22 | J127: 9,496.85 | K127: 9,496.85 | N127: 0.00 | O127: 0.00 | P127: 0.00 | Q127: 0.00 | R127: 0.00 | S127: 0.00 | W127: 0.00 | AA127: 0.00 | AB127: 0.00 | AC127: 0.00 | AD127: 0.00 | AE127: 0.00 | AG127: 0.00 | AK127: 0.00 | AO127: 0.00 | AP127: 0.00 | AQ127: 0.00 | AR127: 0.00 | AS127: 0.00 | AT127: 0.00 | AX127: 0.00 | BB127: 0.00 | BC127: 0.00 | BD127: 0.00 | BE127: 0.00 | BF127: 0.00 | BH127: 0.00 | BL127: 0.00
A128: 长期股权投资 | B128: 0.00 | C128: 419.87 | D128: 438.51 | E128: 1,025.58 | F128: 1,171.57 | G128: 1,284.18 | H128: 1,284.18 | J128: 6,935.32 | K128: 6,935.32 | N128: 0.00 | O128: 0.00 | P128: 0.00 | Q128: 1,188.46 | R128: 1,360.51 | S128: 5,923.79 | T128: 5,923.79 | W128: 6,432.02 | X128: 6,432.02 | AA128: 6,275.02 | AB128: 6,635.09 | AC128: 7,016.89 | AD128: 7,164.82 | AE128: 8,705.85 | AG128: 9,390.32 | AH128: 9,390.32 | AK128: 8,536.96 | AL128: 8,536.96 | AO128: 2,163.77 | AP128: 2,902.37 | AQ128: 4,461.33 | AR128: 7,249.95 | AS128: 12,029.29 | AT128: 13,571.65 | AU128: 13,571.65 | AX128: 18,917.71 | AY128: 18,917.71 | BB128: 27.92 | BC128: 26.13 | BD128: 5,590.62 | BE128: 6,760.53 | BF128: 8,885.38 | BH128: 8,810.76 | BI128: 8,810.76 | BL128: 9,821.18 | BM128: 9,821.18
A129: 其他权益工具投资 | B129: 0.00 | C129: 0.00 | D129: 0.00 | E129: 0.00 | F129: 18,801.97 | G129: 21,344.03 | H129: 21,344.03 | J129: 21,344.03 | K129: 21,344.03 | N129: 0.00 | O129: 0.00 | P129: 0.00 | Q129: 0.00 | R129: 0.00 | S129: 0.00 | W129: 0.00 | AA129: 0.00 | AB129: 0.00 | AC129: 0.00 | AD129: 0.00 | AE129: 12,162.40 | AG129: 12,608.74 | AH129: 12,608.74 | AK129: 12,608.74 | AL129: 12,608.74 | AO129: 0.00 | AP129: 0.00 | AQ129: 0.00 | AR129: 0.00 | AS129: 41,443.24 | AT129: 41,939.41 | AU129: 41,939.41 | AX129: 41,878.85 | AY129: 41,878.85 | BB129: 0.00 | BC129: 0.00 | BD129: 0.00 | BE129: 0.00 | BF129: 520.00 | BH129: 932.62 | BI129: 932.62 | BL129: 4,932.62 | BM129: 4,932.62
A130: 其他非流动金融资产 | B130: 0.00 | C130: 0.00 | D130: 0.00 | E130: 0.00 | F130: 0.00 | G130: 0.00 | J130: 0.00 | N130: 0.00 | O130: 0.00 | P130: 0.00 | Q130: 0.00 | R130: 2,000.00 | S130: 2,200.00 | T130: 2,200.00 | W130: 2,200.00 | X130: 2,200.00 | AA130: 0.00 | AB130: 0.00 | AC130: 0.00 | AD130: 0.00 | AE130: 0.00 | AG130: 0.00 | AK130: 0.00 | AO130: 0.00 | AP130: 0.00 | AQ130: 0.00 | AR130: 0.00 | AS130: 0.00 | AT130: 0.00 | AX130: 0.00 | BB130: 0.00 | BC130: 0.00 | BD130: 0.00 | BE130: 0.00 | BF130: 0.00 | BH130: 0.00 | BL130: 0.00
A131: 投资性房地产 | B131: 0.00 | C131: 0.00 | D131: 0.00 | E131: 0.00 | F131: 0.00 | G131: 0.00 | J131: 0.00 | N131: 0.00 | O131: 0.00 | P131: 0.00 | Q131: 0.00 | R131: 0.00 | S131: 0.00 | W131: 0.00 | AA131: 0.00 | AB131: 0.00 | AC131: 650.36 | AD131: 13,985.59 | AE131: 20,923.84 | AG131: 18,782.37 | AH131: 18,782.37 | AK131: 18,408.71 | AL131: 18,408.71 | AO131: 0.00 | AP131: 0.00 | AQ131: 0.00 | AR131: 0.00 | AS131: 0.00 | AT131: 0.00 | AU131: 0.00 | AX131: 0.00 | AY131: 0.00 | BB131: 0.00 | BC131: 0.00 | BD131: 0.00 | BE131: 0.00 | BF131: 0.00 | BH131: 0.00 | BI131: 0.00 | BL131: 0.00 | BM131: 0.00
A132: 固定资产合计 | B132: 3,880.41 | C132: 3,890.80 | D132: 3,784.84 | E132: 5,934.81 | F132: 7,050.38 | G132: 14,580.84 | J132: 28,687.56 | N132: 1,979.41 | O132: 1,968.82 | P132: 1,908.20 | Q132: 6,696.05 | R132: 15,806.19 | S132: 46,389.34 | W132: 45,451.45 | AA132: 18,893.09 | AB132: 20,152.65 | AC132: 24,415.62 | AD132: 36,756.87 | AE132: 29,204.05 | AG132: 30,325.25 | AK132: 29,438.10 | AO132: 2,993.62 | AP132: 21,115.39 | AQ132: 21,365.98 | AR132: 28,293.39 | AS132: 29,839.20 | AT132: 36,578.62 | AX132: 34,521.86 | BB132: 534.03 | BC132: 491.74 | BD132: 392.79 | BE132: 405.02 | BF132: 8,459.73 | BH132: 10,122.14 | BL132: 12,820.76
A133: 其中：固定资产 | B133: 3,880.41 | C133: 3,890.80 | D133: 3,784.84 | E133: 5,934.81 | F133: 7,050.38 | G133: 14,580.84 | J133: 0.00 | N133: 1,979.41 | O133: 1,968.82 | P133: 1,908.20 | Q133: 6,696.05 | R133: 15,806.19 | S133: 46,389.34 | W133: 0.00 | AA133: 18,893.09 | AB133: 20,152.65 | AC133: 24,415.62 | AD133: 36,756.87 | AE133: 29,204.05 | AG133: 30,325.25 | AK133: 0.00 | AO133: 2,993.62 | AP133: 21,115.39 | AQ133: 21,365.98 | AR133: 28,293.39 | AS133: 29,839.20 | AT133: 36,578.62 | AX133: 0.00 | BB133: 534.03 | BC133: 491.74 | BD133: 392.79 | BE133: 405.02 | BF133: 8,459.73 | BH133: 10,122.14 | BL133: 0.00
A134: 固定资产清理 | B134: 0.00 | C134: 0.00 | D134: 0.00 | E134: 0.00 | F134: 0.00 | G134: 0.00 | J134: 0.00 | N134: 0.00 | O134: 0.00 | P134: 0.00 | Q134: 0.00 | R134: 0.00 | S134: 0.00 | W134: 0.00 | AA134: 0.00 | AB134: 0.00 | AC134: 0.00 | AD134: 0.00 | AE134: 0.00 | AG134: 0.00 | AK134: 0.00 | AO134: 0.00 | AP134: 0.00 | AQ134: 0.00 | AR134: 0.00 | AS134: 0.00 | AT134: 0.00 | AX134: 0.00 | BB134: 0.00 | BC134: 0.00 | BD134: 0.00 | BE134: 0.00 | BF134: 0.00 | BH134: 0.00 | BL134: 0.00
A135: 在建工程合计 | B135: 646.15 | C135: 4,771.17 | D135: 9,077.61 | E135: 10,974.70 | F135: 20,620.07 | G135: 19,088.62 | H135: 19,088.62 | J135: 9,687.99 | K135: 9,687.99 | N135: 0.00 | O135: 0.00 | P135: 4,193.85 | Q135: 3,546.57 | R135: 0.00 | S135: 0.00 | W135: 21.24 | AA135: 13,803.06 | AB135: 13,846.43 | AC135: 15,246.86 | AD135: 0.00 | AE135: 0.00 | AG135: 1,166.04 | AH135: 1,166.04 | AK135: 4,030.83 | AL135: 4,030.83 | AO135: 12,751.94 | AP135: 0.00 | AQ135: 4,137.81 | AR135: 0.00 | AS135: 744.29 | AT135: 6,417.03 | AU135: 6,417.03 | AX135: 10,675.09 | AY135: 10,675.09 | BB135: 0.00 | BC135: 0.00 | BD135: 0.00 | BE135: 0.00 | BF135: 0.00 | BH135: 0.00 | BI135: 0.00 | BL135: 0.00 | BM135: 0.00
A136: 其中：在建工程 | B136: 646.15 | C136: 4,771.17 | D136: 9,077.61 | E136: 10,974.70 | F136: 20,620.07 | G136: 19,088.62 | J136: 0.00 | N136: 0.00 | O136: 0.00 | P136: 4,193.85 | Q136: 3,546.57 | R136: 0.00 | S136: 0.00 | W136: 0.00 | AA136: 13,803.06 | AB136: 13,846.43 | AC136: 15,246.86 | AD136: 0.00 | AE136: 0.00 | AG136: 1,166.04 | AK136: 0.00 | AO136: 12,751.94 | AP136: 0.00 | AQ136: 4,137.81 | AR136: 0.00 | AS136: 744.29 | AT136: 6,417.03 | AX136: 0.00 | BB136: 0.00 | BC136: 0.00 | BD136: 0.00 | BE136: 0.00 | BF136: 0.00 | BH136: 0.00 | BL136: 0.00
A137: 工程物资 | B137: 0.00 | C137: 0.00 | D137: 0.00 | E137: 0.00 | F137: 0.00 | G137: 0.00 | J137: 0.00 | N137: 0.00 | O137: 0.00 | P137: 0.00 | Q137: 0.00 | R137: 0.00 | S137: 0.00 | W137: 0.00 | AA137: 0.00 | AB137: 0.00 | AC137: 0.00 | AD137: 0.00 | AE137: 0.00 | AG137: 0.00 | AK137: 0.00 | AO137: 0.00 | AP137: 0.00 | AQ137: 0.00 | AR137: 0.00 | AS137: 0.00 | AT137: 0.00 | AX137: 0.00 | BB137: 0.00 | BC137: 0.00 | BD137: 0.00 | BE137: 0.00 | BF137: 0.00 | BH137: 0.00 | BL137: 0.00
A138: 生产性生物资产 | B138: 0.00 | C138: 0.00 | D138: 0.00 | E138: 0.00 | F138: 0.00 | G138: 0.00 | J138: 0.00 | N138: 0.00 | O138: 0.00 | P138: 0.00 | Q138: 0.00 | R138: 0.00 | S138: 0.00 | W138: 0.00 | AA138: 0.00 | AB138: 0.00 | AC138: 0.00 | AD138: 0.00 | AE138: 0.00 | AG138: 0.00 | AK138: 0.00 | AO138: 0.00 | AP138: 0.00 | AQ138: 0.00 | AR138: 0.00 | AS138: 0.00 | AT138: 0.00 | AX138: 0.00 | BB138: 0.00 | BC138: 0.00 | BD138: 0.00 | BE138: 0.00 | BF138: 0.00 | BH138: 0.00 | BL138: 0.00
A139: 油气资产 | B139: 0.00 | C139: 0.00 | D139: 0.00 | E139: 0.00 | F139: 0.00 | G139: 0.00 | J139: 0.00 | N139: 0.00 | O139: 0.00 | P139: 0.00 | Q139: 0.00 | R139: 0.00 | S139: 0.00 | W139: 0.00 | AA139: 0.00 | AB139: 0.00 | AC139: 0.00 | AD139: 0.00 | AE139: 0.00 | AG139: 0.00 | AK139: 0.00 | AO139: 0.00 | AP139: 0.00 | AQ139: 0.00 | AR139: 0.00 | AS139: 0.00 | AT139: 0.00 | AX139: 0.00 | BB139: 0.00 | BC139: 0.00 | BD139: 0.00 | BE139: 0.00 | BF139: 0.00 | BH139: 0.00 | BL139: 0.00
A140: 使用权资产 | B140: 0.00 | C140: 0.00 | D140: 0.00 | E140: 0.00 | F140: 0.00 | G140: 0.00 | J140: 0.00 | N140: 0.00 | O140: 0.00 | P140: 0.00 | Q140: 0.00 | R140: 0.00 | S140: 0.00 | W140: 532.29 | AA140: 0.00 | AB140: 0.00 | AC140: 0.00 | AD140: 0.00 | AE140: 0.00 | AG140: 0.00 | AK140: 5,569.88 | AO140: 0.00 | AP140: 0.00 | AQ140: 0.00 | AR140: 0.00 | AS140: 0.00 | AT140: 0.00 | AX140: 1,171.77 | BB140: 0.00 | BC140: 0.00 | BD140: 0.00 | BE140: 0.00 | BF140: 0.00 | BH140: 0.00 | BL140: 2,874.18
A141: 无形资产 | B141: 924.49 | C141: 838.69 | D141: 946.20 | E141: 4,965.66 | F141: 4,900.12 | G141: 5,207.11 | J141: 4,849.23 | N141: 78.71 | O141: 148.28 | P141: 127.93 | Q141: 866.65 | R141: 1,741.73 | S141: 2,611.55 | W141: 2,082.54 | AA141: 20,926.45 | AB141: 21,241.08 | AC141: 21,889.83 | AD141: 21,777.66 | AE141: 22,164.64 | AG141: 24,556.73 | AK141: 26,204.13 | AO141: 22,309.54 | AP141: 37,639.29 | AQ141: 37,789.17 | AR141: 77,869.46 | AS141: 97,856.67 | AT141: 114,232.93 | AX141: 115,404.87 | BB141: 1,408.39 | BC141: 2,473.93 | BD141: 1,692.90 | BE141: 1,713.83 | BF141: 1,848.07 | BH141: 3,114.45 | BL141: 5,328.63
A142: 开发支出 | B142: 0.00 | C142: 0.00 | D142: 0.00 | E142: 0.00 | F142: 213.73 | G142: 0.00 | H142: 0.00 | J142: 1,681.83 | K142: 1,681.83 | N142: 0.00 | O142: 0.00 | P142: 90.26 | Q142: 474.53 | R142: 1,459.08 | S142: 4,829.92 | T142: 4,829.92 | W142: 8,923.89 | X142: 8,923.89 | AA142: 8,087.11 | AB142: 9,539.35 | AC142: 9,566.02 | AD142: 10,397.06 | AE142: 10,371.44 | AG142: 9,253.45 | AH142: 9,253.45 | AK142: 7,348.58 | AL142: 7,348.58 | AO142: 13,224.77 | AP142: 4,619.37 | AQ142: 26,877.61 | AR142: 20,504.81 | AS142: 38,684.74 | AT142: 49,728.49 | AU142: 49,728.49 | AX142: 61,270.56 | AY142: 61,270.56 | BB142: 1,027.83 | BC142: 0.00 | BD142: 0.00 | BE142: 0.00 | BF142: 0.00 | BH142: 2,645.76 | BI142: 2,645.76 | BL142: 6,360.05 | BM142: 6,360.05
A143: 商誉 | B143: 0.00 | C143: 0.00 | D143: 0.00 | E143: 57,881.42 | F143: 57,881.42 | G143: 36,753.18 | J143: 36,753.18 | N143: 0.00 | O143: 0.00 | P143: 0.00 | Q143: 1,156.05 | R143: 941.53 | S143: 690.46 | W143: 690.46 | AA143: 4,223.44 | AB143: 4,223.44 | AC143: 65,399.99 | AD143: 65,399.99 | AE143: 65,399.99 | AG143: 65,399.99 | AK143: 65,399.99 | AO143: 96,306.35 | AP143: 97,665.33 | AQ143: 97,231.33 | AR143: 102,440.49 | AS143: 99,395.58 | AT143: 93,984.20 | AX143: 93,984.20 | BB143: 42,782.39 | BC143: 90,699.95 | BD143: 52,218.22 | BE143: 107,705.36 | BF143: 105,948.69 | BH143: 105,948.69 | BL143: 105,948.69
A144: 长期待摊费用 | B144: 16.40 | C144: 10.79 | D144: 33.26 | E144: 69.12 | F144: 145.75 | G144: 59.60 | J144: 116.50 | N144: 475.69 | O144: 265.73 | P144: 388.85 | Q144: 335.12 | R144: 261.06 | S144: 235.37 | W144: 169.88 | AA144: 156.70 | AB144: 163.34 | AC144: 756.47 | AD144: 1,725.95 | AE144: 1,580.21 | AG144: 1,390.28 | AK144: 1,166.50 | AO144: 0.00 | AP144: 2,685.32 | AQ144: 3,324.63 | AR144: 2,932.32 | AS144: 2,372.68 | AT144: 2,054.23 | AX144: 1,820.67 | BB144: 145.50 | BC144: 55.30 | BD144: 31.17 | BE144: 14.17 | BF144: 0.00 | BH144: 742.77 | BL144: 564.63
A145: 递延所得税资产 | B145: 394.08 | C145: 938.40 | D145: 985.70 | E145: 1,714.37 | F145: 2,163.29 | G145: 2,542.19 | H145: 2,542.19 | I145: 信用减值 | J145: 3,481.67 | K145: 3,481.67 | L145: 信用减值 | N145: 577.41 | O145: 487.46 | P145: 500.04 | Q145: 521.41 | R145: 529.59 | S145: 523.83 | T145: 523.83 | W145: 753.80 | X145: 753.80 | AA145: 2,013.82 | AB145: 3,504.72 | AC145: 4,366.87 | AD145: 4,572.75 | AE145: 5,054.93 | AG145: 5,620.49 | AH145: 5,620.49 | AK145: 5,694.18 | AL145: 5,694.18 | AO145: 619.18 | AP145: 610.76 | AQ145: 861.25 | AR145: 1,961.68 | AS145: 2,972.96 | AT145: 3,681.08 | AU145: 3,681.08 | AX145: 3,840.55 | AY145: 3,840.55 | BB145: 1,155.65 | BC145: 1,246.61 | BD145: 1,302.98 | BE145: 1,536.37 | BF145: 3,641.56 | BH145: 4,542.36 | BI145: 4,542.36 | BL145: 6,352.06 | BM145: 6,352.06
A146: 其他非流动资产 | B146: 788.89 | C146: 13.97 | D146: 0.00 | E146: 1,049.70 | F146: 28.12 | G146: 569.60 | H146: 208.45 | I146: 预付工程款及设备款 | J146: 1,082.31 | K146: 570.31 | L146: 预付工程款及设备款 | N146: 0.00 | O146: 0.00 | P146: 0.00 | Q146: 630.89 | R146: 31,084.38 | S146: 24.64 | T146: 24.64 | U146: 预付设备工程款 | W146: 309.29 | X146: 309.29 | Y146: 预付设备工程款 | AA146: 0.00 | AB146: 11,488.00 | AC146: 8,201.93 | AD146: 87.86 | AE146: 4,187.11 | AG146: 5,062.68 | AH146: 5,062.68 | AI146: 预付土地、设备款 | AK146: 5,645.76 | AL146: 5,645.76 | AM146: 预付土地、设备款 | AO146: 0.00 | AP146: 0.00 | AQ146: 0.00 | AR146: 1,107.76 | AS146: 10,931.27 | AT146: 11,793.79 | AU146: 11,793.79 | AV146: 基建款 | AX146: 17,686.61 | AY146: 17,686.61 | AZ146: 基建款+购楼 | BB146: 0.00 | BC146: 0.00 | BD146: 0.00 | BE146: 7,880.66 | BF146: 133.56 | BH146: 676.94 | BI146: 676.94 | BJ146: 预付款 | BL146: 70.14 | BM146: 70.14 | BN146: 预付款
A147: 非流动资产差额(特殊报表科目) | B147: 0.00 | C147: 0.00 | D147: 0.00 | E147: 0.00 | F147: 0.00 | G147: 0.00 | J147: 0.00 | N147: 0.00 | O147: 0.00 | P147: 0.00 | Q147: 0.00 | R147: 0.00 | S147: 0.00 | W147: 0.00 | AA147: 0.00 | AB147: 0.00 | AC147: 0.00 | AD147: 0.00 | AE147: 0.00 | AG147: 0.00 | AK147: 0.00 | AO147: 0.00 | AP147: 0.00 | AQ147: 0.00 | AR147: 0.00 | AS147: 0.00 | AT147: 0.00 | AX147: 0.00 | BB147: 0.00 | BC147: 0.00 | BD147: 0.00 | BE147: 0.00 | BF147: 0.00 | BH147: 0.00 | BL147: 0.00
A148: 非流动资产差额(合计平衡科目) | B148: 0.00 | C148: 0.00 | D148: 0.00 | E148: 0.00 | F148: 0.00 | G148: 0.00 | J148: 0.00 | N148: 0.00 | O148: 0.00 | P148: 0.00 | Q148: 0.00 | R148: 0.00 | S148: 0.00 | W148: 0.00 | AA148: 0.00 | AB148: 0.00 | AC148: 0.00 | AD148: 0.00 | AE148: 0.00 | AG148: 0.00 | AK148: 0.00 | AO148: 0.00 | AP148: 0.00 | AQ148: 0.00 | AR148: 0.00 | AS148: 0.00 | AT148: 0.00 | AX148: 0.00 | BB148: 0.00 | BC148: 0.00 | BD148: 0.00 | BE148: 0.00 | BF148: 0.00 | BH148: 0.00 | BL148: 0.00
A149: 非流动资产合计 | B149: 6,650.42 | C149: 10,883.70 | D149: 15,266.11 | E149: 97,154.08 | F149: 121,469.49 | G149: 107,703.57 | H149: 50,741.69 | J149: 124,116.46 | K149: 53,197.99 | N149: 3,111.22 | O149: 2,870.29 | P149: 7,209.14 | Q149: 15,915.73 | R149: 55,184.08 | S149: 63,428.91 | T149: 13,502.18 | W149: 67,566.87 | X149: 18,619.01 | AA149: 79,468.71 | AB149: 94,367.51 | AC149: 163,017.25 | AD149: 169,161.29 | AE149: 179,754.47 | AG149: 183,556.35 | AH149: 61,884.09 | AK149: 190,052.37 | AL149: 62,273.76 | AO149: 150,369.17 | AP149: 177,353.83 | AQ149: 209,165.11 | AR149: 282,341.11 | AS149: 336,269.92 | AT149: 373,981.44 | AU149: 127,131.45 | AX149: 401,172.75 | AY149: 154,269.37 | BB149: 47,101.70 | BC149: 95,013.66 | BD149: 61,248.68 | BE149: 126,035.94 | BF149: 129,436.98 | BH149: 137,536.47 | BI149: 17,608.43 | BL149: 155,072.93 | BM149: 27,536.05
A150: 资产差额(特殊报表科目) | B150: 0.00 | C150: 0.00 | D150: 0.00 | E150: 0.00 | F150: 0.00 | G150: 0.00 | J150: 0.00 | N150: 0.00 | O150: 0.00 | P150: 0.00 | Q150: 0.00 | R150: 0.00 | S150: 0.00 | W150: 0.00 | AA150: 0.00 | AB150: 0.00 | AC150: 0.00 | AD150: 0.00 | AE150: 0.00 | AG150: 0.00 | AK150: 0.00 | AO150: 0.00 | AP150: 0.00 | AQ150: 0.00 | AR150: 0.00 | AS150: 0.00 | AT150: 0.00 | AX150: 0.00 | BB150: 0.00 | BC150: 0.00 | BD150: 0.00 | BE150: 0.00 | BF150: 0.00 | BH150: 0.00 | BL150: 0.00
A151: 资产差额(合计平衡科目) | B151: 0.00 | C151: 0.00 | D151: 0.00 | E151: 0.00 | F151: 0.00 | G151: 0.00 | J151: 0.00 | N151: 0.00 | O151: 0.00 | P151: 0.00 | Q151: 0.00 | R151: 0.00 | S151: 0.00 | W151: 0.00 | AA151: 0.00 | AB151: 0.00 | AC151: 0.00 | AD151: 0.00 | AE151: 0.00 | AG151: 0.00 | AK151: 0.00 | AO151: 0.00 | AP151: 0.00 | AQ151: 0.00 | AR151: 0.00 | AS151: 0.00 | AT151: 0.00 | AX151: 0.00 | BB151: 0.00 | BC151: 0.00 | BD151: 0.00 | BE151: 0.00 | BF151: 0.00 | BH151: 0.00 | BL151: 0.00
A152: 资产总计 | B152: 46,506.75 | C152: 103,386.15 | D152: 126,333.35 | E152: 212,544.61 | F152: 270,928.57 | G152: 263,310.78 | H152: 66,104.52 | J152: 310,805.37 | K152: 68,672.98 | N152: 66,778.05 | O152: 74,128.55 | P152: 96,433.12 | Q152: 119,599.90 | R152: 161,053.78 | S152: 173,366.74 | T152: 14,934.36 | W152: 179,250.88 | X152: 19,758.34 | AA152: 241,727.85 | AB152: 318,273.49 | AC152: 409,501.43 | AD152: 467,893.13 | AE152: 574,043.48 | AG152: 605,384.17 | AH152: 70,025.84 | AK152: 569,559.06 | AL152: 67,467.66 | AO152: 282,994.32 | AP152: 493,962.69 | AQ152: 514,655.30 | AR152: 610,626.21 | AS152: 670,250.71 | AT152: 738,205.04 | AU152: 144,556.79 | AX152: 817,599.33 | AY152: 200,244.72 | BB152: 92,288.89 | BC152: 196,423.29 | BD152: 156,232.50 | BE152: 203,222.74 | BF152: 215,622.31 | BH152: 243,290.64 | BI152: 20,702.74 | BL152: 238,772.17 | BM152: 29,716.13
A153: 流动负债：
A154: 短期借款 | B154: 3,900.00 | C154: 0.00 | D154: 16,900.00 | E154: 18,980.00 | F154: 31,905.98 | G154: 18,022.72 | I154: 18,022.72 | J154: 37,942.64 | L154: 37,942.64 | N154: 18,000.00 | O154: 20,000.00 | P154: 11,500.00 | Q154: 24,700.00 | R154: 47,600.00 | S154: 29,534.18 | U154: 29,534.18 | W154: 42,492.56 | Y154: 42,492.56 | AA154: 74,650.00 | AB154: 64,500.00 | AC154: 68,100.00 | AD154: 96,600.00 | AE154: 203,003.50 | AG154: 213,303.75 | AI154: 213,303.75 | AK154: 146,877.34 | AM154: 146,877.34 | AO154: 37,212.00 | AP154: 28,200.00 | AQ154: 10,253.00 | AR154: 41,264.06 | AS154: 32,194.10 | AT154: 44,755.00 | AV154: 44,755.00 | AX154: 62,890.31 | AZ154: 62,890.31 | BB154: 0.00 | BC154: 0.00 | BD154: 0.00 | BE154: 0.00 | BF154: 1,016.86 | BH154: 0.00 | BJ154: 0.00 | BL154: 0.00 | BN154: 0.00
A155: 向中央银行借款 | B155: 0.00 | C155: 0.00 | D155: 0.00 | E155: 0.00 | F155: 0.00 | G155: 0.00 | J155: 0.00 | N155: 0.00 | O155: 0.00 | P155: 0.00 | Q155: 0.00 | R155: 0.00 | S155: 0.00 | W155: 0.00 | AA155: 0.00 | AB155: 0.00 | AC155: 0.00 | AD155: 0.00 | AE155: 0.00 | AG155: 0.00 | AK155: 0.00 | AO155: 0.00 | AP155: 0.00 | AQ155: 0.00 | AR155: 0.00 | AS155: 0.00 | AT155: 0.00 | AX155: 0.00 | BB155: 0.00 | BC155: 0.00 | BD155: 0.00 | BE155: 0.00 | BF155: 0.00 | BH155: 0.00 | BL155: 0.00
A156: 吸收存款及同业存放 | B156: 0.00 | C156: 0.00 | D156: 0.00 | E156: 0.00 | F156: 0.00 | G156: 0.00 | J156: 0.00 | N156: 0.00 | O156: 0.00 | P156: 0.00 | Q156: 0.00 | R156: 0.00 | S156: 0.00 | W156: 0.00 | AA156: 0.00 | AB156: 0.00 | AC156: 0.00 | AD156: 0.00 | AE156: 0.00 | AG156: 0.00 | AK156: 0.00 | AO156: 0.00 | AP156: 0.00 | AQ156: 0.00 | AR156: 0.00 | AS156: 0.00 | AT156: 0.00 | AX156: 0.00 | BB156: 0.00 | BC156: 0.00 | BD156: 0.00 | BE156: 0.00 | BF156: 0.00 | BH156: 0.00 | BL156: 0.00
A157: 拆入资金 | B157: 0.00 | C157: 0.00 | D157: 0.00 | E157: 0.00 | F157: 0.00 | G157: 0.00 | J157: 0.00 | N157: 0.00 | O157: 0.00 | P157: 0.00 | Q157: 0.00 | R157: 0.00 | S157: 0.00 | W157: 0.00 | AA157: 0.00 | AB157: 0.00 | AC157: 0.00 | AD157: 0.00 | AE157: 0.00 | AG157: 0.00 | AK157: 0.00 | AO157: 0.00 | AP157: 0.00 | AQ157: 0.00 | AR157: 0.00 | AS157: 0.00 | AT157: 0.00 | AX157: 0.00 | BB157: 0.00 | BC157: 0.00 | BD157: 0.00 | BE157: 0.00 | BF157: 0.00 | BH157: 0.00 | BL157: 0.00
A158: 交易性金融负债 | B158: 0.00 | C158: 0.00 | D158: 0.00 | E158: 0.00 | F158: 0.00 | G158: 0.00 | J158: 0.00 | N158: 0.00 | O158: 0.00 | P158: 0.00 | Q158: 0.00 | R158: 0.00 | S158: 0.00 | W158: 0.00 | AA158: 0.00 | AB158: 0.00 | AC158: 0.00 | AD158: 0.00 | AE158: 0.00 | AG158: 0.00 | AK158: 0.00 | AO158: 0.00 | AP158: 0.00 | AQ158: 0.00 | AR158: 0.00 | AS158: 0.00 | AT158: 0.00 | AX158: 0.00 | BB158: 0.00 | BC158: 0.00 | BD158: 0.00 | BE158: 0.00 | BF158: 0.00 | BH158: 0.00 | BL158: 0.00
A159: 衍生金融负债 | B159: 0.00 | C159: 0.00 | D159: 0.00 | E159: 0.00 | F159: 0.00 | G159: 0.00 | J159: 0.00 | N159: 0.00 | O159: 0.00 | P159: 0.00 | Q159: 0.00 | R159: 0.00 | S159: 0.00 | W159: 0.00 | AA159: 0.00 | AB159: 0.00 | AC159: 0.00 | AD159: 0.00 | AE159: 0.00 | AG159: 0.00 | AK159: 0.00 | AO159: 0.00 | AP159: 0.00 | AQ159: 0.00 | AR159: 0.00 | AS159: 0.00 | AT159: 0.00 | AX159: 0.00 | BB159: 0.00 | BC159: 0.00 | BD159: 0.00 | BE159: 0.00 | BF159: 0.00 | BH159: 0.00 | BL159: 0.00
A160: 应付票据及应付账款 | B160: 9,864.89 | C160: 12,062.75 | D160: 20,475.02 | E160: 24,873.95 | F160: 26,935.94 | G160: 31,305.44 | J160: 38,555.87 | N160: 2,151.15 | O160: 991.01 | P160: 2,533.82 | Q160: 2,127.38 | R160: 3,083.55 | S160: 2,889.45 | W160: 1,446.38 | AA160: 14,777.10 | AB160: 3,824.28 | AC160: 2,932.29 | AD160: 6,837.86 | AE160: 7,133.09 | AG160: 11,894.12 | AK160: 12,887.49 | AO160: 2,490.29 | AP160: 4,217.97 | AQ160: 11,024.94 | AR160: 16,629.96 | AS160: 19,068.24 | AT160: 16,140.98 | AX160: 10,504.20 | BB160: 300.83 | BC160: 4,118.69 | BD160: 7,358.16 | BE160: 5,549.67 | BF160: 4,994.10 | BH160: 8,815.49 | BL160: 6,960.75
A161: 其中：应付票据 | B161: 4,990.77 | C161: 1,789.84 | D161: 4,876.36 | E161: 7,747.91 | F161: 6,190.00 | G161: 5,046.21 | J161: 10,418.89 | N161: 0.00 | O161: 0.00 | P161: 0.00 | Q161: 0.00 | R161: 0.00 | S161: 1,313.96 | W161: 204.59 | AA161: 9,350.00 | AB161: 0.00 | AC161: 0.00 | AD161: 0.00 | AE161: 0.00 | AG161: 0.00 | AK161: 0.00 | AO161: 0.00 | AP161: 0.00 | AQ161: 3,245.03 | AR161: 3,904.48 | AS161: 2,932.65 | AT161: 4,981.31 | AX161: 1,864.74 | BB161: 0.00 | BC161: 0.00 | BD161: 0.00 | BE161: 0.00 | BF161: 0.00 | BH161: 0.00 | BL161: 0.00
A162: 应付账款 | B162: 4,874.12 | C162: 10,272.91 | D162: 15,598.66 | E162: 17,126.04 | F162: 20,745.94 | G162: 26,259.23 | J162: 28,136.97 | N162: 2,151.15 | O162: 991.01 | P162: 2,533.82 | Q162: 2,127.38 | R162: 3,083.55 | S162: 1,575.49 | W162: 1,241.79 | AA162: 5,427.10 | AB162: 3,824.28 | AC162: 2,932.29 | AD162: 6,837.86 | AE162: 7,133.09 | AG162: 11,894.12 | AK162: 12,887.49 | AO162: 2,490.29 | AP162: 4,217.97 | AQ162: 7,779.91 | AR162: 12,725.48 | AS162: 16,135.60 | AT162: 11,159.67 | AX162: 8,639.45 | BB162: 300.83 | BC162: 4,118.69 | BD162: 7,358.16 | BE162: 5,549.67 | BF162: 4,994.10 | BH162: 8,815.49 | BL162: 6,960.75
A163: 预收款项 | B163: 2,833.71 | C163: 1,079.78 | D163: 5,054.02 | E163: 4,995.50 | F163: 5,586.52 | G163: 7.69 | J163: 0.00 | N163: 3,188.07 | O163: 3,398.72 | P163: 1,896.51 | Q163: 4,114.58 | R163: 4,240.04 | S163: 0.00 | W163: 0.00 | AA163: 7,756.80 | AB163: 17,316.55 | AC163: 12,512.54 | AD163: 15,950.84 | AE163: 24,939.89 | AG163: 360.79 | AK163: 294.21 | AO163: 2,557.89 | AP163: 1,913.16 | AQ163: 2,551.35 | AR163: 3,899.54 | AS163: 2,621.35 | AT163: 0.00 | AX163: 0.00 | BB163: 334.09 | BC163: 516.73 | BD163: 436.99 | BE163: 727.13 | BF163: 544.38 | BH163: 0.00 | BL163: 0.00
A164: 合同负债 | B164: 0.00 | C164: 0.00 | D164: 0.00 | E164: 0.00 | F164: 0.00 | G164: 10,646.36 | J164: 15,889.16 | N164: 0.00 | O164: 0.00 | P164: 0.00 | Q164: 0.00 | R164: 0.00 | S164: 6,826.70 | W164: 5,570.00 | AA164: 0.00 | AB164: 0.00 | AC164: 0.00 | AD164: 0.00 | AE164: 0.00 | AG164: 21,800.63 | AK164: 32,122.81 | AO164: 0.00 | AP164: 0.00 | AQ164: 0.00 | AR164: 0.00 | AS164: 0.00 | AT164: 11,099.71 | AX164: 3,930.85 | BB164: 0.00 | BC164: 0.00 | BD164: 0.00 | BE164: 0.00 | BF164: 0.00 | BH164: 4,462.62 | BL164: 5,611.45
A165: 卖出回购金融资产款 | B165: 0.00 | C165: 0.00 | D165: 0.00 | E165: 0.00 | F165: 0.00 | G165: 0.00 | J165: 0.00 | N165: 0.00 | O165: 0.00 | P165: 0.00 | Q165: 0.00 | R165: 0.00 | S165: 0.00 | W165: 0.00 | AA165: 0.00 | AB165: 0.00 | AC165: 0.00 | AD165: 0.00 | AE165: 0.00 | AG165: 0.00 | AK165: 0.00 | AO165: 0.00 | AP165: 0.00 | AQ165: 0.00 | AR165: 0.00 | AS165: 0.00 | AT165: 0.00 | AX165: 0.00 | BB165: 0.00 | BC165: 0.00 | BD165: 0.00 | BE165: 0.00 | BF165: 0.00 | BH165: 0.00 | BL165: 0.00
A166: 应付手续费及佣金 | B166: 0.00 | C166: 0.00 | D166: 0.00 | E166: 0.00 | F166: 0.00 | G166: 0.00 | J166: 0.00 | N166: 0.00 | O166: 0.00 | P166: 0.00 | Q166: 0.00 | R166: 0.00 | S166: 0.00 | W166: 0.00 | AA166: 0.00 | AB166: 0.00 | AC166: 0.00 | AD166: 0.00 | AE166: 0.00 | AG166: 0.00 | AK166: 0.00 | AO166: 0.00 | AP166: 0.00 | AQ166: 0.00 | AR166: 0.00 | AS166: 0.00 | AT166: 0.00 | AX166: 0.00 | BB166: 0.00 | BC166: 0.00 | BD166: 0.00 | BE166: 0.00 | BF166: 0.00 | BH166: 0.00 | BL166: 0.00
A167: 应付职工薪酬 | B167: 672.87 | C167: 1,961.07 | D167: 2,147.33 | E167: 3,339.99 | F167: 3,872.58 | G167: 4,946.60 | J167: 4,368.32 | N167: 7,080.05 | O167: 8,052.99 | P167: 8,824.30 | Q167: 9,598.18 | R167: 9,071.29 | S167: 9,398.70 | W167: 6,753.43 | AA167: 1,390.17 | AB167: 2,049.02 | AC167: 4,106.64 | AD167: 3,355.03 | AE167: 1,963.68 | AG167: 2,632.60 | AK167: 3,977.45 | AO167: 4,188.09 | AP167: 4,887.37 | AQ167: 4,928.91 | AR167: 6,384.14 | AS167: 5,515.47 | AT167: 5,799.81 | AX167: 1,387.79 | BB167: 688.47 | BC167: 1,007.50 | BD167: 1,066.31 | BE167: 1,482.98 | BF167: 1,781.80 | BH167: 2,890.32 | BL167: 1,894.14
A168: 应交税费 | B168: 1,088.14 | C168: 2,140.88 | D168: 679.01 | E168: 1,843.40 | F168: 1,864.68 | G168: 1,686.77 | J168: 1,187.52 | N168: 2,511.97 | O168: 2,542.04 | P168: 2,972.08 | Q168: 2,891.20 | R168: 2,250.03 | S168: 1,258.23 | W168: 1,994.51 | AA168: 1,527.81 | AB168: 2,173.33 | AC168: 2,571.45 | AD168: 3,269.78 | AE168: 2,312.19 | AG168: 3,593.36 | AK168: 1,816.65 | AO168: 4,411.64 | AP168: 6,261.92 | AQ168: 9,037.52 | AR168: 11,413.29 | AS168: 10,270.06 | AT168: 4,871.79 | AX168: 3,109.61 | BB168: 2,304.32 | BC168: 4,172.25 | BD168: 2,057.57 | BE168: 2,835.07 | BF168: 5,614.52 | BH168: 6,060.53 | BL168: 4,724.02
A169: 其他应付款合计 | B169: 294.61 | C169: 31,978.14 | D169: 23,066.22 | E169: 21,626.05 | F169: 25,060.57 | G169: 34,908.05 | J169: 40,701.75 | N169: 963.81 | O169: 885.10 | P169: 3,207.90 | Q169: 4,109.26 | R169: 1,645.96 | S169: 1,643.23 | W169: 1,950.04 | AA169: 550.75 | AB169: 1,458.94 | AC169: 2,126.54 | AD169: 3,493.95 | AE169: 3,061.35 | AG169: 2,089.82 | AK169: 5,409.40 | AO169: 45,647.79 | AP169: 44,206.49 | AQ169: 25,937.45 | AR169: 16,361.17 | AS169: 9,380.45 | AT169: 8,504.23 | AX169: 3,140.63 | BB169: 4,048.87 | BC169: 8,796.74 | BD169: 101.95 | BE169: 33,817.78 | BF169: 26,773.14 | BH169: 13,192.69 | BL169: 6,272.70
A170: 其中：应付利息 | B170: 0.00 | C170: 0.00 | D170: 20.42 | E170: 19.19 | F170: 0.00 | G170: 0.00 | J170: 0.00 | N170: 31.71 | O170: 30.86 | P170: 15.45 | Q170: 37.33 | R170: 86.23 | S170: 126.39 | T170: 126.39 | W170: 110.15 | X170: 110.15 | AA170: 117.69 | AB170: 1,007.72 | AC170: 1,092.61 | AD170: 1,124.28 | AE170: 0.00 | AG170: 0.00 | AK170: 0.00 | AO170: 49.98 | AP170: 37.38 | AQ170: 19.17 | AR170: 38.36 | AS170: 59.96 | AT170: 1,141.92 | AU170: 1,141.92 | AX170: 400.67 | AY170: 400.67 | BB170: 0.00 | BC170: 0.00 | BD170: 0.00 | BE170: 0.00 | BF170: 0.00 | BH170: 0.00 | BI170: 0.00 | BL170: 0.00
A171: 应付股利 | B171: 0.00 | C171: 0.00 | D171: 0.00 | E171: 0.00 | F171: 0.00 | G171: 0.00 | J171: 0.00 | K171: 2,494.85 | N171: 0.00 | O171: 0.00 | P171: 0.00 | Q171: 0.00 | R171: 0.00 | S171: 0.00 | W171: 0.00 | AA171: 0.00 | AB171: 0.00 | AC171: 0.00 | AD171: 0.00 | AE171: 0.00 | AG171: 0.00 | AK171: 0.00 | AO171: 1,242.11 | AP171: 0.00 | AQ171: 0.00 | AR171: 0.00 | AS171: 0.00 | AT171: 0.00 | AX171: 0.00 | BB171: 0.00 | BC171: 0.00 | BD171: 0.00 | BE171: 0.00 | BF171: 0.00 | BH171: 0.00 | BL171: 0.00
A172: 其他应付款 | B172: 294.61 | C172: 31,978.14 | D172: 23,045.80 | E172: 21,606.86 | F172: 25,060.57 | G172: 34,908.05 | H172: 33,542.97 | I172: 交易结算款 | J172: 0.00 | K172: 28,095.64 | L172: 交易结算款 | N172: 932.09 | O172: 854.23 | P172: 3,192.44 | Q172: 4,071.93 | R172: 1,559.73 | S172: 1,516.84 | W172: 0.00 | AA172: 433.06 | AB172: 451.23 | AC172: 1,033.93 | AD172: 2,369.67 | AE172: 3,061.35 | AG172: 2,089.82 | AK172: 0.00 | AO172: 44,355.70 | AP172: 44,169.11 | AQ172: 25,918.28 | AR172: 16,322.81 | AS172: 9,320.49 | AT172: 7,362.31 | AU172: 2,134.20 | AV172: 限制性股票回购义务 | AX172: 0.00 | BB172: 4,048.87 | BC172: 8,796.74 | BD172: 101.95 | BE172: 33,817.78 | BF172: 26,773.14 | BH172: 13,192.69 | BI172: 12,000.00 | BJ172: 应付股权收购款 | BL172: 0.00 | BM172: 6,000.00 | BN172: 应付股权收购款
A173: 应付分保账款 | B173: 0.00 | C173: 0.00 | D173: 0.00 | E173: 0.00 | F173: 0.00 | G173: 0.00 | J173: 0.00 | N173: 0.00 | O173: 0.00 | P173: 0.00 | Q173: 0.00 | R173: 0.00 | S173: 0.00 | W173: 0.00 | AA173: 0.00 | AB173: 0.00 | AC173: 0.00 | AD173: 0.00 | AE173: 0.00 | AG173: 0.00 | AK173: 0.00 | AO173: 0.00 | AP173: 0.00 | AQ173: 0.00 | AR173: 0.00 | AS173: 0.00 | AT173: 0.00 | AX173: 0.00 | BB173: 0.00 | BC173: 0.00 | BD173: 0.00 | BE173: 0.00 | BF173: 0.00 | BH173: 0.00 | BL173: 0.00
A174: 保险合同准备金 | B174: 0.00 | C174: 0.00 | D174: 0.00 | E174: 0.00 | F174: 0.00 | G174: 0.00 | J174: 0.00 | N174: 0.00 | O174: 0.00 | P174: 0.00 | Q174: 0.00 | R174: 0.00 | S174: 0.00 | W174: 0.00 | AA174: 0.00 | AB174: 0.00 | AC174: 0.00 | AD174: 0.00 | AE174: 0.00 | AG174: 0.00 | AK174: 0.00 | AO174: 0.00 | AP174: 0.00 | AQ174: 0.00 | AR174: 0.00 | AS174: 0.00 | AT174: 0.00 | AX174: 0.00 | BB174: 0.00 | BC174: 0.00 | BD174: 0.00 | BE174: 0.00 | BF174: 0.00 | BH174: 0.00 | BL174: 0.00
A175: 代理买卖证券款 | B175: 0.00 | C175: 0.00 | D175: 0.00 | E175: 0.00 | F175: 0.00 | G175: 0.00 | J175: 0.00 | N175: 0.00 | O175: 0.00 | P175: 0.00 | Q175: 0.00 | R175: 0.00 | S175: 0.00 | W175: 0.00 | AA175: 0.00 | AB175: 0.00 | AC175: 0.00 | AD175: 0.00 | AE175: 0.00 | AG175: 0.00 | AK175: 0.00 | AO175: 0.00 | AP175: 0.00 | AQ175: 0.00 | AR175: 0.00 | AS175: 0.00 | AT175: 0.00 | AX175: 0.00 | BB175: 0.00 | BC175: 0.00 | BD175: 0.00 | BE175: 0.00 | BF175: 0.00 | BH175: 0.00 | BL175: 0.00
A176: 代理承销证券款 | B176: 0.00 | C176: 0.00 | D176: 0.00 | E176: 0.00 | F176: 0.00 | G176: 0.00 | J176: 0.00 | N176: 0.00 | O176: 0.00 | P176: 0.00 | Q176: 0.00 | R176: 0.00 | S176: 0.00 | W176: 0.00 | AA176: 0.00 | AB176: 0.00 | AC176: 0.00 | AD176: 0.00 | AE176: 0.00 | AG176: 0.00 | AK176: 0.00 | AO176: 0.00 | AP176: 0.00 | AQ176: 0.00 | AR176: 0.00 | AS176: 0.00 | AT176: 0.00 | AX176: 0.00 | BB176: 0.00 | BC176: 0.00 | BD176: 0.00 | BE176: 0.00 | BF176: 0.00 | BH176: 0.00 | BL176: 0.00
A177: 持有待售负债 | B177: 0.00 | C177: 0.00 | D177: 0.00 | E177: 0.00 | F177: 0.00 | G177: 0.00 | J177: 0.00 | N177: 0.00 | O177: 0.00 | P177: 0.00 | Q177: 0.00 | R177: 0.00 | S177: 0.00 | W177: 0.00 | AA177: 0.00 | AB177: 0.00 | AC177: 0.00 | AD177: 0.00 | AE177: 0.00 | AG177: 0.00 | AK177: 0.00 | AO177: 0.00 | AP177: 0.00 | AQ177: 0.00 | AR177: 0.00 | AS177: 0.00 | AT177: 0.00 | AX177: 0.00 | BB177: 0.00 | BC177: 0.00 | BD177: 0.00 | BE177: 0.00 | BF177: 0.00 | BH177: 0.00 | BL177: 0.00
A178: 一年内到期的非流动负债 | B178: 0.00 | C178: 0.00 | D178: 0.00 | E178: 0.00 | F178: 550.00 | G178: 7,108.31 | I178: 7,108.31 | J178: 7,013.14 | L178: 7,013.14 | N178: 0.00 | O178: 0.00 | P178: 0.00 | Q178: 0.00 | R178: 0.00 | S178: 1,500.00 | U178: 1,500.00 | W178: 1,500.00 | Y178: 1,500.00 | AA178: 2,575.00 | AB178: 857.50 | AC178: 0.00 | AD178: 22,990.02 | AE178: 0.00 | AG178: 0.00 | AK178: 2,505.77 | AM178: 2,505.77 | AO178: 0.00 | AP178: 0.00 | AQ178: 0.00 | AR178: 0.00 | AS178: 4,000.00 | AT178: 5,000.00 | AV178: 5,000.00 | AX178: 0.00 | BB178: 0.00 | BC178: 0.00 | BD178: 0.00 | BE178: 4,800.00 | BF178: 2,400.00 | BH178: 0.00 | BJ178: 0.00 | BL178: 0.00 | BN178: 0.00
A179: 递延收益-流动负债 | B179: 0.00 | C179: 0.00 | D179: 0.00 | E179: 0.00 | F179: 0.00 | G179: 0.00 | J179: 0.00 | N179: 0.00 | O179: 0.00 | P179: 0.00 | Q179: 0.00 | R179: 0.00 | S179: 0.00 | W179: 0.00 | AA179: 0.00 | AB179: 0.00 | AC179: 0.00 | AD179: 0.00 | AE179: 0.00 | AG179: 0.00 | AK179: 0.00 | AO179: 0.00 | AP179: 0.00 | AQ179: 0.00 | AR179: 0.00 | AS179: 0.00 | AT179: 0.00 | AX179: 0.00 | BB179: 0.00 | BC179: 0.00 | BD179: 0.00 | BE179: 0.00 | BF179: 0.00 | BH179: 0.00 | BL179: 0.00
A180: 应付短期债券 | B180: 0.00 | C180: 0.00 | D180: 0.00 | E180: 0.00 | F180: 0.00 | G180: 0.00 | I180: 10,056.96 | J180: 0.00 | L180: 10,857.81 | N180: 0.00 | O180: 0.00 | P180: 0.00 | Q180: 0.00 | R180: 0.00 | S180: 0.00 | W180: 0.00 | AA180: 0.00 | AB180: 0.00 | AC180: 0.00 | AD180: 0.00 | AE180: 0.00 | AG180: 0.00 | AK180: 0.00 | AO180: 0.00 | AP180: 0.00 | AQ180: 0.00 | AR180: 0.00 | AS180: 0.00 | AT180: 0.00 | AX180: 0.00 | BB180: 0.00 | BC180: 0.00 | BD180: 0.00 | BE180: 0.00 | BF180: 0.00 | BH180: 0.00 | BL180: 0.00
A181: 其他流动负债 | B181: 0.00 | C181: 8.33 | D181: 0.00 | E181: 0.00 | F181: 0.00 | G181: 11,000.34 | H181: 943.38 | I181: 待转销增值税 | J181: 11,666.85 | K181: 809.04 | L181: 待转销增值税 | N181: 0.00 | O181: 0.00 | P181: 0.00 | Q181: 0.00 | R181: 0.00 | S181: 0.00 | W181: 0.00 | AA181: 0.00 | AB181: 0.00 | AC181: 0.00 | AD181: 0.00 | AE181: 0.00 | AG181: 2,660.91 | AH181: 2,660.91 | AI181: 待转销进项税 | AK181: 3,920.28 | AL181: 3,920.28 | AM181: 待转销进项税 | AO181: 0.00 | AP181: 0.00 | AQ181: 0.00 | AR181: 0.00 | AS181: 0.00 | AT181: 2,434.92 | AU181: 2,434.92 | AV181: 待转销进项税 | AX181: 2,278.62 | AY181: 2,278.62 | AZ181: 待转销进项税 | BB181: 0.00 | BC181: 0.00 | BD181: 0.00 | BE181: 0.00 | BF181: 0.00 | BH181: 35.86 | BI181: 35.86 | BJ181: 预收款项税费 | BL181: 55.84 | BM181: 55.84 | BN181: 预收款项税费
A182: 流动负债差额(特殊报表科目) | B182: 0.00 | C182: 0.00 | D182: 0.00 | E182: 0.00 | F182: 0.00 | G182: 0.00 | J182: 0.00 | N182: 0.00 | O182: 0.00 | P182: 0.00 | Q182: 0.00 | R182: 0.00 | S182: 0.00 | W182: 0.00 | AA182: 0.00 | AB182: 0.00 | AC182: 0.00 | AD182: 0.00 | AE182: 0.00 | AG182: 0.00 | AK182: 0.00 | AO182: 0.00 | AP182: 0.00 | AQ182: 0.00 | AR182: 0.00 | AS182: 0.00 | AT182: 0.00 | AX182: 0.00 | BB182: 0.00 | BC182: 0.00 | BD182: 0.00 | BE182: 0.00 | BF182: 0.00 | BH182: 0.00 | BL182: 0.00
A183: 流动负债差额(合计平衡科目) | B183: 0.00 | C183: 0.00 | D183: 0.00 | E183: 0.00 | F183: 0.00 | G183: 0.00 | J183: 0.00 | N183: 0.00 | O183: 0.00 | P183: 0.00 | Q183: 0.00 | R183: 0.00 | S183: 0.00 | W183: 0.00 | AA183: 0.00 | AB183: 0.00 | AC183: 0.00 | AD183: 0.00 | AE183: 0.00 | AG183: 0.00 | AK183: 0.00 | AO183: 0.00 | AP183: 0.00 | AQ183: 0.00 | AR183: 0.00 | AS183: 0.00 | AT183: 0.00 | AX183: 0.00 | BB183: 0.00 | BC183: 0.00 | BD183: 0.00 | BE183: 0.00 | BF183: 0.00 | BH183: 0.00 | BL183: 0.00
A184: 流动负债合计 | B184: 18,654.21 | C184: 49,230.95 | D184: 68,321.61 | E184: 75,658.89 | F184: 95,776.27 | G184: 119,632.28 | H184: 34,486.35 | I184: 35,187.99 | J184: 157,325.24 | K184: 31,399.53 | L184: 55,813.58 | N184: 33,895.04 | O184: 35,869.86 | P184: 30,934.61 | Q184: 47,540.60 | R184: 67,890.87 | S184: 53,050.49 | T184: 126.39 | U184: 31,034.18 | W184: 61,706.92 | X184: 110.15 | Y184: 43,992.56 | AA184: 103,227.63 | AB184: 92,179.62 | AC184: 92,349.46 | AD184: 152,497.48 | AE184: 242,413.72 | AG184: 258,335.99 | AH184: 2,660.91 | AI184: 213,303.75 | AK184: 209,811.40 | AL184: 3,920.28 | AM184: 149,383.11 | AO184: 96,507.70 | AP184: 89,686.91 | AQ184: 63,733.16 | AR184: 95,952.15 | AS184: 83,049.67 | AT184: 98,606.45 | AU184: 5,711.05 | AV184: 49,755.00 | AX184: 87,241.99 | AY184: 2,679.28 | AZ184: 62,890.31 | BB184: 7,676.57 | BC184: 18,611.90 | BD184: 11,020.98 | BE184: 49,212.63 | BF184: 43,124.80 | BH184: 35,457.52 | BI184: 12,035.86 | BJ184: 0.00 | BL184: 25,518.89 | BM184: 6,055.84 | BN184: 0.00
A185: 非流动负债：
A186: 长期借款 | B186: 450.00 | C186: 450.00 | D186: 450.00 | E186: 450.00 | F186: 9,883.51 | G186: 1,900.94 | I186: 1,900.94 | J186: 7,950.00 | L186: 7,950.00 | N186: 0.00 | O186: 0.00 | P186: 0.00 | Q186: 0.00 | R186: 15,000.00 | S186: 12,000.00 | U186: 12,000.00 | W186: 11,250.00 | Y186: 11,250.00 | AA186: 490.00 | AB186: 0.00 | AC186: 3,000.00 | AD186: 0.00 | AE186: 0.00 | AG186: 0.00 | AK186: 2,490.00 | AM186: 2,490.00 | AO186: 0.00 | AP186: 0.00 | AQ186: 0.00 | AR186: 0.00 | AS186: 12,000.00 | AT186: 7,000.00 | AV186: 7,000.00 | AX186: 3,351.00 | AZ186: 3,351.00 | BB186: 0.00 | BC186: 0.00 | BD186: 0.00 | BE186: 11,200.00 | BF186: 6,400.00 | BH186: 0.00 | BJ186: 0.00 | BL186: 0.00 | BN186: 0.00
A187: 应付债券 | B187: 0.00 | C187: 0.00 | D187: 0.00 | E187: 0.00 | F187: 0.00 | G187: 0.00 | J187: 0.00 | N187: 0.00 | O187: 0.00 | P187: 0.00 | Q187: 0.00 | R187: 0.00 | S187: 22,593.08 | U187: 22,593.08 | W187: 18,163.21 | Y187: 18,163.21 | AA187: 0.00 | AB187: 19,874.58 | AC187: 19,930.66 | AD187: 0.00 | AE187: 0.00 | AG187: 0.00 | AK187: 0.00 | AO187: 0.00 | AP187: 0.00 | AQ187: 0.00 | AR187: 0.00 | AS187: 0.00 | AT187: 29,828.94 | AV187: 29,828.94 | AX187: 29,866.96 | AZ187: 29,866.96 | BB187: 0.00 | BC187: 0.00 | BD187: 0.00 | BE187: 0.00 | BF187: 0.00 | BH187: 0.00 | BJ187: 0.00 | BL187: 0.00 | BN187: 0.00
A188: 其中:优先股 | B188: 0.00 | C188: 0.00 | D188: 0.00 | E188: 0.00 | F188: 0.00 | G188: 0.00 | J188: 0.00 | N188: 0.00 | O188: 0.00 | P188: 0.00 | Q188: 0.00 | R188: 0.00 | S188: 0.00 | W188: 0.00 | AA188: 0.00 | AB188: 0.00 | AC188: 0.00 | AD188: 0.00 | AE188: 0.00 | AG188: 0.00 | AK188: 0.00 | AO188: 0.00 | AP188: 0.00 | AQ188: 0.00 | AR188: 0.00 | AS188: 0.00 | AT188: 0.00 | AX188: 0.00 | BB188: 0.00 | BC188: 0.00 | BD188: 0.00 | BE188: 0.00 | BF188: 0.00 | BH188: 0.00 | BL188: 0.00
A189: 永续债 | B189: 0.00 | C189: 0.00 | D189: 0.00 | E189: 0.00 | F189: 0.00 | G189: 0.00 | J189: 0.00 | N189: 0.00 | O189: 0.00 | P189: 0.00 | Q189: 0.00 | R189: 0.00 | S189: 0.00 | W189: 0.00 | AA189: 0.00 | AB189: 0.00 | AC189: 0.00 | AD189: 0.00 | AE189: 0.00 | AG189: 0.00 | AK189: 0.00 | AO189: 0.00 | AP189: 0.00 | AQ189: 0.00 | AR189: 0.00 | AS189: 0.00 | AT189: 0.00 | AX189: 0.00 | BB189: 0.00 | BC189: 0.00 | BD189: 0.00 | BE189: 0.00 | BF189: 0.00 | BH189: 0.00 | BL189: 0.00
A190: 租赁负债 | B190: 0.00 | C190: 0.00 | D190: 0.00 | E190: 0.00 | F190: 0.00 | G190: 0.00 | J190: 0.00 | N190: 0.00 | O190: 0.00 | P190: 0.00 | Q190: 0.00 | R190: 0.00 | S190: 0.00 | W190: 528.93 | AA190: 0.00 | AB190: 0.00 | AC190: 0.00 | AD190: 0.00 | AE190: 0.00 | AG190: 0.00 | AK190: 3,064.11 | AO190: 0.00 | AP190: 0.00 | AQ190: 0.00 | AR190: 0.00 | AS190: 0.00 | AT190: 0.00 | AX190: 1,283.85 | BB190: 0.00 | BC190: 0.00 | BD190: 0.00 | BE190: 0.00 | BF190: 0.00 | BH190: 0.00 | BL190: 2,843.92
A191: 长期应付款合计 | B191: 0.00 | C191: 0.00 | D191: 0.00 | E191: 841.89 | F191: 877.77 | G191: 893.35 | J191: 2,312.31 | N191: 0.00 | O191: 0.00 | P191: 0.00 | Q191: 0.00 | R191: 0.00 | S191: 0.00 | W191: 0.00 | AA191: 0.00 | AB191: 0.00 | AC191: 0.00 | AD191: 0.00 | AE191: 0.00 | AG191: 0.00 | AK191: 0.00 | AO191: 0.00 | AP191: 0.00 | AQ191: 0.00 | AR191: 0.00 | AS191: 0.00 | AT191: 0.00 | AX191: 0.00 | BB191: 0.00 | BC191: 0.00 | BD191: 0.00 | BE191: 0.00 | BF191: 0.00 | BH191: 0.00 | BL191: 0.00
A192: 其中：长期应付款 | B192: 0.00 | C192: 0.00 | D192: 0.00 | E192: 841.89 | F192: 877.77 | G192: 893.35 | J192: 0.00 | N192: 0.00 | O192: 0.00 | P192: 0.00 | Q192: 0.00 | R192: 0.00 | S192: 0.00 | W192: 0.00 | AA192: 0.00 | AB192: 0.00 | AC192: 0.00 | AD192: 0.00 | AE192: 0.00 | AG192: 0.00 | AK192: 0.00 | AO192: 0.00 | AP192: 0.00 | AQ192: 0.00 | AR192: 0.00 | AS192: 0.00 | AT192: 0.00 | AX192: 0.00 | BB192: 0.00 | BC192: 0.00 | BD192: 0.00 | BE192: 0.00 | BF192: 0.00 | BH192: 0.00 | BL192: 0.00
A193: 专项应付款 | B193: 0.00 | C193: 0.00 | D193: 0.00 | E193: 0.00 | F193: 0.00 | G193: 0.00 | J193: 0.00 | N193: 0.00 | O193: 0.00 | P193: 0.00 | Q193: 0.00 | R193: 0.00 | S193: 0.00 | W193: 0.00 | AA193: 0.00 | AB193: 0.00 | AC193: 0.00 | AD193: 0.00 | AE193: 0.00 | AG193: 0.00 | AK193: 0.00 | AO193: 0.00 | AP193: 0.00 | AQ193: 0.00 | AR193: 0.00 | AS193: 0.00 | AT193: 0.00 | AX193: 0.00 | BB193: 0.00 | BC193: 0.00 | BD193: 0.00 | BE193: 0.00 | BF193: 0.00 | BH193: 0.00 | BL193: 0.00
A194: 长期应付职工薪酬 | B194: 0.00 | C194: 0.00 | D194: 0.00 | E194: 0.00 | F194: 0.00 | G194: 0.00 | J194: 0.00 | N194: 0.00 | O194: 0.00 | P194: 0.00 | Q194: 0.00 | R194: 0.00 | S194: 0.00 | W194: 0.00 | AA194: 0.00 | AB194: 0.00 | AC194: 0.00 | AD194: 0.00 | AE194: 0.00 | AG194: 0.00 | AK194: 0.00 | AO194: 0.00 | AP194: 0.00 | AQ194: 0.00 | AR194: 0.00 | AS194: 0.00 | AT194: 0.00 | AX194: 0.00 | BB194: 0.00 | BC194: 0.00 | BD194: 0.00 | BE194: 0.00 | BF194: 0.00 | BH194: 0.00 | BL194: 0.00
A195: 预计负债 | B195: 0.00 | C195: 0.00 | D195: 0.00 | E195: 411.84 | F195: 492.38 | G195: 543.80 | J195: 632.35 | N195: 729.26 | O195: 1,136.93 | P195: 134.03 | Q195: 34.06 | R195: 121.62 | S195: 663.50 | W195: 965.66 | AA195: 0.00 | AB195: 0.00 | AC195: 0.00 | AD195: 0.00 | AE195: 0.00 | AG195: 0.00 | AK195: 0.00 | AO195: 37.55 | AP195: 37.55 | AQ195: 37.55 | AR195: 37.55 | AS195: 0.00 | AT195: 0.00 | AX195: 0.00 | BB195: 0.00 | BC195: 0.00 | BD195: 0.00 | BE195: 0.00 | BF195: 0.00 | BH195: 0.00 | BL195: 0.00
A196: 递延所得税负债 | B196: 20.77 | C196: 30.53 | D196: 26.13 | E196: 442.21 | F196: 599.05 | G196: 317.41 | H196: 317.41 | J196: 286.65 | K196: 286.65 | N196: 0.00 | O196: 0.00 | P196: 0.00 | Q196: 173.39 | R196: 130.96 | S196: 110.45 | T196: 110.45 | W196: 95.07 | X196: 95.07 | AA196: 0.00 | AB196: 0.00 | AC196: 0.00 | AD196: 0.00 | AE196: 492.89 | AG196: 537.53 | AH196: 537.53 | AK196: 537.53 | AL196: 537.53 | AO196: 0.00 | AP196: 0.00 | AQ196: 0.00 | AR196: 178.74 | AS196: 400.57 | AT196: 1,117.26 | AU196: 1,117.26 | AX196: 1,148.82 | AY196: 1,148.82 | BB196: 170.33 | BC196: 169.85 | BD196: 69.37 | BE196: 31.50 | BF196: 13.44 | BH196: 5.38 | BI196: 5.38 | BL196: 0.00 | BM196: 0.00
A197: 递延收益-非流动负债 | B197: 814.24 | C197: 990.82 | D197: 876.92 | E197: 3,953.34 | F197: 3,966.76 | G197: 5,336.57 | H197: 800.49 | I197: 政府补助 | J197: 4,765.84 | K197: 714.88 | L197: 政府补助 | N197: 0.00 | O197: 0.00 | P197: 0.00 | Q197: 0.00 | R197: 0.00 | S197: 0.00 | W197: 0.00 | AA197: 2,388.89 | AB197: 2,543.33 | AC197: 2,887.46 | AD197: 1,846.45 | AE197: 1,491.42 | AG197: 1,024.67 | AH197: 153.70 | AK197: 963.65 | AL197: 144.55 | AM197: 政府补助 | AO197: 482.82 | AP197: 384.62 | AQ197: 1,760.42 | AR197: 4,184.51 | AS197: 6,960.63 | AT197: 8,042.08 | AU197: 804.21 | AX197: 10,919.95 | AY197: 1,091.99 | BB197: 344.19 | BC197: 203.34 | BD197: 397.97 | BE197: 546.88 | BF197: 553.86 | BH197: 3,612.15 | BI197: 541.82 | BL197: 4,130.16 | BM197: 619.52
A198: 其他非流动负债 | B198: 0.00 | C198: 0.00 | D198: 0.00 | E198: 0.00 | F198: 0.00 | G198: 0.00 | J198: 0.00 | N198: 0.00 | O198: 0.00 | P198: 0.00 | Q198: 0.00 | R198: 0.00 | S198: 0.00 | W198: 0.00 | AA198: 0.00 | AB198: 0.00 | AC198: 0.00 | AD198: 0.00 | AE198: 0.00 | AG198: 0.00 | AK198: 0.00 | AO198: 0.00 | AP198: 0.00 | AQ198: 0.00 | AR198: 0.00 | AS198: 0.00 | AT198: 0.00 | AX198: 0.00 | BB198: 0.00 | BC198: 0.00 | BD198: 0.00 | BE198: 0.00 | BF198: 0.00 | BH198: 0.00 | BL198: 0.00
A199: 非流动负债差额(特殊报表科目) | B199: 0.00 | C199: 0.00 | D199: 0.00 | E199: 0.00 | F199: 0.00 | G199: 0.00 | J199: 0.00 | N199: 0.00 | O199: 0.00 | P199: 0.00 | Q199: 0.00 | R199: 0.00 | S199: 0.00 | W199: 0.00 | AA199: 0.00 | AB199: 0.00 | AC199: 0.00 | AD199: 0.00 | AE199: 0.00 | AG199: 0.00 | AK199: 0.00 | AO199: 0.00 | AP199: 0.00 | AQ199: 0.00 | AR199: 0.00 | AS199: 0.00 | AT199: 0.00 | AX199: 0.00 | BB199: 0.00 | BC199: 0.00 | BD199: 0.00 | BE199: 0.00 | BF199: 0.00 | BH199: 0.00 | BL199: 0.00
A200: 非流动负债差额(合计平衡科目) | B200: 0.00 | C200: 0.00 | D200: 0.00 | E200: 0.00 | F200: 0.00 | G200: 0.00 | J200: 0.00 | N200: 0.00 | O200: 0.00 | P200: 0.00 | Q200: 0.00 | R200: 0.00 | S200: 0.00 | W200: 0.00 | AA200: 0.00 | AB200: 0.00 | AC200: 0.00 | AD200: 0.00 | AE200: 0.00 | AG200: 0.00 | AK200: 0.00 | AO200: 0.00 | AP200: 0.00 | AQ200: 0.00 | AR200: 0.00 | AS200: 0.00 | AT200: 0.00 | AX200: 0.00 | BB200: 0.00 | BC200: 0.00 | BD200: 0.00 | BE200: 0.00 | BF200: 0.00 | BH200: 0.00 | BL200: 0.00
A201: 非流动负债合计 | B201: 1,285.01 | C201: 1,471.36 | D201: 1,353.04 | E201: 6,099.28 | F201: 15,819.47 | G201: 8,992.07 | H201: 1,117.90 | I201: 1,900.94 | J201: 15,947.14 | K201: 1,001.52 | L201: 7,950.00 | N201: 729.26 | O201: 1,136.93 | P201: 134.03 | Q201: 207.45 | R201: 15,252.58 | S201: 35,367.03 | T201: 110.45 | U201: 34,593.08 | W201: 31,002.87 | X201: 95.07 | Y201: 29,413.21 | AA201: 2,878.89 | AB201: 22,417.91 | AC201: 25,818.12 | AD201: 1,846.45 | AE201: 1,984.31 | AG201: 1,562.20 | AH201: 691.23 | AI201: 0.00 | AK201: 7,055.28 | AL201: 682.07 | AM201: 2,490.00 | AO201: 520.37 | AP201: 422.17 | AQ201: 1,797.97 | AR201: 4,400.80 | AS201: 19,361.20 | AT201: 45,988.27 | AU201: 1,921.47 | AV201: 36,828.94 | AX201: 46,570.58 | AY201: 2,240.82 | AZ201: 33,217.96 | BB201: 514.52 | BC201: 373.19 | BD201: 467.34 | BE201: 11,778.38 | BF201: 6,967.30 | BH201: 3,617.53 | BI201: 547.20 | BJ201: 0.00 | BL201: 6,974.08 | BM201: 619.52 | BN201: 0.00
A202: 负债差额(特殊报表科目) | B202: 0.00 | C202: 0.00 | D202: 0.00 | E202: 0.00 | F202: 0.00 | G202: 0.00 | J202: 0.00 | N202: 0.00 | O202: 0.00 | P202: 0.00 | Q202: 0.00 | R202: 0.00 | S202: 0.00 | W202: 0.00 | AA202: 0.00 | AB202: 0.00 | AC202: 0.00 | AD202: 0.00 | AE202: 0.00 | AG202: 0.00 | AK202: 0.00 | AO202: 0.00 | AP202: 0.00 | AQ202: 0.00 | AR202: 0.00 | AS202: 0.00 | AT202: 0.00 | AX202: 0.00 | BB202: 0.00 | BC202: 0.00 | BD202: 0.00 | BE202: 0.00 | BF202: 0.00 | BH202: 0.00 | BL202: 0.00
A203: 负债差额(合计平衡科目) | B203: 0.00 | C203: 0.00 | D203: 0.00 | E203: 0.00 | F203: 0.00 | G203: 0.00 | J203: 0.00 | N203: 0.00 | O203: 0.00 | P203: 0.00 | Q203: 0.00 | R203: 0.00 | S203: 0.00 | W203: 0.00 | AA203: 0.00 | AB203: 0.00 | AC203: 0.00 | AD203: 0.00 | AE203: 0.00 | AG203: 0.00 | AK203: 0.00 | AO203: 0.00 | AP203: 0.00 | AQ203: 0.00 | AR203: 0.00 | AS203: 0.00 | AT203: 0.00 | AX203: 0.00 | BB203: 0.00 | BC203: 0.00 | BD203: 0.00 | BE203: 0.00 | BF203: 0.00 | BH203: 0.00 | BL203: 0.00
A204: 负债合计 | B204: 19,939.21 | C204: 50,702.31 | D204: 69,674.65 | E204: 81,758.18 | F204: 111,595.74 | G204: 128,624.35 | H204: 35,604.25 | I204: 37,088.93 | J204: 173,272.39 | K204: 32,401.06 | L204: 63,763.58 | N204: 34,624.30 | O204: 37,006.78 | P204: 31,068.64 | Q204: 47,748.05 | R204: 83,143.44 | S204: 88,417.52 | T204: 236.84 | U204: 65,627.26 | W204: 92,709.79 | X204: 205.21 | Y204: 73,405.77 | AA204: 106,106.52 | AB204: 114,597.53 | AC204: 118,167.58 | AD204: 154,343.93 | AE204: 244,398.03 | AG204: 259,898.19 | AH204: 3,352.14 | AI204: 213,303.75 | AK204: 216,866.69 | AL204: 4,602.36 | AM204: 151,873.11 | AO204: 97,028.07 | AP204: 90,109.08 | AQ204: 65,531.13 | AR204: 100,352.95 | AS204: 102,410.87 | AT204: 144,594.72 | AU204: 7,632.52 | AV204: 86,583.94 | AX204: 133,812.57 | AY204: 4,920.10 | AZ204: 96,108.28 | BB204: 8,191.10 | BC204: 18,985.09 | BD204: 11,488.32 | BE204: 60,991.01 | BF204: 50,092.10 | BH204: 39,075.04 | BI204: 12,583.06 | BJ204: 0.00 | BL204: 32,492.97 | BM204: 6,675.36 | BN204: 0.00
A205: 所有者权益(或股东权益)：
... 134 more rows

Sheet 可比案例总市值 (hidden)
A1: 总市值(万元)
A2: 证券代码 | B2: 证券名称 | C2: 2023-12-29 | D2: 2023-12-28 | E2: 2023-12-27 | F2: 2023-12-26 | G2: 2023-12-25 | H2: 2023-12-22 | I2: 2023-12-21 | J2: 2023-12-20 | K2: 2023-12-19 | L2: 2023-12-18 | M2: 2023-12-15 | N2: 2023-12-14 | O2: 2023-12-13 | P2: 2023-12-12 | Q2: 2023-12-11 | R2: 2023-12-08 | S2: 2023-12-07 | T2: 2023-12-06 | U2: 2023-12-05 | V2: 2023-12-04 | W2: 2023-12-01 | X2: 2023-11-30 | Y2: 2023-11-29 | Z2: 2023-11-28 | AA2: 2023-11-27 | AB2: 2023-11-24 | AC2: 2023-11-23 | AD2: 2023-11-22 | AE2: 2023-11-21 | AF2: 2023-11-20 | AG2: 30日平均
A3: 600908.SH | B3: 无锡银行 | C3: 1,086,341.96 | D3: 1,043,318.51 | E3: 1,028,260.31 | F3: 1,021,806.79 | G3: 1,028,260.31 | H3: 1,036,865.00 | I3: 1,034,713.82 | J3: 1,036,865.00 | K3: 1,039,016.17 | L3: 1,043,318.51 | M3: 1,054,074.37 | N3: 1,054,074.37 | O3: 1,054,074.37 | P3: 1,060,527.89 | Q3: 1,056,225.55 | R3: 1,049,772.03 | S3: 1,049,772.03 | T3: 1,047,620.86 | U3: 1,041,167.34 | V3: 1,058,376.72 | W3: 1,058,376.72 | X3: 1,056,225.55 | Y3: 1,060,527.89 | Z3: 1,073,434.92 | AA3: 1,069,132.58 | AB3: 1,084,190.78 | AC3: 1,082,039.61 | AD3: 1,075,586.10 | AE3: 1,079,888.44 | AF3: 1,075,586.10 | AG3: 1,054,648.02
A4: 601128.SH | B4: 常熟银行 | C4: 1,751,424.10 | D4: 1,759,646.75 | E4: 1,729,497.04 | F4: 1,732,237.92 | G4: 1,745,942.33 | H4: 1,765,128.51 | I4: 1,778,832.93 | J4: 1,776,092.05 | K4: 1,787,055.58 | L4: 1,808,982.64 | M4: 1,828,168.82 | N4: 1,847,355.00 | O4: 1,852,836.76 | P4: 1,872,022.94 | Q4: 1,863,800.29 | R4: 1,847,355.00 | S4: 1,850,095.88 | T4: 1,839,132.35 | U4: 1,839,132.35 | V4: 1,852,836.76 | W4: 1,874,763.83 | X4: 1,858,318.53 | Y4: 1,852,836.76 | Z4: 1,877,504.71 | AA4: 1,896,690.89 | AB4: 1,913,136.18 | AC4: 1,902,172.65 | AD4: 1,885,727.36 | AE4: 1,893,950.01 | AF4: 1,907,654.42 | AG4: 1,833,011.04
A5: 601860.SH | B5: 紫金银行 | C5: 926,227.80 | D5: 922,566.82 | E5: 911,583.89 | F5: 900,600.95 | G5: 907,922.91 | H5: 911,583.69 | I5: 915,244.67 | J5: 915,244.67 | K5: 926,227.61 | L5: 933,549.56 | M5: 940,871.52 | N5: 940,871.52 | O5: 940,871.52 | P5: 944,532.50 | Q5: 937,210.54 | R5: 929,888.59 | S5: 937,210.54 | T5: 933,549.56 | U5: 937,210.54 | V5: 944,532.50 | W5: 948,193.48 | X5: 937,210.54 | Y5: 937,210.54 | Z5: 948,193.48 | AA5: 951,854.46 | AB5: 955,515.44 | AC5: 959,176.42 | AD5: 948,193.48 | AE5: 955,515.44 | AF5: 955,515.44 | AG5: 935,136.02
A6: 603323.SH | B6: 苏农银行 | C6: 750,078.41 | D6: 748,275.34 | E6: 737,456.90 | F6: 732,047.68 | G6: 735,653.83 | H6: 737,456.90 | I6: 739,259.97 | J6: 741,063.05 | K6: 744,669.19 | L6: 748,275.34 | M6: 753,684.56 | N6: 757,290.70 | O6: 755,487.63 | P6: 759,093.78 | Q6: 755,487.63 | R6: 746,472.27 | S6: 750,078.41 | T6: 750,078.41 | U6: 750,078.41 | V6: 757,290.70 | W6: 759,093.78 | X6: 753,684.56 | Y6: 755,487.63 | Z6: 764,503.00 | AA6: 768,109.14 | AB6: 771,715.29 | AC6: 769,912.22 | AD6: 768,109.14 | AE6: 769,912.22 | AF6: 768,109.14 | AG6: 753,263.84
A7: 002807.SZ | B7: 江阴银行 | C7: 771,084.47 | D7: 771,078.71 | E7: 760,218.45 | F7: 753,702.29 | G7: 753,702.29 | H7: 755,874.34 | I7: 758,046.40 | J7: 764,562.55 | K7: 768,906.66 | L7: 773,250.76 | M7: 775,422.82 | N7: 779,766.92 | O7: 779,766.92 | P7: 784,111.03 | Q7: 779,766.92 | R7: 773,250.76 | S7: 773,250.76 | T7: 768,906.66 | U7: 768,906.66 | V7: 779,766.92 | W7: 781,938.98 | X7: 775,422.82 | Y7: 777,594.87 | Z7: 784,111.03 | AA7: 784,111.03 | AB7: 790,627.19 | AC7: 788,455.13 | AD7: 784,111.03 | AE7: 788,455.13 | AF7: 786,283.08 | AG7: 774,481.79
A8: 002839.SZ | B8: 张家港行 | C8: 841,824.29 | D8: 839,654.64 | E8: 830,976.04 | F8: 824,467.09 | G8: 826,636.74 | H8: 835,315.34 | I8: 833,145.69 | J8: 837,484.99 | K8: 841,824.29 | L8: 846,163.59 | M8: 852,672.54 | N8: 857,011.84 | O8: 857,011.84 | P8: 865,690.44 | Q8: 859,181.49 | R8: 852,672.54 | S8: 859,181.49 | T8: 852,672.54 | U8: 854,842.19 | V8: 867,860.09 | W8: 867,860.09 | X8: 863,520.79 | Y8: 867,860.09 | Z8: 880,877.99 | AA8: 883,047.64 | AB8: 889,556.59 | AC8: 887,386.94 | AD8: 883,047.64 | AE8: 885,217.29 | AF8: 885,217.29 | AG8: 857,662.73

Sheet 企业规模指标 (hidden)
A1: 证券代码 | B1: 证券名称 | C1: 净息差 [报告期] 2023年报 [单位]% | D1: 规模指数 | F1: 证券代码 | G1: 证券名称 | H1: 资产总计 [报告期] 2023年报 [报表类型] 合并报表 [单位] 万元 | I1: 规模指数 | K1: 证券代码 | L1: 证券名称 | M1: 发放贷款及垫款 [报告期] 2023年报 [报表类型] 合并报表 [单位] 万元 | N1: 规模指数
A2: 601128.SH | B2: 常熟银行 | C2: 2.9800 | D2: 大 | F2: 601398.SH | G2: 工商银行 | H2: 4,469,707,900.00 | I2: 大 | K2: 601398.SH | L2: 工商银行 | M2: 2,538,693,300.0000 | N2: 大
A3: 000001.SZ | B3: 平安银行 | C3: 2.6400 | D3: 大 | F3: 601288.SH | G3: 农业银行 | H3: 3,987,298,900.00 | I3: 大 | K3: 601939.SH | L3: 建设银行 | M3: 2,308,337,700.0000 | N3: 大
A4: 600036.SH | B4: 招商银行 | C4: 2.3433 | D4: 大 | F4: 601939.SH | G4: 建设银行 | H4: 3,832,482,600.00 | I4: 大 | K4: 601288.SH | L4: 农业银行 | M4: 2,173,176,600.0000 | N4: 大
A5: 601577.SH | B5: 长沙银行 | C5: 2.3071 | D5: 大 | F5: 601988.SH | G5: 中国银行 | H5: 3,243,216,600.00 | I5: 大 | K5: 601988.SH | L5: 中国银行 | M5: 1,947,687,100.0000 | N5: 大
A6: 002839.SZ | B6: 张家港行 | C6: 2.2367 | D6: 大 | F6: 601658.SH | G6: 邮储银行 | H6: 1,572,663,100.00 | I6: 大 | K6: 601658.SH | L6: 邮储银行 | M6: 791,524,500.0000 | N6: 大
A7: 601997.SH | B7: 贵阳银行 | C7: 2.2233 | D7: 大 | F7: 601328.SH | G7: 交通银行 | H7: 1,406,047,200.00 | I7: 大 | K7: 601328.SH | L7: 交通银行 | M7: 777,206,000.0000 | N7: 大
A8: 002936.SZ | B8: 郑州银行 | C8: 2.2200 | D8: 大 | F8: 600036.SH | G8: 招商银行 | H8: 1,102,848,300.00 | I8: 大 | K8: 600036.SH | L8: 招商银行 | M8: 625,275,500.0000 | N8: 大
A9: 601658.SH | B9: 邮储银行 | C9: 2.1900 | D9: 大 | F9: 601166.SH | G9: 兴业银行 | H9: 1,015,832,600.00 | I9: 大 | K9: 601998.SH | L9: 中信银行 | M9: 538,375,000.0000 | N9: 大
A10: 601916.SH | B10: 浙商银行 | C10: 2.1633 | D10: 大 | F10: 601998.SH | G10: 中信银行 | H10: 905,248,400.00 | I10: 大 | K10: 601166.SH | L10: 兴业银行 | M10: 533,348,300.0000 | N10: 大
A11: 600919.SH | B11: 江苏银行 | C11: 2.1350 | D11: 大 | F11: 600000.SH | G11: 浦发银行 | H11: 880,832,000.00 | I11: 大 | K11: 600000.SH | L11: 浦发银行 | M11: 480,610,400.0000 | N11: 大
A12: 002807.SZ | B12: 江阴银行 | C12: 2.1267 | D12: 大 | F12: 600016.SH | G12: 民生银行 | H12: 767,496,500.00 | I12: 大 | K12: 600016.SH | L12: 民生银行 | M12: 432,390,800.0000 | N12: 大
A13: 600015.SH | B13: 华夏银行 | C13: 2.1067 | D13: 大 | F13: 601818.SH | G13: 光大银行 | H13: 677,279,600.00 | I13: 大 | K13: 601818.SH | L13: 光大银行 | M13: 371,292,500.0000 | N13: 大
A14: 601166.SH | B14: 兴业银行 | C14: 2.1067 | D14: 大 | F14: 000001.SZ | G14: 平安银行 | H14: 558,711,600.00 | I14: 大 | K14: 000001.SZ | L14: 平安银行 | M14: 332,011,000.0000 | N14: 大
A15: 601528.SH | B15: 瑞丰银行 | C15: 2.0933 | D15: 大 | F15: 600015.SH | G15: 华夏银行 | H15: 410,488,900.00 | I15: 大 | K15: 600015.SH | L15: 华夏银行 | M15: 226,051,600.0000 | N15: 大
D16: 较大 | F16: 601169.SH | G16: 北京银行 | H16: 374,867,900.00 | I16: 较大 | K16: 601169.SH | L16: 北京银行 | M16: 196,479,100.0000 | N16: 较大
A17: 002142.SZ | B17: 宁波银行 | C17: 2.0367 | D17: 较大 | F17: 600919.SH | G17: 江苏银行 | H17: 333,634,582.40 | I17: 较大 | K17: 600919.SH | L17: 江苏银行 | M17: 173,707,951.6000 | N17: 较大
A18: 002958.SZ | B18: 青农商行 | C18: 2.0033 | D18: 较大 | F18: 601916.SH | G18: 浙商银行 | H18: 314,387,900.00 | I18: 较大 | K18: 601916.SH | L18: 浙商银行 | M18: 167,327,200.0000 | N18: 较大
A19: 601838.SH | B19: 成都银行 | C19: 1.9967 | D19: 较大 | F19: 601229.SH | G19: 上海银行 | H19: 305,911,438.30 | I19: 较大 | K19: 601229.SH | L19: 上海银行 | M19: 132,638,963.6000 | N19: 较大
A20: 601818.SH | B20: 光大银行 | C20: 1.9700 | D20: 较大 | F20: 002142.SZ | G20: 宁波银行 | H20: 271,166,200.00 | I20: 较大 | K20: 002142.SZ | L20: 宁波银行 | M20: 121,375,300.0000 | N20: 较大
A21: 603323.SH | B21: 苏农银行 | C21: 1.9676 | D21: 较大 | F21: 601009.SH | G21: 南京银行 | H21: 224,067,896.90 | I21: 较大 | K21: 601009.SH | L21: 南京银行 | M21: 105,366,476.5000 | N21: 较大
A22: 601077.SH | B22: 渝农商行 | C22: 1.9567 | D22: 较大 | F22: 600926.SH | G22: 杭州银行 | H22: 184,133,080.20 | I22: 较大 | K22: 600926.SH | L22: 杭州银行 | M22: 77,394,229.2000 | N22: 较大
A23: 601939.SH | B23: 建设银行 | C23: 1.9500 | D23: 较大 | F23: 601077.SH | G23: 渝农商行 | H23: 144,108,194.30 | I23: 较大 | K23: 601825.SH | L23: 沪农商行 | M23: 67,435,999.0000 | N23: 较大
A24: 601998.SH | B24: 中信银行 | C24: 1.9333 | D24: 较大 | F24: 601825.SH | G24: 沪农商行 | H24: 136,842,371.00 | I24: 较大 | K24: 601077.SH | L24: 渝农商行 | M24: 64,727,675.0000 | N24: 较大
A25: 601665.SH | B25: 齐鲁银行 | C25: 1.9300 | D25: 较大 | F25: 601838.SH | G25: 成都银行 | H25: 106,303,909.00 | I25: 较大 | K25: 601838.SH | L25: 成都银行 | M25: 56,949,164.7000 | N25: 较大
A26: 601398.SH | B26: 工商银行 | C26: 1.8800 | D26: 较大 | F26: 601577.SH | G26: 长沙银行 | H26: 101,760,309.30 | I26: 较大 | K26: 601577.SH | L26: 长沙银行 | M26: 47,329,627.9000 | N26: 较大
A27: 601288.SH | B27: 农业银行 | C27: 1.8733 | D27: 较大 | F27: 601963.SH | G27: 重庆银行 | H27: 75,988,387.00 | I27: 较大 | K27: 601963.SH | L27: 重庆银行 | M27: 38,079,554.0000 | N27: 较大
A28: 002966.SZ | B28: 苏州银行 | C28: 1.8300 | D28: 较大 | F28: 601997.SH | G28: 贵阳银行 | H28: 67,065,037.70 | I28: 较大 | K28: 002936.SZ | L28: 郑州银行 | M28: 35,032,529.7000 | N28: 较大
A29: 600908.SH | B29: 无锡银行 | C29: 1.80 | D29: 较大 | F29: 002936.SZ | G29: 郑州银行 | H29: 63,070,942.90 | I29: 较大 | K29: 601997.SH | L29: 贵阳银行 | M29: 30,706,212.9000 | N29: 较大
A30: 002948.SZ | B30: 青岛银行 | C30: 1.7933 | D30: 中 | F30: 002948.SZ | G30: 青岛银行 | H30: 60,798,537.20 | I30: 中 | K30: 002948.SZ | L30: 青岛银行 | M30: 29,299,292.6000 | N30: 中
A31: 601825.SH | B31: 沪农商行 | C31: 1.7805 | D31: 中 | F31: 002966.SZ | G31: 苏州银行 | H31: 58,351,002.87 | I31: 中 | K31: 601665.SH | L31: 齐鲁银行 | M31: 28,284,645.0000 | N31: 中
A32: 601009.SH | B32: 南京银行 | C32: 1.7761 | D32: 中 | F32: 601665.SH | G32: 齐鲁银行 | H32: 56,849,065.20 | I32: 中 | K32: 002966.SZ | L32: 苏州银行 | M32: 27,717,934.0023 | N32: 中
A33: 601963.SH | B33: 重庆银行 | C33: 1.7733 | D33: 中 | F33: 002958.SZ | G33: 青农商行 | H33: 46,764,477.50 | I33: 中 | K33: 002958.SZ | L33: 青农商行 | M33: 24,284,405.3000 | N33: 中
A34: 601860.SH | B34: 紫金银行 | C34: 1.7400 | D34: 中 | F34: 001227.SZ | G34: 兰州银行 | H34: 45,879,798.60 | I34: 中 | K34: 001227.SZ | L34: 兰州银行 | M34: 23,789,004.2973 | N34: 中
A35: 601169.SH | B35: 北京银行 | C35: 1.7100 | D35: 中 | F35: 600928.SH | G35: 西安银行 | H35: 42,631,902.00 | I35: 中 | K35: 601128.SH | L35: 常熟银行 | M35: 21,422,653.0000 | N35: 中
A36: 601988.SH | B36: 中国银行 | C36: 1.7000 | D36: 中 | F36: 601187.SH | G36: 厦门银行 | H36: 37,864,828.70 | I36: 中 | K36: 601187.SH | L36: 厦门银行 | M36: 19,691,912.7000 | N36: 中
A37: 600000.SH | B37: 浦发银行 | C37: 1.6779 | D37: 中 | F37: 601128.SH | G37: 常熟银行 | H37: 33,445,643.00 | I37: 中 | K37: 600928.SH | L37: 西安银行 | M37: 19,183,001.4000 | N37: 中
A38: 600926.SH | B38: 杭州银行 | C38: 1.67 | D38: 中 | F38: 601860.SH | G38: 紫金银行 | H38: 24,618,639.50 | I38: 中 | K38: 601860.SH | L38: 紫金银行 | M38: 17,009,879.4000 | N38: 中
A39: 600016.SH | B39: 民生银行 | C39: 1.6567 | D39: 中 | F39: 600908.SH | G39: 无锡银行 | H39: 23,495,616.50 | I39: 中 | K39: 600908.SH | L39: 无锡银行 | M39: 13,735,569.3000 | N39: 中
A40: 600928.SH | B40: 西安银行 | C40: 1.6277 | D40: 中 | F40: 002839.SZ | G40: 张家港行 | H40: 20,304,198.61 | I40: 中 | K40: 002839.SZ | L40: 张家港行 | M40: 12,055,762.9250 | N40: 中
A41: 001227.SZ | B41: 兰州银行 | C41: 1.6000 | D41: 中 | F41: 603323.SH | G41: 苏农银行 | H41: 20,111,526.30 | I41: 中 | K41: 603323.SH | L41: 苏农银行 | M41: 11,666,180.6000 | N41: 中
A42: 601229.SH | B42: 上海银行 | C42: 1.5126 | D42: 中 | F42: 601528.SH | G42: 瑞丰银行 | H42: 19,688,846.50 | I42: 中 | K42: 002807.SZ | L42: 江阴银行 | M42: 11,104,527.0000 | N42: 中
A43: 601187.SH | B43: 厦门银行 | C43: 1.4504 | D43: 中 | F43: 002807.SZ | G43: 江阴银行 | H43: 18,602,957.90 | I43: 中 | K43: 601528.SH | L43: 瑞丰银行 | M43: 11,019,926.0000 | N43: 中
A44: 601328.SH | B44: 交通银行 | C44: 1.4400 | D44: 较小 | G44: 大丰农商 | H44: ='2-交易案例比较法'!N16 -> 640.94 | I44: 较小 | L44: 大丰农商 | M44: ='2-交易案例比较法'!O16 -> 407.0955 | N44: 较小
